Ref,Fund Type,Dept,Cost Centre Description    ,Description    ,Creditor Name    ,GL Code Net Amount,Payment date        
2,Revenue,CCHD,Bed Purchasing - South,Permanent Nursing,.,1705.28, 02-Sep-2014
3,Revenue,CCHD,Bed Purchasing - South,Permanent Nursing,.,1705.28, 30-Sep-2014
4,Revenue,CCHD,South Glos Users in South Glos Homes,Permanent Nursing,.,564.63, 30-Sep-2014
5,Revenue,CCHD,Bed purchasing - Elderly S117 - South,Permanent Nursing,.,2395.8, 02-Sep-2014
6,Revenue,CCHD,Bed purchasing - Elderly S117 - South,Permanent Nursing,.,2395.8, 30-Sep-2014
7,Revenue,CCHD,Bed Purchasing - Southmead Hospital,Permanent Nursing,.,3787.14, 02-Sep-2014
8,Revenue,CCHD,Bed Purchasing - Southmead Hospital,Permanent Nursing,.,2356.44, 02-Sep-2014
9,Revenue,CCHD,Bed Purchasing - Southmead Hospital,Permanent Nursing,.,2356.44, 30-Sep-2014
10,Revenue,CCHD,South Glos Users in South Glos Homes,Permanent Nursing,.,1821.76, 02-Sep-2014
11,Revenue,CCHD,South Glos Users in South Glos Homes,Permanent Nursing,.,2645.52, 30-Sep-2014
12,Revenue,CCHD,South Glos Users in South Glos Homes,Permanent Nursing,.,2550.47, 02-Sep-2014
13,Revenue,CCHD,Bed Purchasing - South,Permanent Nursing,.,2227.8, 02-Sep-2014
14,Revenue,CCHD,Bed Purchasing - South,Permanent Nursing,.,2227.8, 30-Sep-2014
15,Revenue,CCHD,South Glos Users in South Glos Homes,Permanent Nursing,.,1441.57, 02-Sep-2014
16,Revenue,CCHD,South Glos Users in South Glos Homes,Permanent Nursing,.,2756.41, 02-Sep-2014
17,Revenue,CCHD,South Glos Users in South Glos Homes,Permanent Nursing,.,2423.74, 02-Sep-2014
18,Revenue,CCHD,Bed Purchasing - South,Permanent Nursing,.,1734.36, 02-Sep-2014
19,Revenue,CCHD,Bed Purchasing - South,Permanent Nursing,.,1734.36, 30-Sep-2014
20,Revenue,CCHD,South Glos Users in South Glos Homes,Permanent Nursing,.,2645.52, 30-Sep-2014
21,Revenue,CCHD,South Glos Users in South Glos Homes,Permanent Nursing,.,2201.96, 02-Sep-2014
22,Revenue,CCHD,South Glos Users in South Glos Homes,Permanent Nursing,.,564.63, 02-Sep-2014
23,Revenue,CCHD,Bed Purchasing - South,Permanent Nursing,.,2356.44, 02-Sep-2014
24,Revenue,CCHD,Bed Purchasing - South,Permanent Nursing,.,504.95, 30-Sep-2014
25,Revenue,CCHD,Bed purchasing - Under 65s PWLD - North,Permanent Residential,1 St Georges House,13206.6, 02-Sep-2014
26,Revenue,CCHD,Bed purchasing - Under 65s PWLD - North,Permanent Residential,1 St Georges House,13206.6, 30-Sep-2014
27,Revenue,CCHD,Breakthrough and Inclusion Work,Other Supplies & Services,121Turnaround Limited,3298.5, 19-Sep-2014
28,Revenue,CCHD,Breakthrough and Inclusion Work,Other Supplies & Services,121Turnaround Limited,4295.88, 03-Sep-2014
29,Revenue,CCHD,Supporting People Programme,Grants to Voluntary Bodies,1625 Independent People,16692.5, 01-Sep-2014
30,Revenue,CCHD,Home Care - Elderly - South,Other Small Contracts,3 Trees Community Support Ltd,196.68, 04-Sep-2014
31,Revenue,CCHD,Home Care - Elderly - North,Day Care / Social Activities,3 Trees Community Support Ltd,1542.15, 04-Sep-2014
32,Revenue,CCHD,Home Care - Elderly - North,Other Small Contracts,3 Trees Community Support Ltd,1318.65, 04-Sep-2014
33,Revenue,CCHD,Home Care - Elderly - North,Supported Living,3 Trees Community Support Ltd,969.99, 04-Sep-2014
34,Revenue,CCHD,Home Care - Elderly - South,Other Small Contracts,3 Trees Community Support Ltd,196.68, 08-Sep-2014
35,Revenue,CCHD,Home Care - Elderly - North,Day Care / Social Activities,3 Trees Community Support Ltd,1528.74, 08-Sep-2014
36,Revenue,CCHD,Home Care - Elderly - North,Other Small Contracts,3 Trees Community Support Ltd,1627.08, 08-Sep-2014
37,Revenue,CCHD,Home Care - Elderly - North,Supported Living,3 Trees Community Support Ltd,2355.69, 08-Sep-2014
38,Revenue,CCHD,Home Care - Elderly - South,Other Small Contracts,3 Trees Community Support Ltd,196.68, 22-Sep-2014
39,Revenue,CCHD,Home Care - Elderly - North,Day Care / Social Activities,3 Trees Community Support Ltd,1555.56, 22-Sep-2014
40,Revenue,CCHD,Home Care - Elderly - North,Other Small Contracts,3 Trees Community Support Ltd,1819.29, 22-Sep-2014
41,Revenue,CCHD,Home Care - Elderly - North,Supported Living,3 Trees Community Support Ltd,2589.19, 22-Sep-2014
42,Revenue,CCHD,Home Care - Elderly - South,Other Small Contracts,3 Trees Community Support Ltd,196.68, 22-Sep-2014
43,Revenue,CCHD,Home Care - Elderly - North,Day Care / Social Activities,3 Trees Community Support Ltd,1305.24, 22-Sep-2014
44,Revenue,CCHD,Home Care - Elderly - North,Other Small Contracts,3 Trees Community Support Ltd,2047.26, 22-Sep-2014
45,Revenue,CCHD,Home Care - Elderly - North,Supported Living,3 Trees Community Support Ltd,938.7, 22-Sep-2014
46,Revenue,CCHD,Home Care - Elderly - South,Other Small Contracts,3 Trees Community Support Ltd,201.15, 22-Sep-2014
47,Revenue,CCHD,Home Care - Elderly - North,Day Care / Social Activities,3 Trees Community Support Ltd,1546.62, 22-Sep-2014
48,Revenue,CCHD,Home Care - Elderly - North,Other Small Contracts,3 Trees Community Support Ltd,2015.97, 22-Sep-2014
49,Revenue,CCHD,Home Care - Elderly - North,Supported Living,3 Trees Community Support Ltd,1086.21, 22-Sep-2014
50,Revenue,CCHD,Home Care - Elderly - South,Other Small Contracts,3 Trees Community Support Ltd,196.68, 23-Sep-2014
51,Revenue,CCHD,Home Care - Elderly - North,Day Care / Social Activities,3 Trees Community Support Ltd,1542.15, 23-Sep-2014
52,Revenue,CCHD,Home Care - Elderly - North,Other Small Contracts,3 Trees Community Support Ltd,1859.52, 23-Sep-2014
53,Revenue,CCHD,Home Care - Elderly - North,Supported Living,3 Trees Community Support Ltd,1452.75, 23-Sep-2014
54,Revenue,CCHD,Supported Living - North,Private & Voluntary Home Care,3 Trees Community Support Ltd,9498.1, 05-Sep-2014
55,Revenue,CCHD,Supported Living - North,Private & Voluntary Home Care,3 Trees Community Support Ltd,9541, 05-Sep-2014
56,Revenue,CCHD,Bed Purchasing - Under 65s PWLD - South,Permanent Residential,5Th Floor Harlech Court,16062.2, 02-Sep-2014
57,Revenue,CCHD,Bed Purchasing - Under 65s PWLD - South,Permanent Residential,5Th Floor Harlech Court,16062.2, 30-Sep-2014
58,Revenue,CCHD,Bed purchasing - Under 65s PWLD - North,Permanent Residential,5Th Floor Harlech Court,13647.88, 02-Sep-2014
59,Revenue,CCHD,Bed purchasing - Under 65s PWLD - North,Permanent Residential,5Th Floor Harlech Court,13647.88, 30-Sep-2014
60,Revenue,CCHD,Bed purchasing - Under 65s PWLD - North,Permanent Residential,5Th Floor Harlech Court,13962.28, 02-Sep-2014
61,Revenue,CCHD,Bed purchasing - Under 65s PWLD - North,Permanent Residential,5Th Floor Harlech Court,13962.28, 30-Sep-2014
62,Revenue,CCHD,Bed purchasing - Under 65s PWLD - North,Permanent Residential,5Th Floor Harlech Court,19945.61, 30-Sep-2014
63,Revenue,CCHD,Bed purchasing - Under 65s PWLD - North,Permanent Residential,5Th Floor Harlech Court,16589.72, 02-Sep-2014
64,Revenue,CCHD,Bed purchasing - Under 65s PWLD - North,Permanent Residential,5Th Floor Harlech Court,16589.72, 30-Sep-2014
65,Revenue,CCHD,Bed purchasing - Under 65s PWLD - North,Permanent Residential,5Th Floor Harlech Court,15754.12, 02-Sep-2014
66,Revenue,CCHD,Bed purchasing - Under 65s PWLD - North,Permanent Residential,5Th Floor Harlech Court,15754.12, 30-Sep-2014
67,Revenue,CCHD,Bed Purchasing - Under 65s PWLD - South,Permanent Nursing,5Th Floor Harlech Court,9898.88, 02-Sep-2014
68,Revenue,CCHD,Bed Purchasing - Under 65s PWLD - South,Permanent Residential,5Th Floor Harlech Court,13952.76, 30-Sep-2014
69,Revenue,CCHD,Bed purchasing - S28A Under 65 - South,Permanent Residential,5Th Floor Harlech Court,10570.16, 02-Sep-2014
70,Revenue,CCHD,Bed purchasing - S28A Under 65 - South,Permanent Residential,5Th Floor Harlech Court,10570.16, 30-Sep-2014
71,Revenue,CCHD,Bed purchasing - S28A Under 65 - South,Permanent Residential,5Th Floor Harlech Court,12355.24, 02-Sep-2014
72,Revenue,CCHD,Bed purchasing - S28A Under 65 - South,Permanent Residential,5Th Floor Harlech Court,12355.24, 30-Sep-2014
73,Revenue,CCHD,Bed Purchasing - Under 65s PWLD - South,Permanent Nursing,5Th Floor Harlech Court,10240.88, 02-Sep-2014
74,Revenue,CCHD,Bed Purchasing - Under 65s PWLD - South,Permanent Nursing,5Th Floor Harlech Court,10240.88, 30-Sep-2014
75,Revenue,CCHD,Bed Purchasing - Southmead Hospital,Permanent Nursing,Aabletone Nursing Home,8572.24, 30-Sep-2014
76,Revenue,CCHD,South Glos Users in South Glos Homes,Permanent Nursing,Aabletone Nursing Home,2154.43, 02-Sep-2014
77,Revenue,CCHD,Bed Purchasing - Southmead Hospital,Permanent Nursing,Aabletone Nursing Home,1320.2, 02-Sep-2014
78,Revenue,CCHD,Bed Purchasing - Southmead Hospital,Permanent Nursing,Aabletone Nursing Home,1320.2, 30-Sep-2014
79,Revenue,CCHD,Bed Purchasing - Frenchay Hospital,Permanent Nursing,Aabletone Nursing Home,852.6, 02-Sep-2014
80,Revenue,CCHD,Bed Purchasing - Frenchay Hospital,Permanent Nursing,Aabletone Nursing Home,852.6, 30-Sep-2014
81,Revenue,CCHD,Bed Purchasing - South,Permanent Residential,Abbey Grange,1248.2, 02-Sep-2014
82,Revenue,CCHD,Bed Purchasing - South,Permanent Residential,Abbey Grange,1182.81, 30-Sep-2014
83,Revenue,CCHD,Bed purchasing - Phys Dis - North,Permanent Nursing,ABI Development Limited,6970.24, 02-Sep-2014
84,Revenue,CCHD,Bed purchasing - Phys Dis - North,Permanent Nursing,ABI Development Limited,6970.24, 30-Sep-2014
85,Revenue,CCHD,Day Care - South,Day Care / Social Activities,About Me Care and Support Limited,1274.12, 02-Sep-2014
86,Revenue,CCHD,Day Care - North,Day Care / Social Activities,About Me Care and Support Limited,1233.6, 01-Sep-2014
87,Revenue,CCHD,Day Care - South,Day Care / Social Activities,About Me Care and Support Limited,780.16, 02-Sep-2014
88,Revenue,CCHD,Day Care - South,Day Care / Social Activities,About Me Care and Support Limited,1310.64, 18-Sep-2014
89,Revenue,CCHD,Day Care - North,Day Care / Social Activities,About Me Care and Support Limited,534.2, 19-Sep-2014
90,Revenue,CCHD,Day Care - South,Day Care / Social Activities,About Me Care and Support Limited,780.16, 18-Sep-2014
91,Revenue,CCHD,Home Care - Elderly - North,Day Care / Social Activities,Age Concern,688.64, 30-Sep-2014
92,Revenue,CCHD,Home Care - Elderly - South,Other Small Contracts,Agincare Chippenham,570.86, 12-Sep-2014
93,Revenue,CCHD,Home Care - Elderly - South,Other Small Contracts,Agincare Chippenham,591.2, 12-Sep-2014
94,Revenue,CCHD,Home Care - Elderly - South,Other Small Contracts,Agincare Chippenham,552.71, 12-Sep-2014
95,Revenue,CCHD,Home Care - Elderly - South,Other Small Contracts,Agincare Chippenham,539.33, 12-Sep-2014
96,Revenue,CCHD,Home Care - Elderly - South,Other Small Contracts,Agincare Chippenham,577.3, 12-Sep-2014
97,Revenue,CCHD,Home Care - Elderly - South,Other Small Contracts,Agincare Chippenham,1333.8, 08-Sep-2014
98,Revenue,CCHD,Home Care - Elderly - South,Other Small Contracts,Agincare Chippenham,1341.4, 08-Sep-2014
99,Revenue,CCHD,Home Care - Elderly - South,Other Small Contracts,Agincare Chippenham,1398.4, 08-Sep-2014
100,Revenue,CCHD,Home Care - Elderly - South,Other Small Contracts,Agincare Chippenham,1444, 08-Sep-2014
101,Revenue,CCHD,Home Care - Elderly - South,Other Small Contracts,Agincare Chippenham,1447.8, 08-Sep-2014
102,Revenue,CCHD,Home Care - Elderly - South,Other Small Contracts,Agincare Chippenham,1440.2, 16-Sep-2014
103,Revenue,CCHD,Home Care - Elderly - South,Other Small Contracts,Agincare Chippenham,1394.6, 16-Sep-2014
104,Revenue,CCHD,Home Care - Elderly - South,Other Small Contracts,Agincare Chippenham,1356.6, 25-Sep-2014
105,Revenue,CCHD,Home Care - Elderly - South,Other Small Contracts,Agincare Chippenham,1349, 29-Sep-2014
106,Revenue,CCHD,Home Care - Elderly - South,Other Small Contracts,Agincare UK Limited,782.8, 04-Sep-2014
107,Revenue,CCHD,Home Care - Elderly - North,Other Small Contracts,Agincare UK Limited,79.8, 04-Sep-2014
108,Revenue,CCHD,Elderly MH Day Care North,Day Care / Social Activities,Agincare UK Limited,57, 04-Sep-2014
109,Revenue,CCHD,Home Care - Elderly - South,Other Small Contracts,Agincare UK Limited,687.8, 04-Sep-2014
110,Revenue,CCHD,Home Care - Elderly - North,Other Small Contracts,Agincare UK Limited,72.2, 04-Sep-2014
111,Revenue,CCHD,Elderly MH Day Care North,Day Care / Social Activities,Agincare UK Limited,53.2, 04-Sep-2014
112,Revenue,CCHD,Home Care - Elderly - South,Other Small Contracts,Agincare UK Limited,733.4, 04-Sep-2014
113,Revenue,CCHD,Home Care - Elderly - North,Other Small Contracts,Agincare UK Limited,79.8, 04-Sep-2014
114,Revenue,CCHD,Elderly MH Day Care North,Day Care / Social Activities,Agincare UK Limited,53.2, 04-Sep-2014
115,Revenue,CCHD,Home Care - Elderly - South,Other Small Contracts,Agincare UK Limited,706.8, 16-Sep-2014
116,Revenue,CCHD,Home Care - Elderly - North,Other Small Contracts,Agincare UK Limited,79.8, 16-Sep-2014
117,Revenue,CCHD,Elderly MH Day Care North,Day Care / Social Activities,Agincare UK Limited,53.2, 16-Sep-2014
118,Revenue,CCHD,Home Care - Elderly - South,Other Small Contracts,Agincare UK Limited,653.6, 25-Sep-2014
119,Revenue,CCHD,Home Care - Elderly - North,Other Small Contracts,Agincare UK Limited,83.6, 25-Sep-2014
120,Revenue,CCHD,Elderly MH Day Care North,Day Care / Social Activities,Agincare UK Limited,57, 25-Sep-2014
121,Revenue,CCHD,Home Care - Elderly - South,Other Small Contracts,Agincare UK Limited,577.6, 25-Sep-2014
122,Revenue,CCHD,Home Care - Elderly - North,Other Small Contracts,Agincare UK Limited,79.8, 25-Sep-2014
123,Revenue,CCHD,Elderly MH Day Care North,Day Care / Social Activities,Agincare UK Limited,38, 25-Sep-2014
124,Revenue,CCHD,Home Care - Elderly - South,Other Small Contracts,Agincare UK Limited,509.2, 29-Sep-2014
125,Revenue,CCHD,Home Care - Elderly - North,Other Small Contracts,Agincare UK Limited,114, 29-Sep-2014
126,Revenue,CCHD,Elderly MH Day Care North,Day Care / Social Activities,Agincare UK Limited,49.4, 29-Sep-2014
127,Revenue,CCHD,Home Care - Elderly - North,Other Small Contracts,Agincare UK Nutfield,1497.2, 08-Sep-2014
128,Revenue,CCHD,Home Care - Elderly - North,Other Small Contracts,Agincare UK Nutfield,1360.4, 04-Sep-2014
129,Revenue,CCHD,Home Care - Elderly - North,Other Small Contracts,Agincare UK Nutfield,1227.4, 04-Sep-2014
130,Revenue,CCHD,Home Care - Elderly - North,Other Small Contracts,Agincare UK Nutfield,1303.4, 08-Sep-2014
131,Revenue,CCHD,Home Care - Elderly - North,Other Small Contracts,Agincare UK Nutfield,1596, 16-Sep-2014
132,Revenue,CCHD,Home Care - Elderly - North,Other Small Contracts,Agincare UK Nutfield,1489.6, 25-Sep-2014
133,Revenue,CCHD,Home Care - Elderly - North,Other Small Contracts,Agincare UK Nutfield,1463, 25-Sep-2014
134,Revenue,CCHD,Home Care - Elderly - North,Other Small Contracts,Agincare UK Nutfield,1497.2, 29-Sep-2014
135,Revenue,CCHD,S117 Placements PCT,Permanent Residential,Alexandra House,6977.4, 02-Sep-2014
136,Revenue,CCHD,S117 Placements PCT,Permanent Residential,Alexandra House,6977.4, 30-Sep-2014
137,Revenue,CCHD,Bed Purchasing - Under 65s PWLD - South,Permanent Residential,Alexandra House,6158.4, 02-Sep-2014
138,Revenue,CCHD,Bed Purchasing - Under 65s PWLD - South,Permanent Residential,Alexandra House,6158.4, 30-Sep-2014
139,Revenue,CCHD,Section 117 Placements MH Younger,Permanent Residential,Alexandra House,6495.6, 02-Sep-2014
140,Revenue,CCHD,Section 117 Placements MH Younger,Permanent Residential,Alexandra House,6495.6, 30-Sep-2014
141,Revenue,CCHD,Home Care - Elderly - South,Other Small Contracts,AliMo Care Ltd,925.13, 05-Sep-2014
142,Revenue,CCHD,Home Care - Elderly - North,Other Small Contracts,AliMo Care Ltd,1812.99, 05-Sep-2014
143,Revenue,CCHD,Home Care - Elderly - South,Other Small Contracts,AliMo Care Ltd,879.7, 10-Sep-2014
144,Revenue,CCHD,Home Care - Elderly - North,Other Small Contracts,AliMo Care Ltd,1755.17, 10-Sep-2014
145,Revenue,CCHD,Home Care - Elderly - South,Other Small Contracts,AliMo Care Ltd,714.5, 17-Sep-2014
146,Revenue,CCHD,Home Care - Elderly - North,Other Small Contracts,AliMo Care Ltd,1771.69, 17-Sep-2014
147,Revenue,CCHD,Home Care - Elderly - South,Other Small Contracts,AliMo Care Ltd,590.6, 24-Sep-2014
148,Revenue,CCHD,Home Care - Elderly - North,Other Small Contracts,AliMo Care Ltd,1734.52, 24-Sep-2014
149,Revenue,CCHD,Home Care - Elderly - North,Other Small Contracts,Allied  Healthcare Group Limited,1294.29, 17-Sep-2014
150,Revenue,CCHD,Better Support for Older People,Other Supplies & Services,Alzheimers Society,815, 02-Sep-2014
151,Revenue,CCHD,Bed Purchasing - Southmead Hospital,Permanent Nursing,Ambleside Nusing Ho!,1443.84, 02-Sep-2014
152,Revenue,CCHD,Bed Purchasing - Southmead Hospital,Permanent Nursing,Ambleside Nusing Ho!,1443.84, 30-Sep-2014
153,Revenue,CCHD,Direct Payments - Phys Dis - North,Grants to Voluntary Bodies,Aquarium Card Management Solutions Ltd,1500, 10-Sep-2014
154,Revenue,CCHD,Bed purchasing - Under 65s PWLD - North,Permanent Residential,Ark Care Homes Ltd,10314.64, 02-Sep-2014
155,Revenue,CCHD,Bed purchasing - Under 65s PWLD - North,Permanent Residential,Ark Care Homes Ltd,10314.64, 30-Sep-2014
156,Revenue,CCHD,Bed Purchasing - South,Permanent Residential,Ashbourne House Care Home Limited,1122.44, 02-Sep-2014
157,Revenue,CCHD,Bed Purchasing - South,Permanent Residential,Ashbourne House Care Home Limited,1122.44, 30-Sep-2014
158,Revenue,CCHD,Home Care - Elderly - South,Other Small Contracts,Ashley Commercial Finance Ltd,600.48, 08-Sep-2014
159,Revenue,CCHD,Home Care - Elderly - North,Other Small Contracts,Ashley Commercial Finance Ltd,3536.16, 08-Sep-2014
160,Revenue,CCHD,Home Care - Elderly - South,Other Small Contracts,Ashley Commercial Finance Ltd,579.63, 15-Sep-2014
161,Revenue,CCHD,Home Care - Elderly - North,Other Small Contracts,Ashley Commercial Finance Ltd,3561.18, 15-Sep-2014
162,Revenue,CCHD,Home Care - Elderly - South,Other Small Contracts,Ashley Commercial Finance Ltd,596.31, 16-Sep-2014
163,Revenue,CCHD,Home Care - Elderly - North,Other Small Contracts,Ashley Commercial Finance Ltd,3498.63, 16-Sep-2014
164,Revenue,CCHD,Home Care - Elderly - South,Other Small Contracts,Ashley Commercial Finance Ltd,579.63, 29-Sep-2014
165,Revenue,CCHD,Home Care - Elderly - North,Other Small Contracts,Ashley Commercial Finance Ltd,3632.07, 29-Sep-2014
166,Revenue,CCHD,DAT Treatment,Rent,Ashville Asset Management Limited,6159, 29-Sep-2014
167,Revenue,CCHD,Bed purchasing - Under 65s PWLD - North,Permanent Residential,Aspects 2 Limited,6358.44, 02-Sep-2014
168,Revenue,CCHD,Bed purchasing - Under 65s PWLD - North,Permanent Residential,Aspects 2 Limited,6358.44, 30-Sep-2014
169,Revenue,CCHD,Supporting People Programme,Grants to Voluntary Bodies,Aspects and Milestones Trust,3219.58, 01-Sep-2014
170,Revenue,CCHD,Supporting People Programme,Grants to Voluntary Bodies,Aspects and Milestones Trust,1614.17, 01-Sep-2014
171,Revenue,CCHD,Supporting People Programme,Grants to Voluntary Bodies,Aspects and Milestones Trust,2450.08, 01-Sep-2014
172,Revenue,CCHD,Purchase of Non-Res Care - North,Day Care / Social Activities,Aspirations Support Bristol Limited,718.5, 05-Sep-2014
173,Revenue,CCHD,Purchase of Non-Res Care - South,Day Care / Social Activities,Aspirations Support Bristol Limited,3124.35, 25-Sep-2014
174,Revenue,CCHD,Supported Living - South,Private & Voluntary Home Care,Aspirations Support Bristol Limited,515.84, 25-Sep-2014
175,Revenue,CCHD,Bed Purchasing - Under 65s PWLD - South,Permanent Residential,Autism Specialised Care Homes,5611.16, 02-Sep-2014
176,Revenue,CCHD,Bed Purchasing - Under 65s PWLD - South,Permanent Residential,Autism Specialised Care Homes,5611.16, 30-Sep-2014
177,Revenue,CCHD,Purchase of Non-Res Care - North,Day Care / Social Activities,Avon Autistic Foundation Limited,3378.04, 03-Sep-2014
178,Revenue,CCHD,Purchase of Non-Res Care - North,Day Care / Social Activities,Avon Autistic Foundation Limited,2301.6, 03-Sep-2014
179,Revenue,CCHD,S75 CCG Interim Beds,Permanent Nursing,Avon Lodge Care Centre,10200, 24-Sep-2014
180,Revenue,CCHD,s256 - Additional Support Funding,Other Supplies & Services,Avon Telecare Ltd,5622.5, 24-Sep-2014
181,Revenue,CCHD,Day Care - North,Day Care / Social Activities,Avonedge Limited,1200, 15-Sep-2014
182,Revenue,CCHD,Children & Young People�s Health,Other Supplies & Services,Barnardos,5000, 11-Sep-2014
183,Revenue,CCHD,Children & Young People�s Health,Other Supplies & Services,Barnardos,5000, 11-Sep-2014
184,Revenue,CCHD,Purchase of RAC places,Other L.A.'s - General,Bath & North East Somerset Dist Council,6055.76, 10-Sep-2014
185,Revenue,CCHD,Purchase of RAC places,Other L.A.'s - General,Bath & North East Somerset Dist Council,1902.4, 18-Sep-2014
186,Revenue,CCHD,Bed Purchasing - Frenchay Hospital,Permanent Nursing,Bayview Nursing & Residential Home,1482.4, 02-Sep-2014
187,Revenue,CCHD,Bed Purchasing - Frenchay Hospital,Permanent Nursing,Bayview Nursing & Residential Home,1482.4, 30-Sep-2014
188,Revenue,CCHD,South Glos Users in South Glos Homes,Permanent Nursing,Beaufort Grange Care Home,2201.96, 02-Sep-2014
189,Revenue,CCHD,South Glos Users in South Glos Homes,Permanent Nursing,Beaufort Grange Care Home,1223.37, 02-Sep-2014
190,Revenue,CCHD,South Glos Users in South Glos Homes,Permanent Nursing,Beaufort Grange Care Home,1615.83, 02-Sep-2014
191,Revenue,CCHD,South Glos Users in South Glos Homes,Permanent Nursing,Beaufort Grange Care Home,776.23, 02-Sep-2014
192,Revenue,CCHD,South Glos Users in South Glos Homes,Permanent Nursing,Beaufort Grange Care Home,1520.78, 02-Sep-2014
193,Revenue,CCHD,Bed Purchasing - North,Permanent Residential,Beaufort House,1900.32, 02-Sep-2014
194,Revenue,CCHD,Bed Purchasing - North,Permanent Residential,Beaufort House,1900.32, 30-Sep-2014
195,Revenue,CCHD,Bed Purchasing - North,Permanent Residential,Beaufort House,1674.72, 02-Sep-2014
196,Revenue,CCHD,Bed Purchasing - North,Permanent Residential,Beaufort House,1674.72, 30-Sep-2014
197,Revenue,CCHD,Bed Purchasing - North,Permanent Residential,Beaufort House,1824.2, 02-Sep-2014
198,Revenue,CCHD,Bed Purchasing - North,Permanent Residential,Beaufort House,1824.2, 30-Sep-2014
199,Revenue,CCHD,Bed purchasing - Elderly MH - North,Permanent Residential,Beaufort House,1537.92, 02-Sep-2014
200,Revenue,CCHD,Bed Purchasing - North,Permanent Residential,Beaufort House,1390.4, 02-Sep-2014
201,Revenue,CCHD,Bed Purchasing - North,Permanent Residential,Beaufort House,1390.4, 30-Sep-2014
202,Revenue,CCHD,Bed purchasing - Elderly MH - North,Permanent Residential,Beaufort House,6812.64, 02-Sep-2014
203,Revenue,CCHD,Bed purchasing - Elderly MH - North,Permanent Residential,Beaufort House,1434.24, 02-Sep-2014
204,Revenue,CCHD,Bed purchasing - Elderly MH - North,Permanent Residential,Beaufort House,1434.24, 30-Sep-2014
205,Revenue,CCHD,Bed Purchasing - South,Respite Planned - Residential,Beaufort House,588.58, 02-Sep-2014
206,Revenue,CCHD,Bed Purchasing - Frenchay Hospital,Permanent Residential,Beaufort House,7291.43, 30-Sep-2014
207,Revenue,CCHD,Bed Purchasing - North,Respite Planned - Residential,Beaufort House,1254.29, 02-Sep-2014
208,Revenue,CCHD,Bed Purchasing - North,Respite Planned - Residential,Beaufort House,828.57, 30-Sep-2014
209,Revenue,CCHD,Bed Purchasing - Southmead Hospital,Permanent Residential,Beaufort House,2320, 02-Sep-2014
210,Revenue,CCHD,Bed Purchasing - Southmead Hospital,Permanent Residential,Beaufort House,2320, 30-Sep-2014
211,Revenue,CCHD,Bed Purchasing - North,Permanent Residential,Beaufort House,1860.64, 02-Sep-2014
212,Revenue,CCHD,Bed Purchasing - North,Permanent Residential,Beaufort House,1860.64, 30-Sep-2014
213,Revenue,CCHD,Bed Purchasing - Southmead Hospital,Respite Planned - Residential,Beaufort House,828.57, 30-Sep-2014
214,Revenue,CCHD,Bed Purchasing - North,Permanent Residential,Beaufort House,1755.08, 02-Sep-2014
215,Revenue,CCHD,Bed Purchasing - North,Permanent Residential,Beaufort House,1755.08, 30-Sep-2014
216,Revenue,CCHD,Bed Purchasing - South,Respite Emergency - Residential,Beaufort House,1657.14, 02-Sep-2014
217,Revenue,CCHD,Bed Purchasing - South,Respite Emergency - Residential,Beaufort House,1740, 30-Sep-2014
218,Revenue,CCHD,Bed purchasing - Elderly MH - North,Permanent Residential,Beaufort House,1706.44, 02-Sep-2014
219,Revenue,CCHD,Bed purchasing - Elderly MH - North,Permanent Residential,Beaufort House,1706.44, 30-Sep-2014
220,Revenue,CCHD,Bed Purchasing - Under 65s PWLD - South,Permanent Residential,Bedrock Lodge,3151.8, 30-Sep-2014
221,Revenue,CCHD,Bed purchasing - Elderly PWLD - South,Permanent Residential,Bedrock Lodge,2949.44, 02-Sep-2014
222,Revenue,CCHD,Bed purchasing - Elderly PWLD - South,Permanent Residential,Bedrock Lodge,2949.44, 30-Sep-2014
223,Revenue,CCHD,Section 117 Placements MH Younger,Permanent Residential,Bedrock Lodge,1864.88, 02-Sep-2014
224,Revenue,CCHD,Section 117 Placements MH Younger,Permanent Residential,Bedrock Lodge,1864.88, 30-Sep-2014
225,Revenue,CCHD,Bed Purchasing - North,Permanent Nursing,Beech House,2378.48, 02-Sep-2014
226,Revenue,CCHD,Bed Purchasing - North,Permanent Nursing,Beech House,2378.48, 30-Sep-2014
227,Revenue,CCHD,Bed Purchasing - Southmead Hospital,Permanent Nursing,Beech House,1439.96, 02-Sep-2014
228,Revenue,CCHD,South Glos Users in South Glos Homes,Permanent Nursing,Beech House,1885.13, 30-Sep-2014
229,Revenue,CCHD,Bed Purchasing - Southmead Hospital,Permanent Nursing,Beech House,1439.96, 30-Sep-2014
230,Revenue,CCHD,Bed Purchasing - North,Permanent Nursing,Beech House,1320.2, 02-Sep-2014
231,Revenue,CCHD,Bed Purchasing - North,Permanent Nursing,Beech House,943, 02-Sep-2014
232,Revenue,CCHD,Bed Purchasing - North,Permanent Nursing,Beech House,1320.2, 30-Sep-2014
233,Revenue,CCHD,Bed Purchasing - North,Permanent Nursing,Beech House,1918.6, 30-Sep-2014
234,Revenue,CCHD,Bed Purchasing - North,Permanent Nursing,Beech House,961.63, 30-Sep-2014
235,Revenue,CCHD,Bed purchasing - Elderly MH - North,Permanent Nursing,Beech House,5254.21, 02-Sep-2014
236,Revenue,CCHD,Bed purchasing - Elderly MH - North,Permanent Nursing,Beech House,1653.8, 02-Sep-2014
237,Revenue,CCHD,Bed purchasing - Elderly MH - North,Permanent Nursing,Beech House,1653.8, 30-Sep-2014
238,Revenue,CCHD,South Glos Users in South Glos Homes,Permanent Nursing,Beech House,887.12, 02-Sep-2014
239,Revenue,CCHD,Bed Purchasing - North,Permanent Nursing,Beech House,1352.2, 02-Sep-2014
240,Revenue,CCHD,Bed Purchasing - North,Permanent Nursing,Beech House,1352.2, 30-Sep-2014
241,Revenue,CCHD,South Glos Users in South Glos Homes,Permanent Nursing,Beech House,2043.54, 02-Sep-2014
242,Revenue,CCHD,Swift Dump Code,Permanent Residential,Beech House,950.33, 02-Sep-2014
243,Revenue,CCHD,Bed Purchasing - North,Permanent Nursing,Beech House,879.56, 02-Sep-2014
244,Revenue,CCHD,Bed Purchasing - North,Permanent Nursing,Beech House,879.56, 30-Sep-2014
245,Revenue,CCHD,Bed Purchasing - North,Permanent Residential,Beech House,1911.24, 02-Sep-2014
246,Revenue,CCHD,Bed Purchasing - North,Permanent Residential,Beech House,1911.24, 30-Sep-2014
247,Revenue,CCHD,Bed Purchasing - North,Permanent Nursing,Beech House,2127.2, 02-Sep-2014
248,Revenue,CCHD,Bed Purchasing - North,Permanent Nursing,Beech House,2127.2, 30-Sep-2014
249,Revenue,CCHD,Bed Purchasing - North,Permanent Nursing,Beech House,720.44, 02-Sep-2014
250,Revenue,CCHD,Bed Purchasing - North,Permanent Nursing,Beech House,720.44, 30-Sep-2014
251,Revenue,CCHD,Bed Purchasing - North,Permanent Residential,Beech House,1394.08, 02-Sep-2014
252,Revenue,CCHD,Bed Purchasing - North,Permanent Residential,Beech House,1394.08, 30-Sep-2014
253,Revenue,CCHD,South Glos Users in South Glos Homes,Permanent Nursing,Beech House,1314.84, 30-Sep-2014
254,Revenue,CCHD,South Glos Users in South Glos Homes,Permanent Nursing,Beech House,1172.27, 30-Sep-2014
255,Revenue,CCHD,Bed Purchasing - Elderly S117- North,Permanent Nursing,Blossom Field,1992, 02-Sep-2014
256,Revenue,CCHD,Bed Purchasing - Elderly S117- North,Permanent Nursing,Blossom Field,1992, 30-Sep-2014
257,Revenue,CCHD,Bed Purchasing - North,Permanent Nursing,Blossom Field,1935.64, 02-Sep-2014
258,Revenue,CCHD,Bed Purchasing - North,Permanent Nursing,Blossom Field,1935.64, 30-Sep-2014
259,Revenue,CCHD,South Glos Users in South Glos Homes,Permanent Nursing,Blossom Field,1821.76, 02-Sep-2014
260,Revenue,CCHD,South Glos Users in South Glos Homes,Permanent Nursing,Blossom Field,998.01, 30-Sep-2014
261,Revenue,CCHD,South Glos Users in South Glos Homes,Permanent Nursing,Blossom Field,2645.52, 30-Sep-2014
262,Revenue,CCHD,South Glos Users in South Glos Homes,Permanent Nursing,Blossom Field,564.63, 30-Sep-2014
263,Revenue,CCHD,South Glos Users in South Glos Homes,Permanent Nursing,Blossom Field,2645.52, 30-Sep-2014
264,Revenue,CCHD,South Glos Users in South Glos Homes,Permanent Nursing,Blossom Field,1270.43, 30-Sep-2014
265,Revenue,CCHD,South Glos Users in South Glos Homes,Permanent Nursing,Blossom Field,14933.2, 30-Sep-2014
266,Revenue,CCHD,South Glos Users in South Glos Homes,Permanent Nursing,Blossom Field,998.01, 30-Sep-2014
267,Revenue,CCHD,South Glos Users in South Glos Homes,Permanent Nursing,Blossom Field,1647.51, 30-Sep-2014
268,Revenue,CCHD,Bed Purchasing - North,Permanent Nursing,Blossom Field,2337, 02-Sep-2014
269,Revenue,CCHD,Bed Purchasing - North,Permanent Nursing,Blossom Field,2337, 30-Sep-2014
270,Revenue,CCHD,Bed Purchasing - North,Permanent Nursing,Blossom Field,8792.94, 02-Sep-2014
271,Revenue,CCHD,Bed Purchasing - North,Permanent Nursing,Blossom Field,1863.62, 30-Sep-2014
272,Revenue,CCHD,Bed purchasing - Elderly MH - North,Permanent Nursing,Blossom Field,1425.12, 02-Sep-2014
273,Revenue,CCHD,Bed purchasing - Elderly MH - North,Permanent Nursing,Blossom Field,1425.12, 30-Sep-2014
274,Revenue,CCHD,South Glos Users in South Glos Homes,Permanent Nursing,Blossom Field,2645.52, 30-Sep-2014
275,Revenue,CCHD,South Glos Users in South Glos Homes,Permanent Nursing,Blossom Field,1270.43, 30-Sep-2014
276,Revenue,CCHD,South Glos Users in South Glos Homes,Permanent Nursing,Blossom Field,1710.87, 30-Sep-2014
277,Revenue,CCHD,Bed Purchasing - South,Permanent Nursing,Blossom Field,1909.84, 02-Sep-2014
278,Revenue,CCHD,Bed Purchasing - South,Permanent Nursing,Blossom Field,1909.84, 30-Sep-2014
279,Revenue,CCHD,Bed Purchasing - Frenchay Hospital,Permanent Nursing,Blossom Field,6272.69, 02-Sep-2014
280,Revenue,CCHD,Bed Purchasing - Frenchay Hospital,Permanent Nursing,Blossom Field,2545.44, 30-Sep-2014
281,Revenue,CCHD,Bed Purchasing - North,Permanent Nursing,Blossom Fields,2093.16, 23-Sep-2014
282,Revenue,CCHD,Bed Purchasing - Southmead Hospital,Permanent Nursing,Blossom Fields,2093.16, 23-Sep-2014
283,Revenue,CCHD,Bed Purchasing - North,Permanent Nursing,Blossom Fields,2588.96, 23-Sep-2014
284,Revenue,CCHD,Bed Purchasing - North,Permanent Nursing,Blossom Fields,1794.14, 23-Sep-2014
285,Revenue,CCHD,Bed Purchasing - Southmead Hospital,Permanent Nursing,Blossom Fields,1794.14, 23-Sep-2014
286,Revenue,CCHD,Training - Adult Services,Training Expenses,Bob Dawson,1350, 10-Sep-2014
287,Revenue,CCHD,Bed purchasing - Under 65s PWLD - North,Permanent Residential,Bradbury House,8760.16, 02-Sep-2014
288,Revenue,CCHD,Bed purchasing - Under 65s PWLD - North,Permanent Residential,Bradbury House,8760.16, 30-Sep-2014
289,Revenue,CCHD,Bed Purchasing - North,Permanent Residential,Bradley House,1533.8, 02-Sep-2014
290,Revenue,CCHD,Bed Purchasing - North,Permanent Residential,Bradley House,1533.8, 30-Sep-2014
291,Revenue,CCHD,Home Care - Elderly - North,Other Small Contracts,Bradley House Home Care Services,1319.43, 04-Sep-2014
292,Revenue,CCHD,Day Care - North,Day Care / Social Activities,Bradley House Home Care Services,102.48, 04-Sep-2014
293,Revenue,CCHD,Home Care - Elderly - North,Other Small Contracts,Bradley House Home Care Services,1306.62, 08-Sep-2014
294,Revenue,CCHD,Day Care - North,Day Care / Social Activities,Bradley House Home Care Services,102.48, 08-Sep-2014
295,Revenue,CCHD,Home Care - Elderly - North,Other Small Contracts,Bradley House Home Care Services,1259.65, 15-Sep-2014
296,Revenue,CCHD,Day Care - North,Day Care / Social Activities,Bradley House Home Care Services,102.48, 15-Sep-2014
297,Revenue,CCHD,Home Care - Elderly - North,Other Small Contracts,Bradley House Home Care Services,1315.16, 23-Sep-2014
298,Revenue,CCHD,Day Care - North,Day Care / Social Activities,Bradley House Home Care Services,153.72, 23-Sep-2014
299,Revenue,CCHD,Alexandra Way,"Provisions (Food, etc)",Brake Bros,587.81, 05-Sep-2014
300,Revenue,CCHD,Woodleaze,"Provisions (Food, etc)",Brake Bros,561.6, 24-Sep-2014
301,Revenue,CCHD,Bed Purchasing - Under 65s PWLD - South,Permanent Nursing,Brandon Trust,5036.84, 02-Sep-2014
302,Revenue,CCHD,Bed Purchasing - Under 65s PWLD - South,Permanent Nursing,Brandon Trust,5036.84, 30-Sep-2014
303,Revenue,CCHD,Bed Purchasing - S28A - Over 65- North,Permanent Residential,Brandon Trust,3097.08, 02-Sep-2014
304,Revenue,CCHD,Bed Purchasing - S28A - Over 65- North,Permanent Residential,Brandon Trust,3097.08, 30-Sep-2014
305,Revenue,CCHD,Bed Purchasing - Under 65s PWLD - South,Permanent Residential,Brandon Trust,10268.44, 02-Sep-2014
306,Revenue,CCHD,Bed Purchasing - Under 65s PWLD - South,Permanent Residential,Brandon Trust,10268.44, 30-Sep-2014
307,Revenue,CCHD,Bed Purchasing - Under 65s PWLD - South,Permanent Residential,Brandon Trust,4036.12, 02-Sep-2014
308,Revenue,CCHD,Bed Purchasing - Under 65s PWLD - South,Permanent Residential,Brandon Trust,4036.12, 30-Sep-2014
309,Revenue,CCHD,Bed purchasing - Elderly PWLD - South,Permanent Residential,Brandon Trust,3459.92, 02-Sep-2014
310,Revenue,CCHD,Bed purchasing - Elderly PWLD - South,Permanent Residential,Brandon Trust,3459.92, 30-Sep-2014
311,Revenue,CCHD,Bed Purchasing - LD S28A- Over 65- South,Permanent Nursing,Brandon Trust,4860.44, 02-Sep-2014
312,Revenue,CCHD,Bed Purchasing - LD S28A- Over 65- South,Permanent Nursing,Brandon Trust,4860.44, 30-Sep-2014
313,Revenue,CCHD,Bed Purchasing - Under 65s PWLD - South,Permanent Nursing,Brandon Trust,5036.84, 02-Sep-2014
314,Revenue,CCHD,Bed Purchasing - Under 65s PWLD - South,Permanent Nursing,Brandon Trust,5036.84, 30-Sep-2014
315,Revenue,CCHD,Bed purchasing - S28A Under 65 - South,Permanent Nursing,Brandon Trust,5359.12, 02-Sep-2014
316,Revenue,CCHD,Bed purchasing - S28A Under 65 - South,Permanent Nursing,Brandon Trust,5359.12, 30-Sep-2014
317,Revenue,CCHD,Bed purchasing - S28A Under 65 - South,Permanent Residential,Brandon Trust,4901.16, 02-Sep-2014
318,Revenue,CCHD,Bed purchasing - S28A Under 65 - South,Permanent Residential,Brandon Trust,4901.16, 30-Sep-2014
319,Revenue,CCHD,Bed purchasing - S28A Under 65 - South,Permanent Nursing,Brandon Trust,5359.12, 02-Sep-2014
320,Revenue,CCHD,Bed purchasing - S28A Under 65 - South,Permanent Nursing,Brandon Trust,5359.12, 30-Sep-2014
321,Revenue,CCHD,Bed Purchasing - LD S28A- Over 65- South,Permanent Nursing,Brandon Trust,5182.72, 02-Sep-2014
322,Revenue,CCHD,Bed Purchasing - LD S28A- Over 65- South,Permanent Nursing,Brandon Trust,5182.72, 30-Sep-2014
323,Revenue,CCHD,Bed Purchasing - LD S28A- Over 65- South,Permanent Nursing,Brandon Trust,4849.76, 02-Sep-2014
324,Revenue,CCHD,Bed Purchasing - LD S28A- Over 65- South,Permanent Nursing,Brandon Trust,4849.76, 30-Sep-2014
325,Revenue,CCHD,Bed Purchasing - Under 65s PWLD - South,Permanent Residential,Brandon Trust,3273.48, 02-Sep-2014
326,Revenue,CCHD,Bed Purchasing - Under 65s PWLD - South,Permanent Residential,Brandon Trust,3273.48, 30-Sep-2014
327,Revenue,CCHD,Bed Purchasing - S28A - Over 65- North,Permanent Nursing,Brandon Trust,4810.28, 02-Sep-2014
328,Revenue,CCHD,Bed Purchasing - S28A - Over 65- North,Permanent Nursing,Brandon Trust,4810.28, 30-Sep-2014
329,Revenue,CCHD,Bed purchasing - S28A Under 65 - South,Permanent Residential,Brandon Trust,5202.76, 02-Sep-2014
330,Revenue,CCHD,Bed purchasing - S28A Under 65 - South,Permanent Residential,Brandon Trust,5202.76, 30-Sep-2014
331,Revenue,CCHD,Bed purchasing - S28A Under 65 - South,Permanent Residential,Brandon Trust,5258.44, 02-Sep-2014
332,Revenue,CCHD,Bed purchasing - S28A Under 65 - South,Permanent Residential,Brandon Trust,5258.44, 30-Sep-2014
333,Revenue,CCHD,Bed Purchasing - S28A - Over 65- North,Permanent Residential,Brandon Trust,10996.28, 02-Sep-2014
334,Revenue,CCHD,Bed Purchasing - S28A - Over 65- North,Permanent Residential,Brandon Trust,10996.28, 30-Sep-2014
335,Revenue,CCHD,Bed purchasing - S28A Under 65 - South,Permanent Nursing,Brandon Trust,5399.12, 02-Sep-2014
336,Revenue,CCHD,Bed purchasing - S28A Under 65 - South,Permanent Nursing,Brandon Trust,5399.12, 30-Sep-2014
337,Revenue,CCHD,Bed purchasing - S28A Under 65 - South,Permanent Nursing,Brandon Trust,5359.12, 02-Sep-2014
338,Revenue,CCHD,Bed purchasing - S28A Under 65 - South,Permanent Nursing,Brandon Trust,5359.12, 30-Sep-2014
339,Revenue,CCHD,Bed purchasing -S28A  Under 65 - North,Permanent Nursing,Brandon Trust,4783.16, 02-Sep-2014
340,Revenue,CCHD,Bed purchasing -S28A  Under 65 - North,Permanent Nursing,Brandon Trust,4783.16, 30-Sep-2014
341,Revenue,CCHD,Bed purchasing - S28A Under 65 - South,Permanent Residential,Brandon Trust,5258.44, 02-Sep-2014
342,Revenue,CCHD,Bed purchasing - S28A Under 65 - South,Permanent Residential,Brandon Trust,5258.44, 30-Sep-2014
343,Revenue,CCHD,Bed Purchasing - LD S28A- Over 65- South,Permanent Residential,Brandon Trust,4748.2, 02-Sep-2014
344,Revenue,CCHD,Bed Purchasing - LD S28A- Over 65- South,Permanent Residential,Brandon Trust,4748.2, 30-Sep-2014
345,Revenue,CCHD,Bed Purchasing - Under 65s PWLD - South,Permanent Residential,Brandon Trust,4006.72, 02-Sep-2014
346,Revenue,CCHD,Bed Purchasing - Under 65s PWLD - South,Permanent Residential,Brandon Trust,4006.72, 30-Sep-2014
347,Revenue,CCHD,Day Care - North,Day Care / Social Activities,Bridge House (Residential Home) Ltd,2478, 01-Sep-2014
348,Revenue,CCHD,Day Care - North,Day Care / Social Activities,Bridge House (Residential Home) Ltd,531, 22-Sep-2014
349,Revenue,CCHD,Day Care - North,Day Care / Social Activities,Bridge House (Residential Home) Ltd,531, 22-Sep-2014
350,Revenue,CCHD,Bed Purchasing - North,Respite Emergency - Residential,Bridge House Care Home,580, 02-Sep-2014
351,Revenue,CCHD,Bed Purchasing - North,Permanent Residential,Bridge House Care Home,1167.32, 02-Sep-2014
352,Revenue,CCHD,Bed Purchasing - North,Permanent Residential,Bridge House Care Home,1167.32, 30-Sep-2014
353,Revenue,CCHD,Bed Purchasing - South,Permanent Residential,Bridge House Care Home,1444.6, 02-Sep-2014
354,Revenue,CCHD,Bed Purchasing - South,Permanent Residential,Bridge House Care Home,1444.6, 30-Sep-2014
355,Revenue,CCHD,Bed Purchasing - North,Respite Planned - Residential,Bridge House Care Home,1242.86, 02-Sep-2014
356,Revenue,CCHD,Bed Purchasing - Elderly MH - South,Permanent Residential,Brightbow,2095.28, 02-Sep-2014
357,Revenue,CCHD,Bed Purchasing - Elderly MH - South,Permanent Residential,Brightbow,2095.28, 30-Sep-2014
358,Revenue,CCHD,MH Purchasing - Younger,Permanent Residential,Brightbow,1493.96, 02-Sep-2014
359,Revenue,CCHD,MH Purchasing - Younger,Permanent Residential,Brightbow,1493.96, 30-Sep-2014
360,Revenue,CCHD,Supported Living - North,Private & Voluntary Home Care,Bristol Houses UK Limited,1047.8, 01-Sep-2014
361,Revenue,CCHD,Supported Living - North,Private & Voluntary Home Care,Bristol Houses UK Limited,1056.6, 17-Sep-2014
362,Revenue,CCHD,Day Care - North,Day Care / Social Activities,Bristol Houses UK Limited,1531.2, 01-Sep-2014
363,Revenue,CCHD,Supported Living - North,Private & Voluntary Home Care,Bristol Houses UK Limited,598.03, 01-Sep-2014
364,Revenue,CCHD,Supported Living - North,Private & Voluntary Home Care,Bristol Houses UK Limited,605.6, 17-Sep-2014
365,Revenue,CCHD,Supported Living - North,Private & Voluntary Home Care,Bristol Houses UK Limited,919.76, 01-Sep-2014
366,Revenue,CCHD,Supported Living - North,Private & Voluntary Home Care,Bristol Houses UK Limited,853.14, 17-Sep-2014
367,Revenue,CCHD,Day Care - North,Day Care / Social Activities,Bristol Houses UK Limited,605.6, 15-Sep-2014
368,Revenue,CCHD,Day Care - North,Day Care / Social Activities,Bristol Houses UK Limited,605.6, 17-Sep-2014
369,Revenue,CCHD,Bed and Breakfast,Bed & Breakfast,Bristol Housing & Support Limited,1330, 19-Sep-2014
370,Revenue,CCHD,Bed and Breakfast,Bed & Breakfast,Bristol Housing & Support Limited,1330, 19-Sep-2014
371,Revenue,CCHD,Bed and Breakfast,Bed & Breakfast,Bristol Housing & Support Limited,1610, 29-Sep-2014
372,Revenue,CCHD,Bed and Breakfast,Bed & Breakfast,Bristol Housing & Support Limited,1610, 29-Sep-2014
373,Revenue,CCHD,Home Care - Elderly - North,Day Care / Social Activities,Britannia House,1029.24, 02-Sep-2014
374,Revenue,CCHD,Home Care - Elderly - North,Day Care / Social Activities,Britannia House,686.16, 30-Sep-2014
375,Revenue,CCHD,Home Care - Elderly - South,Day Care / Social Activities,Britannia House,914.88, 02-Sep-2014
376,Revenue,CCHD,Home Care - Elderly - South,Day Care / Social Activities,Britannia House,914.88, 30-Sep-2014
377,Revenue,CCHD,Home Care - Elderly - North,Day Care / Social Activities,Britannia House,686.16, 02-Sep-2014
378,Revenue,CCHD,Home Care - Elderly - North,Day Care / Social Activities,Britannia House,686.16, 30-Sep-2014
379,Revenue,CCHD,Home Care - Elderly - North,Day Care / Social Activities,Britannia House,914.88, 02-Sep-2014
380,Revenue,CCHD,Home Care - Elderly - North,Day Care / Social Activities,Britannia House,914.88, 30-Sep-2014
381,Revenue,CCHD,Home Care - Elderly - South,Day Care / Social Activities,Britannia House,686.16, 02-Sep-2014
382,Revenue,CCHD,Home Care - Elderly - South,Day Care / Social Activities,Britannia House,686.16, 30-Sep-2014
383,Revenue,CCHD,Home Care - Elderly - North,Day Care / Social Activities,Britannia House,686.16, 02-Sep-2014
384,Revenue,CCHD,Home Care - Elderly - North,Day Care / Social Activities,Britannia House,686.16, 30-Sep-2014
385,Revenue,CCHD,Home Care - Elderly - South,Day Care / Social Activities,Britannia House,571.8, 02-Sep-2014
386,Revenue,CCHD,Home Care - Elderly - South,Day Care / Social Activities,Britannia House,571.8, 30-Sep-2014
387,Revenue,CCHD,Home Care - Elderly - South,Day Care / Social Activities,Britannia House,1143.6, 02-Sep-2014
388,Revenue,CCHD,Home Care - Elderly - South,Day Care / Social Activities,Britannia House,1143.6, 30-Sep-2014
389,Revenue,CCHD,Home Care - Elderly - South,Day Care / Social Activities,Britannia House,686.16, 02-Sep-2014
390,Revenue,CCHD,Home Care - Elderly - South,Day Care / Social Activities,Britannia House,686.16, 30-Sep-2014
391,Revenue,CCHD,Home Care - Elderly - South,Day Care / Social Activities,Britannia House,686.16, 02-Sep-2014
392,Revenue,CCHD,Home Care - Elderly - South,Day Care / Social Activities,Britannia House,686.16, 30-Sep-2014
393,Revenue,CCHD,Home Care - Elderly - South,Day Care / Social Activities,Britannia House,686.16, 02-Sep-2014
394,Revenue,CCHD,Home Care - Elderly - South,Day Care / Social Activities,Britannia House,686.16, 30-Sep-2014
395,Revenue,CCHD,Supporting People Programme,Grants to Voluntary Bodies,Bromford Housing Group,14050.25, 01-Sep-2014
396,Revenue,CCHD,Sexual Health,Other Small Contracts,Brook Advisory Centre (Avon),17955, 03-Sep-2014
397,Revenue,CCHD,Sexual Health,Other Small Contracts,Brook Advisory Centre (Avon),11382, 03-Sep-2014
398,Revenue,CCHD,Sexual Health,Other Small Contracts,Brook Advisory Centre (Avon),11382, 03-Sep-2014
399,Revenue,CCHD,Sexual Health,Other Small Contracts,Brook Advisory Centre (Avon),17955, 22-Sep-2014
400,Revenue,CCHD,Home Care - Elderly - North,Private & Voluntary Home Care,Brunelcare,23160, 01-Sep-2014
401,Revenue,CCHD,Home Care - Elderly - North,Private & Voluntary Home Care,Brunelcare,23160, 08-Sep-2014
402,Revenue,CCHD,Home Care - Elderly - North,Private & Voluntary Home Care,Brunelcare,23160, 15-Sep-2014
403,Revenue,CCHD,Home Care - Elderly - North,Private & Voluntary Home Care,Brunelcare,23160, 22-Sep-2014
404,Revenue,CCHD,Home Care - Elderly - North,Private & Voluntary Home Care,Brunelcare,23160, 29-Sep-2014
405,Revenue,CCHD,Bed Purchasing - Elderly MH - South,Permanent Nursing,Brunelcare,1875.51, 17-Sep-2014
406,Revenue,CCHD,Bed Purchasing - South,Permanent Nursing,Brunelcare,1918.46, 17-Sep-2014
407,Revenue,CCHD,Bed Purchasing - South,Permanent Nursing,Brunelcare,1564.59, 17-Sep-2014
408,Revenue,CCHD,Bed Purchasing - Elderly MH - South,Permanent Nursing,Brunelcare,1914.9, 17-Sep-2014
409,Revenue,CCHD,Bed Purchasing - South,Permanent Nursing,Brunelcare,1970.61, 17-Sep-2014
410,Revenue,CCHD,Bed Purchasing - South,Permanent Nursing,Brunelcare,1276.5, 17-Sep-2014
411,Revenue,CCHD,Bed Purchasing - Elderly MH - South,Permanent Nursing,Brunelcare,1955.83, 17-Sep-2014
412,Revenue,CCHD,Bed Purchasing - South,Permanent Nursing,Brunelcare,1970.4, 17-Sep-2014
413,Revenue,CCHD,Bed Purchasing - Elderly S117- North,Permanent Nursing,Brunelcare,2501.83, 17-Sep-2014
414,Revenue,CCHD,Bed Purchasing - Elderly S117- North,Permanent Nursing,Brunelcare,2501.83, 17-Sep-2014
415,Revenue,CCHD,Bed purchasing - Elderly S117 - South,Permanent Nursing,Brunelcare,2501.83, 17-Sep-2014
416,Revenue,CCHD,Bed Purchasing - Frenchay Hospital,Permanent Nursing,Brunelcare,1680.73, 17-Sep-2014
417,Revenue,CCHD,Bed Purchasing - Frenchay Hospital,Permanent Nursing,Brunelcare,884.49, 17-Sep-2014
418,Revenue,CCHD,Bed Purchasing - Southmead Hospital,Permanent Nursing,Brunelcare,1639.07, 17-Sep-2014
419,Revenue,CCHD,Bed Purchasing - South,Permanent Nursing,Brunelcare,1751.74, 17-Sep-2014
420,Revenue,CCHD,Bed Purchasing - South,Permanent Nursing,Brunelcare,1468.29, 17-Sep-2014
421,Revenue,CCHD,Bed Purchasing - South,Permanent Nursing,Brunelcare,1393.37, 17-Sep-2014
422,Revenue,CCHD,Bed Purchasing - Frenchay Hospital,Permanent Nursing,Brunelcare,1586.14, 17-Sep-2014
423,Revenue,CCHD,Bed Purchasing - South,Permanent Nursing,Brunelcare,1970.61, 17-Sep-2014
424,Revenue,CCHD,Bed Purchasing - Southmead Hospital,Permanent Nursing,Brunelcare,1751.74, 17-Sep-2014
425,Revenue,CCHD,Bed Purchasing - South,Permanent Nursing,Brunelcare,1751.74, 17-Sep-2014
426,Revenue,CCHD,Bed Purchasing - North,Permanent Nursing,Brunelcare,1751.74, 17-Sep-2014
427,Revenue,CCHD,Bed Purchasing - Southmead Hospital,Permanent Nursing,Brunelcare,1751.74, 17-Sep-2014
428,Revenue,CCHD,Bed Purchasing - Frenchay Hospital,Permanent Nursing,Brunelcare,1648.2, 17-Sep-2014
429,Revenue,CCHD,Bed Purchasing - Elderly S117- North,Permanent Nursing,Brunelcare,2501.83, 17-Sep-2014
430,Revenue,CCHD,Bed Purchasing - Southmead Hospital,Permanent Nursing,Brunelcare,1430.19, 17-Sep-2014
431,Revenue,CCHD,Bed Purchasing - South,Permanent Nursing,Brunelcare,1751.74, 17-Sep-2014
432,Revenue,CCHD,Bed Purchasing - South,Permanent Nursing,Brunelcare,2282.96, 17-Sep-2014
433,Revenue,CCHD,Bed Purchasing - Elderly MH - South,Permanent Nursing,Brunelcare,1875.51, 17-Sep-2014
434,Revenue,CCHD,Bed Purchasing - South,Permanent Nursing,Brunelcare,1918.46, 17-Sep-2014
435,Revenue,CCHD,Bed Purchasing - South,Permanent Nursing,Brunelcare,1564.59, 17-Sep-2014
436,Revenue,CCHD,Bed Purchasing - Elderly MH - South,Permanent Nursing,Brunelcare,1914.9, 17-Sep-2014
437,Revenue,CCHD,Bed Purchasing - South,Permanent Nursing,Brunelcare,1970.61, 17-Sep-2014
438,Revenue,CCHD,Bed Purchasing - South,Permanent Nursing,Brunelcare,1191.4, 17-Sep-2014
439,Revenue,CCHD,Bed Purchasing - Elderly MH - South,Permanent Nursing,Brunelcare,1955.83, 17-Sep-2014
440,Revenue,CCHD,Bed Purchasing - South,Permanent Nursing,Brunelcare,1970.4, 17-Sep-2014
441,Revenue,CCHD,Bed Purchasing - Elderly S117- North,Permanent Nursing,Brunelcare,2168.25, 17-Sep-2014
442,Revenue,CCHD,Bed Purchasing - Elderly S117- North,Permanent Nursing,Brunelcare,2501.83, 17-Sep-2014
443,Revenue,CCHD,Bed purchasing - Elderly S117 - South,Permanent Nursing,Brunelcare,2501.83, 17-Sep-2014
444,Revenue,CCHD,Bed Purchasing - Frenchay Hospital,Permanent Nursing,Brunelcare,1680.73, 17-Sep-2014
445,Revenue,CCHD,Bed Purchasing - Frenchay Hospital,Permanent Nursing,Brunelcare,884.49, 17-Sep-2014
446,Revenue,CCHD,Bed Purchasing - Southmead Hospital,Permanent Nursing,Brunelcare,1639.07, 17-Sep-2014
447,Revenue,CCHD,Bed Purchasing - South,Permanent Nursing,Brunelcare,1751.74, 17-Sep-2014
448,Revenue,CCHD,Bed Purchasing - South,Permanent Nursing,Brunelcare,1468.29, 17-Sep-2014
449,Revenue,CCHD,Bed Purchasing - Frenchay Hospital,Permanent Nursing,Brunelcare,1498.72, 17-Sep-2014
450,Revenue,CCHD,Bed Purchasing - South,Permanent Nursing,Brunelcare,1393.37, 17-Sep-2014
451,Revenue,CCHD,Bed Purchasing - Frenchay Hospital,Permanent Nursing,Brunelcare,1586.14, 17-Sep-2014
452,Revenue,CCHD,Bed Purchasing - South,Permanent Nursing,Brunelcare,1970.61, 17-Sep-2014
453,Revenue,CCHD,Bed Purchasing - Southmead Hospital,Permanent Nursing,Brunelcare,1751.74, 17-Sep-2014
454,Revenue,CCHD,Bed Purchasing - North,Permanent Nursing,Brunelcare,1751.74, 17-Sep-2014
455,Revenue,CCHD,Bed Purchasing - Southmead Hospital,Permanent Nursing,Brunelcare,1751.74, 17-Sep-2014
456,Revenue,CCHD,Bed Purchasing - Frenchay Hospital,Permanent Nursing,Brunelcare,1648.2, 17-Sep-2014
457,Revenue,CCHD,Bed Purchasing - Elderly S117- North,Permanent Nursing,Brunelcare,2501.83, 17-Sep-2014
458,Revenue,CCHD,Bed Purchasing - Southmead Hospital,Permanent Nursing,Brunelcare,1430.19, 17-Sep-2014
459,Revenue,CCHD,Bed Purchasing - South,Permanent Nursing,Brunelcare,1751.74, 17-Sep-2014
460,Revenue,CCHD,Bed Purchasing - South,Permanent Nursing,Brunelcare,511.29, 17-Sep-2014
461,Revenue,CCHD,Bed Purchasing - South,Permanent Nursing,Brunelcare,1750.27, 17-Sep-2014
462,Revenue,CCHD,Bed Purchasing - Frenchay Hospital,Permanent Nursing,Brunelcare,903.06, 17-Sep-2014
463,Revenue,CCHD,Bed Purchasing - South,Permanent Nursing,Brunelcare,1515.84, 17-Sep-2014
464,Revenue,CCHD,Bed Purchasing - South,Permanent Nursing,Brunelcare,1751.74, 17-Sep-2014
465,Revenue,CCHD,Home Care - Elderly - South,Other Small Contracts,Brunelcare,3055.92, 08-Sep-2014
466,Revenue,CCHD,Home Care - Elderly - North,Other Small Contracts,Brunelcare,3206.88, 08-Sep-2014
467,Revenue,CCHD,Day Care - South,Day Care / Social Activities,Brunelcare,28.56, 08-Sep-2014
468,Revenue,CCHD,Day Care - North,Day Care / Social Activities,Brunelcare,48.96, 08-Sep-2014
469,Revenue,CCHD,Home Care - Elderly - South,Other Small Contracts,Brunelcare,3174.24, 04-Sep-2014
470,Revenue,CCHD,Home Care - Elderly - North,Other Small Contracts,Brunelcare,3288.48, 04-Sep-2014
471,Revenue,CCHD,Day Care - South,Day Care / Social Activities,Brunelcare,32.64, 04-Sep-2014
472,Revenue,CCHD,Day Care - North,Day Care / Social Activities,Brunelcare,48.96, 04-Sep-2014
473,Revenue,CCHD,Home Care - Elderly - South,Other Small Contracts,Brunelcare,3162, 15-Sep-2014
474,Revenue,CCHD,Home Care - Elderly - North,Other Small Contracts,Brunelcare,3480.24, 15-Sep-2014
475,Revenue,CCHD,Day Care - South,Day Care / Social Activities,Brunelcare,28.56, 15-Sep-2014
476,Revenue,CCHD,Day Care - North,Day Care / Social Activities,Brunelcare,48.96, 15-Sep-2014
477,Revenue,CCHD,Home Care - Elderly - South,Other Small Contracts,Brunelcare,3166.08, 15-Sep-2014
478,Revenue,CCHD,Home Care - Elderly - North,Other Small Contracts,Brunelcare,3557.76, 15-Sep-2014
479,Revenue,CCHD,Day Care - South,Day Care / Social Activities,Brunelcare,32.64, 15-Sep-2014
480,Revenue,CCHD,Day Care - North,Day Care / Social Activities,Brunelcare,44.88, 15-Sep-2014
481,Revenue,CCHD,Information Systems - Software,Computer Equipment - Purchase,BT Global Services Solutions,983.59, 22-Sep-2014
482,Revenue,CCHD,Bed Purchasing - Southmead Hospital,Permanent Nursing,Bupa Care Services  Bridge House,1902.4, 02-Sep-2014
483,Revenue,CCHD,Bed Purchasing - Southmead Hospital,Permanent Nursing,Bupa Care Services  Bridge House,1902.4, 30-Sep-2014
484,Revenue,CCHD,Bed Purchasing - Southmead Hospital,Permanent Nursing,Bupa Care Services  Bridge House,1674.48, 02-Sep-2014
485,Revenue,CCHD,Bed Purchasing - Southmead Hospital,Permanent Nursing,Bupa Care Services  Bridge House,1674.48, 30-Sep-2014
486,Revenue,CCHD,Bed purchasing - Phys Dis - North,Permanent Nursing,Bupa Care Services  Bridge House,5938.28, 02-Sep-2014
487,Revenue,CCHD,South Glos Users in all other LA Homes,Permanent Nursing,Bupa Care Services  Bridge House,610.44, 02-Sep-2014
488,Revenue,CCHD,Bed purchasing - Phys Dis - North,Permanent Nursing,Bupa Care Services  Bridge House,5938.28, 30-Sep-2014
489,Revenue,CCHD,South Glos Users in all other LA Homes,Permanent Nursing,Bupa Care Services  Bridge House,610.44, 30-Sep-2014
490,Revenue,CCHD,Bed purchasing - Elderly MH - North,Permanent Residential,Bupa Care Services  Bridge House,1987.24, 02-Sep-2014
491,Revenue,CCHD,Bed purchasing - Elderly MH - North,Permanent Residential,Bupa Care Services  Bridge House,1987.24, 30-Sep-2014
492,Revenue,CCHD,Day Care - North,Day Care / Social Activities,Camphill Communities Thornbury Limited,2615.52, 22-Sep-2014
493,Revenue,CCHD,Supported Living - North,Private & Voluntary Home Care,Camphill Communities Thornbury Limited,2601.72, 03-Sep-2014
494,Revenue,CCHD,Supported Living - North,Private & Voluntary Home Care,Camphill Communities Thornbury Limited,2164.48, 03-Sep-2014
495,Revenue,CCHD,Supported Living - North,Private & Voluntary Home Care,Camphill Communities Thornbury Limited,2487.24, 03-Sep-2014
496,Revenue,CCHD,Supported Living - North,Private & Voluntary Home Care,Camphill Communities Thornbury Limited,2516.08, 04-Sep-2014
497,Revenue,CCHD,Supported Living - North,Private & Voluntary Home Care,Camphill Communities Thornbury Limited,2270.44, 04-Sep-2014
498,Revenue,CCHD,Supported Living - North,Private & Voluntary Home Care,Camphill Communities Thornbury Limited,1819.48, 04-Sep-2014
499,Revenue,CCHD,Supported Living - North,Private & Voluntary Home Care,Camphill Communities Thornbury Limited,2337.16, 04-Sep-2014
500,Revenue,CCHD,Supported Living - North,Private & Voluntary Home Care,Camphill Communities Thornbury Limited,2235.68, 04-Sep-2014
501,Revenue,CCHD,Supported Living - North,Private & Voluntary Home Care,Camphill Communities Thornbury Limited,2719.32, 11-Sep-2014
502,Revenue,CCHD,Supported Living - North,Private & Voluntary Home Care,Camphill Communities Thornbury Limited,2835.16, 11-Sep-2014
503,Revenue,CCHD,Supported Living - North,Private & Voluntary Home Care,Camphill Communities Thornbury Limited,2535.76, 17-Sep-2014
504,Revenue,CCHD,Supported Living - North,Private & Voluntary Home Care,Camphill Communities Thornbury Limited,2635.92, 17-Sep-2014
505,Revenue,CCHD,Supported Living - North,Private & Voluntary Home Care,Camphill Communities Thornbury Limited,1849.2, 19-Sep-2014
506,Revenue,CCHD,Supported Living - North,Private & Voluntary Home Care,Camphill Communities Thornbury Limited,2324.84, 24-Sep-2014
507,Revenue,CCHD,Supported Living - North,Private & Voluntary Home Care,Camphill Communities Thornbury Limited,2080.08, 24-Sep-2014
508,Revenue,CCHD,Supported Living - North,Private & Voluntary Home Care,Camphill Communities Thornbury Limited,2046.32, 24-Sep-2014
509,Revenue,CCHD,Supported Living - North,Private & Voluntary Home Care,Camphill Communities Thornbury Limited,2601.72, 29-Sep-2014
510,Revenue,CCHD,Bed Purchasing - Elderly S117- North,Permanent Residential,Canjayor,2334.04, 02-Sep-2014
511,Revenue,CCHD,Bed Purchasing - Elderly S117- North,Permanent Residential,Canjayor,2334.04, 30-Sep-2014
512,Revenue,CCHD,Home Care - Elderly - South,Other Small Contracts,Care 1st Homecare,4347, 04-Sep-2014
513,Revenue,CCHD,Home Care - Elderly - North,Other Small Contracts,Care 1st Homecare,3217.2, 04-Sep-2014
514,Revenue,CCHD,Home care - Elderly MH - North,Other Small Contracts,Care 1st Homecare,67.2, 04-Sep-2014
515,Revenue,CCHD,Home Care - Elderly - South,Other Small Contracts,Care 1st Homecare,3742.2, 04-Sep-2014
516,Revenue,CCHD,Home Care - Elderly - North,Other Small Contracts,Care 1st Homecare,2919, 04-Sep-2014
517,Revenue,CCHD,Home care - Elderly MH - North,Other Small Contracts,Care 1st Homecare,33.6, 04-Sep-2014
518,Revenue,CCHD,Home Care - Elderly - South,Other Small Contracts,Care 1st Homecare,3982.26, 04-Sep-2014
519,Revenue,CCHD,Home Care - Elderly - North,Other Small Contracts,Care 1st Homecare,2969.4, 04-Sep-2014
520,Revenue,CCHD,Home care - Elderly MH - North,Other Small Contracts,Care 1st Homecare,16.8, 04-Sep-2014
521,Revenue,CCHD,Home Care - Elderly - South,Other Small Contracts,Care 1st Homecare,3945.57, 04-Sep-2014
522,Revenue,CCHD,Home Care - Elderly - North,Other Small Contracts,Care 1st Homecare,2923.2, 04-Sep-2014
523,Revenue,CCHD,Home care - Elderly MH - North,Other Small Contracts,Care 1st Homecare,16.8, 04-Sep-2014
524,Revenue,CCHD,Bed Purchasing - PWLD S 117 Placements,Permanent Residential,Care Community Ltd,7647.92, 02-Sep-2014
525,Revenue,CCHD,Bed Purchasing - PWLD S 117 Placements,Permanent Residential,Care Community Ltd,7647.92, 30-Sep-2014
526,Revenue,CCHD,Home Care - Elderly - North,Other Small Contracts,Care Horizons Limited,2148.97, 01-Sep-2014
527,Revenue,CCHD,Day Care - South,Day Care / Social Activities,Care Horizons Limited,249.2, 01-Sep-2014
528,Revenue,CCHD,Home Care - Elderly - North,Other Small Contracts,Care Horizons Limited,2148.97, 01-Sep-2014
529,Revenue,CCHD,Day Care - South,Day Care / Social Activities,Care Horizons Limited,249.2, 01-Sep-2014
530,Revenue,CCHD,Home Care - Elderly - North,Other Small Contracts,Care Horizons Limited,2142.59, 01-Sep-2014
531,Revenue,CCHD,Day Care - South,Day Care / Social Activities,Care Horizons Limited,249.2, 01-Sep-2014
532,Revenue,CCHD,Home Care - Elderly - North,Other Small Contracts,Care Horizons Limited,2145.84, 01-Sep-2014
533,Revenue,CCHD,Day Care - South,Day Care / Social Activities,Care Horizons Limited,293.7, 01-Sep-2014
534,Revenue,CCHD,Home Care - Elderly - North,Other Small Contracts,Care Horizons Limited,2148.98, 01-Sep-2014
535,Revenue,CCHD,Day Care - South,Day Care / Social Activities,Care Horizons Limited,311.5, 01-Sep-2014
536,Revenue,CCHD,Home Care - Elderly - North,Other Small Contracts,Care Horizons Limited,2148.99, 01-Sep-2014
537,Revenue,CCHD,Day Care - South,Day Care / Social Activities,Care Horizons Limited,311.5, 01-Sep-2014
538,Revenue,CCHD,Home Care - Elderly - North,Other Small Contracts,Care Horizons Limited,2148.97, 04-Sep-2014
539,Revenue,CCHD,Day Care - South,Day Care / Social Activities,Care Horizons Limited,311.5, 04-Sep-2014
540,Revenue,CCHD,Supported Living - North,Day Care / Social Activities,Care Horizons Limited,5961.01, 25-Sep-2014
541,Revenue,CCHD,Purchase of Non-Res Care - North,Day Care / Social Activities,Care Horizons Limited,1341.96, 02-Sep-2014
542,Revenue,CCHD,Purchase of Non-Res Care - North,Day Care / Social Activities,Care Horizons Limited,1377.93, 02-Sep-2014
543,Revenue,CCHD,Purchase of Non-Res Care - North,Day Care / Social Activities,Care Horizons Limited,1812.92, 02-Sep-2014
544,Revenue,CCHD,Supported Living - North,Day Care / Social Activities,Care Horizons Limited,5453.31, 26-Sep-2014
545,Revenue,CCHD,Supported Living - South,Private & Voluntary Home Care,Care Horizons Limited,1675.15, 19-Sep-2014
546,Revenue,CCHD,Electronic Home Care Monitoring,Other Supplies & Services,Care Monitoring 2000 Limited,8910.23, 18-Sep-2014
547,Revenue,CCHD,Home Care - Elderly - South,Day Care / Social Activities,Care UK,196, 01-Sep-2014
548,Revenue,CCHD,Home Care - Elderly - South,Other Small Contracts,Care UK,4825.52, 01-Sep-2014
549,Revenue,CCHD,Home Care - Elderly - North,Day Care / Social Activities,Care UK,129.36, 01-Sep-2014
550,Revenue,CCHD,Home Care - Elderly - North,Other Small Contracts,Care UK,1027.04, 01-Sep-2014
551,Revenue,CCHD,Day Care - North,Day Care / Social Activities,Care UK,286.16, 01-Sep-2014
552,Revenue,CCHD,Home care - Elderly MH - North,Other Small Contracts,Care UK,533.12, 01-Sep-2014
553,Revenue,CCHD,Elderly MH Day Care North,Day Care / Social Activities,Care UK,148.96, 01-Sep-2014
554,Revenue,CCHD,Home Care - Elderly - South,Day Care / Social Activities,Care UK,196, 08-Sep-2014
555,Revenue,CCHD,Home Care - Elderly - South,Other Small Contracts,Care UK,4798.08, 08-Sep-2014
556,Revenue,CCHD,Home Care - Elderly - North,Day Care / Social Activities,Care UK,125.44, 08-Sep-2014
557,Revenue,CCHD,Home Care - Elderly - North,Other Small Contracts,Care UK,1117.2, 08-Sep-2014
558,Revenue,CCHD,Day Care - North,Day Care / Social Activities,Care UK,282.24, 08-Sep-2014
559,Revenue,CCHD,Home care - Elderly MH - North,Other Small Contracts,Care UK,509.6, 08-Sep-2014
560,Revenue,CCHD,Elderly MH Day Care North,Day Care / Social Activities,Care UK,133.28, 08-Sep-2014
561,Revenue,CCHD,Home Care - Elderly - South,Day Care / Social Activities,Care UK,196, 18-Sep-2014
562,Revenue,CCHD,Home Care - Elderly - South,Other Small Contracts,Care UK,4578.56, 18-Sep-2014
563,Revenue,CCHD,Home Care - Elderly - North,Day Care / Social Activities,Care UK,125.44, 18-Sep-2014
564,Revenue,CCHD,Home Care - Elderly - North,Other Small Contracts,Care UK,960.4, 18-Sep-2014
565,Revenue,CCHD,Day Care - North,Day Care / Social Activities,Care UK,282.24, 18-Sep-2014
566,Revenue,CCHD,Home care - Elderly MH - North,Other Small Contracts,Care UK,509.6, 18-Sep-2014
567,Revenue,CCHD,Elderly MH Day Care North,Day Care / Social Activities,Care UK,145.04, 18-Sep-2014
568,Revenue,CCHD,Home Care - Elderly - South,Day Care / Social Activities,Care UK,196, 22-Sep-2014
569,Revenue,CCHD,Home Care - Elderly - South,Other Small Contracts,Care UK,4876.48, 22-Sep-2014
570,Revenue,CCHD,Home Care - Elderly - North,Day Care / Social Activities,Care UK,125.44, 22-Sep-2014
571,Revenue,CCHD,Home Care - Elderly - North,Other Small Contracts,Care UK,932.96, 22-Sep-2014
572,Revenue,CCHD,Day Care - North,Day Care / Social Activities,Care UK,31.36, 22-Sep-2014
573,Revenue,CCHD,Home care - Elderly MH - North,Other Small Contracts,Care UK,509.6, 22-Sep-2014
574,Revenue,CCHD,Elderly MH Day Care North,Day Care / Social Activities,Care UK,141.12, 22-Sep-2014
575,Revenue,CCHD,Home Care - Elderly - South,Other Small Contracts,Carers R Us (Bristol) Limited,243.39, 04-Sep-2014
576,Revenue,CCHD,Home Care - Elderly - North,Other Small Contracts,Carers R Us (Bristol) Limited,1017.45, 04-Sep-2014
577,Revenue,CCHD,Home Care - Elderly - South,Other Small Contracts,Carers R Us (Bristol) Limited,247.38, 04-Sep-2014
578,Revenue,CCHD,Home Care - Elderly - North,Other Small Contracts,Carers R Us (Bristol) Limited,1025.43, 04-Sep-2014
579,Revenue,CCHD,Home Care - Elderly - South,Other Small Contracts,Carers R Us (Bristol) Limited,243.39, 04-Sep-2014
580,Revenue,CCHD,Home Care - Elderly - North,Other Small Contracts,Carers R Us (Bristol) Limited,961.59, 04-Sep-2014
581,Revenue,CCHD,Home Care - Elderly - South,Other Small Contracts,Carers R Us (Bristol) Limited,143.64, 04-Sep-2014
582,Revenue,CCHD,Home Care - Elderly - North,Other Small Contracts,Carers R Us (Bristol) Limited,614.46, 04-Sep-2014
583,Revenue,CCHD,Home Care - Elderly - South,Other Small Contracts,Carers R Us (Bristol) Limited,103.74, 04-Sep-2014
584,Revenue,CCHD,Home Care - Elderly - North,Other Small Contracts,Carers R Us (Bristol) Limited,726.18, 04-Sep-2014
585,Revenue,CCHD,Home Care - Elderly - South,Other Small Contracts,Carers R Us (Bristol) Limited,111.72, 23-Sep-2014
586,Revenue,CCHD,Home Care - Elderly - North,Other Small Contracts,Carers R Us (Bristol) Limited,686.28, 23-Sep-2014
587,Revenue,CCHD,Home Care - Elderly - South,Other Small Contracts,Carers R Us (Bristol) Limited,111.72, 23-Sep-2014
588,Revenue,CCHD,Home Care - Elderly - North,Other Small Contracts,Carers R Us (Bristol) Limited,845.88, 23-Sep-2014
589,Revenue,CCHD,Home Care - Elderly - South,Other Small Contracts,Carers R Us (Bristol) Limited,103.74, 23-Sep-2014
590,Revenue,CCHD,Home Care - Elderly - North,Other Small Contracts,Carers R Us (Bristol) Limited,450.87, 23-Sep-2014
591,Revenue,CCHD,Home Care - Elderly - South,Other Small Contracts,Carewatch (Bristol),697, 08-Sep-2014
592,Revenue,CCHD,Home Care - Elderly - North,Other Small Contracts,Carewatch (Bristol),1049.75, 08-Sep-2014
593,Revenue,CCHD,Home Care - Elderly - South,Other Small Contracts,Carewatch (Bristol),756.5, 08-Sep-2014
594,Revenue,CCHD,Home Care - Elderly - North,Other Small Contracts,Carewatch (Bristol),1037, 08-Sep-2014
595,Revenue,CCHD,Home Care - Elderly - South,Other Small Contracts,Carewatch (Bristol),752.25, 08-Sep-2014
596,Revenue,CCHD,Home Care - Elderly - North,Other Small Contracts,Carewatch (Bristol),1168.75, 08-Sep-2014
597,Revenue,CCHD,Home Care - Elderly - South,Other Small Contracts,Carewatch (Bristol),701.25, 16-Sep-2014
598,Revenue,CCHD,Home Care - Elderly - North,Other Small Contracts,Carewatch (Bristol),1058.25, 16-Sep-2014
599,Revenue,CCHD,Home Care - Elderly - South,Other Small Contracts,Carewatch (Bristol),680, 16-Sep-2014
600,Revenue,CCHD,Home Care - Elderly - North,Other Small Contracts,Carewatch (Bristol),1109.25, 16-Sep-2014
601,Revenue,CCHD,Home Care - Elderly - South,Other Small Contracts,Carewatch (Bristol),429.25, 25-Sep-2014
602,Revenue,CCHD,Home Care - Elderly - North,Other Small Contracts,Carewatch (Bristol),956.25, 25-Sep-2014
603,Revenue,CCHD,Elderly MH Day Care South,Day Care / Social Activities,Caring Home Healthcare Group Limited,550, 16-Sep-2014
604,Revenue,CCHD,Social Lettings Agency,Fees - General,Individual,10.1, 01-Sep-2014
605,Revenue,CCHD,Social Lettings Agency,Fees & Charges Income - General,Individual,570.66, 01-Sep-2014
606,Revenue,CCHD,Bed Purchasing - Frenchay Hospital,Permanent Residential,Cepen Lodge Care Home,1832.2, 02-Sep-2014
607,Revenue,CCHD,Bed Purchasing - Frenchay Hospital,Permanent Residential,Cepen Lodge Care Home,1832.2, 30-Sep-2014
608,Revenue,CCHD,Bed Purchasing - South,Respite Emergency - Residential,Charlton House,2355.71, 30-Sep-2014
609,Revenue,CCHD,Bed Purchasing - North,Respite Planned - Residential,Charlton House Residential Home,752.57, 02-Sep-2014
610,Revenue,CCHD,Bed Purchasing - North,Respite Planned - Residential,Charlton House Residential Home,501.71, 02-Sep-2014
611,Revenue,CCHD,Bed Purchasing - Frenchay Hospital,Respite Planned - Residential,Charlton House Residential Home,940.71, 02-Sep-2014
612,Revenue,CCHD,Bed Purchasing - North,Permanent Residential,Charlton House Residential Home,1014.71, 30-Sep-2014
613,Revenue,CCHD,Home Care - Elderly - South,Other Small Contracts,Cherish Able Care Limited,6709.53, 03-Sep-2014
614,Revenue,CCHD,Home Care - Elderly - North,Other Small Contracts,Cherish Able Care Limited,183.48, 03-Sep-2014
615,Revenue,CCHD,Home Care - Elderly - South,Other Small Contracts,Cherish Able Care Limited,6734.55, 10-Sep-2014
616,Revenue,CCHD,Home Care - Elderly - North,Other Small Contracts,Cherish Able Care Limited,175.14, 10-Sep-2014
617,Revenue,CCHD,Home Care - Elderly - South,Other Small Contracts,Cherish Able Care Limited,6405.12, 17-Sep-2014
618,Revenue,CCHD,Home Care - Elderly - North,Other Small Contracts,Cherish Able Care Limited,125.1, 17-Sep-2014
619,Revenue,CCHD,Home Care - Elderly - South,Other Small Contracts,Cherish Able Care Limited,6621.96, 25-Sep-2014
620,Revenue,CCHD,Home Care - Elderly - North,Other Small Contracts,Cherish Able Care Limited,116.76, 25-Sep-2014
621,Revenue,CCHD,Bed purchasing -S28A  Under 65 - North,Permanent Residential,Chescombe Lodge,8697, 02-Sep-2014
622,Revenue,CCHD,Bed purchasing -S28A  Under 65 - North,Permanent Residential,Chescombe Lodge,8697, 30-Sep-2014
623,Revenue,CCHD,Bed purchasing - Under 65s PWLD - North,Permanent Residential,Church House,10507.68, 02-Sep-2014
624,Revenue,CCHD,Bed purchasing - Under 65s PWLD - North,Permanent Residential,Church House,10507.68, 30-Sep-2014
625,Revenue,CCHD,Bed purchasing - Under 65s PWLD - North,Permanent Residential,Church House,5914.96, 02-Sep-2014
626,Revenue,CCHD,Bed purchasing - Under 65s PWLD - North,Permanent Residential,Church House,5914.96, 30-Sep-2014
627,Revenue,CCHD,Section 117 Placements MH Younger,Permanent Residential,Church House,7567.32, 02-Sep-2014
628,Revenue,CCHD,Section 117 Placements MH Younger,Permanent Residential,Church House,7567.32, 30-Sep-2014
629,Revenue,CCHD,Section 117 Placements MH Younger,Permanent Residential,Church House,7307.08, 02-Sep-2014
630,Revenue,CCHD,Section 117 Placements MH Younger,Permanent Residential,Church House,7307.08, 30-Sep-2014
631,Revenue,CCHD,Learning Difficulties,Premises Hire,Circadian Trust,526.5, 25-Sep-2014
632,Revenue,CCHD,Bed Purchasing - Under 65s PWLD - South,Permanent Residential,Citibase Watford,7012, 02-Sep-2014
633,Revenue,CCHD,Bed Purchasing - Under 65s PWLD - South,Permanent Residential,Citibase Watford,7012, 30-Sep-2014
634,Revenue,CCHD,Bed Purchasing - PWLD S 117 Placements,Permanent Residential,Citibase Watford,8932.12, 02-Sep-2014
635,Revenue,CCHD,Bed Purchasing - PWLD S 117 Placements,Permanent Residential,Citibase Watford,8932.12, 30-Sep-2014
636,Revenue,CCHD,Bed Purchasing - Under 65s PWLD - South,Permanent Residential,Citibase Watford,5454.64, 02-Sep-2014
637,Revenue,CCHD,Bed Purchasing - Under 65s PWLD - South,Permanent Residential,Citibase Watford,5454.64, 30-Sep-2014
638,Revenue,CCHD,Home Care - Elderly - South,Other Small Contracts,Cleeve Care Group,861, 15-Sep-2014
639,Revenue,CCHD,Home Care - Elderly - North,Other Small Contracts,Cleeve Care Group,700, 15-Sep-2014
640,Revenue,CCHD,Home Care - Elderly - South,Other Small Contracts,Cleeve Care Group,836.5, 29-Sep-2014
641,Revenue,CCHD,Home Care - Elderly - North,Other Small Contracts,Cleeve Care Group,612.5, 29-Sep-2014
642,Revenue,CCHD,Home Care - Elderly - South,Other Small Contracts,Cleeve Care Group,815.5, 29-Sep-2014
643,Revenue,CCHD,Home Care - Elderly - North,Other Small Contracts,Cleeve Care Group,497, 29-Sep-2014
644,Revenue,CCHD,Bed Purchasing - Southmead Hospital,Permanent Residential,Cleeve Lodge,1457.16, 02-Sep-2014
645,Revenue,CCHD,Bed Purchasing - Southmead Hospital,Permanent Residential,Cleeve Lodge,1457.16, 30-Sep-2014
646,Revenue,CCHD,Bed Purchasing - North,Permanent Nursing,Cleeve Lodge,1874.24, 02-Sep-2014
647,Revenue,CCHD,Bed Purchasing - North,Permanent Nursing,Cleeve Lodge,1874.24, 30-Sep-2014
648,Revenue,CCHD,Bed Purchasing - South,Permanent Residential,Cleeve Lodge,1801.44, 02-Sep-2014
649,Revenue,CCHD,Bed Purchasing - South,Permanent Residential,Cleeve Lodge,1801.44, 30-Sep-2014
650,Revenue,CCHD,Bed Purchasing - South,Permanent Residential,Cleeve Lodge,2291.88, 02-Sep-2014
651,Revenue,CCHD,Bed Purchasing - South,Permanent Residential,Cleeve Lodge,2291.88, 30-Sep-2014
652,Revenue,CCHD,Bed Purchasing - North,Permanent Residential,Cleeve Lodge,1393.6, 02-Sep-2014
653,Revenue,CCHD,Bed Purchasing - North,Permanent Residential,Cleeve Lodge,1393.6, 30-Sep-2014
654,Revenue,CCHD,Bed Purchasing - South,Permanent Residential,Cleeve Lodge,1806.32, 02-Sep-2014
655,Revenue,CCHD,Bed Purchasing - South,Permanent Residential,Cleeve Lodge,1806.32, 30-Sep-2014
656,Revenue,CCHD,Bed Purchasing - South,Permanent Residential,Collingwood Residential Home,1427.48, 02-Sep-2014
657,Revenue,CCHD,Bed Purchasing - South,Permanent Residential,Collingwood Residential Home,1427.48, 30-Sep-2014
658,Revenue,CCHD,Bed Purchasing - South,Respite Planned - Residential,Collingwood Residential Home,1040, 02-Sep-2014
659,Revenue,CCHD,Bed Purchasing - South,Permanent Residential,Collingwood Residential Home,1158.67, 30-Sep-2014
660,Revenue,CCHD,Bed Purchasing - South,Respite Planned - Residential,Collingwood Residential Home,1114.29, 30-Sep-2014
661,Revenue,CCHD,Bed Purchasing - South,Permanent Residential,Collingwood Residential Home,1117.85, 30-Sep-2014
662,Revenue,CCHD,Bed Purchasing - South,Respite Planned - Residential,Collingwood Residential Home,1114.28, 02-Sep-2014
663,Revenue,CCHD,Bed Purchasing - South,Permanent Residential,Collingwood Residential Home,1448.6, 02-Sep-2014
664,Revenue,CCHD,Bed Purchasing - South,Permanent Residential,Collingwood Residential Home,1448.6, 30-Sep-2014
665,Revenue,CCHD,Bed Purchasing - Elderly MH - South,Permanent Residential,Collingwood Residential Home,1323.04, 02-Sep-2014
666,Revenue,CCHD,Bed Purchasing - Elderly MH - South,Permanent Residential,Collingwood Residential Home,1323.04, 30-Sep-2014
667,Revenue,CCHD,Bed Purchasing - South,Permanent Residential,Collingwood Residential Home,1280.2, 02-Sep-2014
668,Revenue,CCHD,Bed Purchasing - South,Permanent Residential,Collingwood Residential Home,1280.2, 30-Sep-2014
669,Revenue,CCHD,Bed Purchasing - Frenchay Hospital,Permanent Residential,Coombs Wood House,965, 02-Sep-2014
670,Revenue,CCHD,Bed Purchasing - Frenchay Hospital,Permanent Residential,Coombs Wood House,965, 30-Sep-2014
671,Revenue,CCHD,Bed Purchasing - S28A - Over 65- North,Permanent Residential,Cream Ii Ltd  Longrun House,8039.76, 02-Sep-2014
672,Revenue,CCHD,Bed Purchasing - S28A - Over 65- North,Permanent Residential,Cream Ii Ltd  Longrun House,8039.76, 30-Sep-2014
673,Revenue,CCHD,Bed Purchasing - Under 65s PWLD - South,Permanent Residential,Cream Ii Ltd  Longrun House,5628.52, 02-Sep-2014
674,Revenue,CCHD,Bed Purchasing - Under 65s PWLD - South,Permanent Residential,Cream Ii Ltd  Longrun House,5628.52, 30-Sep-2014
675,Revenue,CCHD,Bed purchasing -S28A  Under 65 - North,Permanent Residential,Creedy Court,9294.4, 02-Sep-2014
676,Revenue,CCHD,Bed purchasing -S28A  Under 65 - North,Permanent Residential,Creedy Court,9294.4, 30-Sep-2014
677,Revenue,CCHD,Bed Purchasing - S28A - Over 65- North,Permanent Residential,Creedy Court,7726.88, 02-Sep-2014
678,Revenue,CCHD,Bed Purchasing - S28A - Over 65- North,Permanent Residential,Creedy Court,7726.88, 30-Sep-2014
679,Revenue,CCHD,Bed purchasing - Under 65s PWLD - North,Permanent Residential,Creedy Court,12580.08, 29-Sep-2014
680,Revenue,CCHD,Purchase of Non-Res Care - South,Day Care / Social Activities,Daneswood,1472.68, 30-Sep-2014
681,Revenue,CCHD,Bed Purchasing - Under 65s PWLD - South,Permanent Residential,Daneswood,11009.48, 02-Sep-2014
682,Revenue,CCHD,Bed Purchasing - Under 65s PWLD - South,Permanent Residential,Daneswood,11009.48, 30-Sep-2014
683,Revenue,CCHD,Bed purchasing - Under 65s PWLD - North,Permanent Residential,Daneswood,9114.88, 02-Sep-2014
684,Revenue,CCHD,Bed purchasing - Under 65s PWLD - North,Permanent Residential,Daneswood,9114.88, 30-Sep-2014
685,Revenue,CCHD,Bed Purchasing - PWLD S 117 Placements,Permanent Nursing,Danshell Healthcare Group,11529, 02-Sep-2014
686,Revenue,CCHD,Bed Purchasing - PWLD S 117 Placements,Permanent Nursing,Danshell Healthcare Group,11529, 30-Sep-2014
687,Revenue,CCHD,Learning Difficulties PSL,Other Supplies & Services,Individual,2016.44, 22-Sep-2014
688,Revenue,CCHD,Purchase of Non-Res Care - North,Day Care / Social Activities,Design 4 Life Ltd,1180.98, 05-Sep-2014
689,Revenue,CCHD,Purchase of Non-Res Care - North,Day Care / Social Activities,Design 4 Life Ltd,1837.08, 05-Sep-2014
690,Revenue,CCHD,Bed Purchasing - Under 65s PWLD - South,Permanent Residential,Devon & Cornwall Autistic Community Trus,8796.92, 02-Sep-2014
691,Revenue,CCHD,Bed Purchasing - Under 65s PWLD - South,Permanent Residential,Devon & Cornwall Autistic Community Trus,8796.92, 30-Sep-2014
692,Revenue,CCHD,Home Care - Elderly - South,Other Small Contracts,Dhek Bhal,387.2, 04-Sep-2014
693,Revenue,CCHD,Home Care - Elderly - North,Other Small Contracts,Dhek Bhal,387.2, 04-Sep-2014
694,Revenue,CCHD,Home Care - Elderly - South,Other Small Contracts,Dhek Bhal,566.28, 08-Sep-2014
695,Revenue,CCHD,Home Care - Elderly - North,Other Small Contracts,Dhek Bhal,251.68, 08-Sep-2014
696,Revenue,CCHD,Home Care - Elderly - South,Other Small Contracts,Dhek Bhal,575.96, 15-Sep-2014
697,Revenue,CCHD,Home Care - Elderly - North,Other Small Contracts,Dhek Bhal,198.44, 15-Sep-2014
698,Revenue,CCHD,Home Care - Elderly - South,Other Small Contracts,Dhek Bhal,580.8, 22-Sep-2014
699,Revenue,CCHD,Home Care - Elderly - North,Other Small Contracts,Dhek Bhal,193.6, 22-Sep-2014
700,Revenue,CCHD,Home Care - Elderly - South,Other Small Contracts,Dhek Bhal,605, 29-Sep-2014
701,Revenue,CCHD,Home Care - Elderly - North,Other Small Contracts,Dhek Bhal,193.6, 29-Sep-2014
702,Revenue,CCHD,Bed Purchasing - Under 65s PWLD - South,Permanent Residential,Dimensions (Uk),4880, 02-Sep-2014
703,Revenue,CCHD,Bed Purchasing - Under 65s PWLD - South,Permanent Residential,Dimensions (Uk),4880, 30-Sep-2014
704,Revenue,CCHD,Supported Living - South,Private & Voluntary Home Care,Dimensions (UK) Ltd,7748.4, 29-Sep-2014
705,Revenue,CCHD,Minor Adaptations Service,Daily Living Equipment,Disabled Living Foundation,525, 04-Sep-2014
706,Revenue,CCHD,Home Care - Elderly - South,Other Small Contracts,DoCare Ltd,3776.25, 01-Sep-2014
707,Revenue,CCHD,Home Care - Elderly - North,One-off Planned Direct Payment,DoCare Ltd,104.5, 01-Sep-2014
708,Revenue,CCHD,Home Care - Elderly - North,Other Small Contracts,DoCare Ltd,8326.75, 01-Sep-2014
709,Revenue,CCHD,Day Care - North,Day Care / Social Activities,DoCare Ltd,76, 01-Sep-2014
710,Revenue,CCHD,Home Care - Elderly - South,Other Small Contracts,DoCare Ltd,3215.76, 01-Sep-2014
711,Revenue,CCHD,Home Care - Elderly - North,One-off Planned Direct Payment,DoCare Ltd,99.75, 01-Sep-2014
712,Revenue,CCHD,Home Care - Elderly - North,Other Small Contracts,DoCare Ltd,8122.5, 01-Sep-2014
713,Revenue,CCHD,Day Care - North,Day Care / Social Activities,DoCare Ltd,85.5, 01-Sep-2014
714,Revenue,CCHD,Home Care - Elderly - South,Other Small Contracts,DoCare Ltd,3116, 04-Sep-2014
715,Revenue,CCHD,Home Care - Elderly - North,One-off Planned Direct Payment,DoCare Ltd,104.5, 04-Sep-2014
716,Revenue,CCHD,Home Care - Elderly - North,Other Small Contracts,DoCare Ltd,7908.75, 04-Sep-2014
717,Revenue,CCHD,Day Care - North,Day Care / Social Activities,DoCare Ltd,76, 04-Sep-2014
718,Revenue,CCHD,Home Care - Elderly - South,Other Small Contracts,DoCare Ltd,3059.01, 04-Sep-2014
719,Revenue,CCHD,Home Care - Elderly - North,One-off Planned Direct Payment,DoCare Ltd,104.5, 04-Sep-2014
720,Revenue,CCHD,Home Care - Elderly - North,Other Small Contracts,DoCare Ltd,8032.25, 04-Sep-2014
721,Revenue,CCHD,Day Care - North,Day Care / Social Activities,DoCare Ltd,76, 04-Sep-2014
722,Revenue,CCHD,Home Care - Elderly - South,Other Small Contracts,DoCare Ltd,3624.25, 22-Sep-2014
723,Revenue,CCHD,Home Care - Elderly - North,One-off Planned Direct Payment,DoCare Ltd,95, 22-Sep-2014
724,Revenue,CCHD,Home Care - Elderly - North,Other Small Contracts,DoCare Ltd,7894.5, 22-Sep-2014
725,Revenue,CCHD,Home Care - Elderly - South,Other Small Contracts,DoCare Ltd,3709.76, 30-Sep-2014
726,Revenue,CCHD,Home Care - Elderly - North,One-off Planned Direct Payment,DoCare Ltd,104.5, 30-Sep-2014
727,Revenue,CCHD,Home Care - Elderly - North,Other Small Contracts,DoCare Ltd,8022.75, 30-Sep-2014
728,Revenue,CCHD,Cambrian Green Day Service,"Provisions (Food, etc)",Douglas Liddell,605, 03-Sep-2014
729,Revenue,CCHD,Cambrian Green Day Service,"Provisions (Food, etc)",Douglas Liddell,550, 10-Sep-2014
730,Revenue,CCHD,Cambrian Green Day Service,"Provisions (Food, etc)",Douglas Liddell,575, 30-Sep-2014
731,Revenue,CCHD,MH Purchasing - Younger,Permanent Residential,Dunraven House,1854.32, 02-Sep-2014
732,Revenue,CCHD,MH Purchasing - Younger,Permanent Residential,Dunraven House,1854.32, 30-Sep-2014
733,Revenue,CCHD,Bed and Breakfast,Other Supplies & Services,E J Bartlett,651, 04-Sep-2014
734,Revenue,CCHD,Bed and Breakfast,Other Supplies & Services,E J Bartlett,434, 04-Sep-2014
735,Revenue,CCHD,Bed and Breakfast,Other Supplies & Services,E J Bartlett,434, 09-Sep-2014
736,Revenue,CCHD,Bed and Breakfast,Bed & Breakfast,E J Bartlett,651, 10-Sep-2014
737,Revenue,CCHD,Bed and Breakfast,Bed & Breakfast,E J Bartlett,434, 10-Sep-2014
738,Revenue,CCHD,Bed and Breakfast,Bed & Breakfast,E J Bartlett,434, 10-Sep-2014
739,Revenue,CCHD,Bed and Breakfast,Bed & Breakfast,E J Bartlett,434, 16-Sep-2014
740,Revenue,CCHD,Bed and Breakfast,Bed & Breakfast,E J Bartlett,651, 16-Sep-2014
741,Revenue,CCHD,Bed and Breakfast,Bed & Breakfast,E J Bartlett,720, 16-Sep-2014
742,Revenue,CCHD,Bed and Breakfast,Bed & Breakfast,E J Bartlett,434, 16-Sep-2014
743,Revenue,CCHD,Bed and Breakfast,Bed & Breakfast,E J Bartlett,434, 23-Sep-2014
744,Revenue,CCHD,Bed and Breakfast,Bed & Breakfast,E J Bartlett,651, 23-Sep-2014
745,Revenue,CCHD,Bed and Breakfast,Bed & Breakfast,E J Bartlett,504, 23-Sep-2014
746,Revenue,CCHD,Bed and Breakfast,Bed & Breakfast,E J Bartlett,434, 23-Sep-2014
747,Revenue,CCHD,Bed and Breakfast,Bed & Breakfast,E J Bartlett,434, 30-Sep-2014
748,Revenue,CCHD,Bed and Breakfast,Bed & Breakfast,E J Bartlett,651, 30-Sep-2014
749,Revenue,CCHD,Bed and Breakfast,Bed & Breakfast,E J Bartlett,504, 30-Sep-2014
750,Revenue,CCHD,Bed and Breakfast,Bed & Breakfast,E J Bartlett,434, 30-Sep-2014
751,Revenue,CCHD,Bed purchasing - Under 65s PWLD - North,Permanent Residential,East Court,2213.44, 02-Sep-2014
752,Revenue,CCHD,Bed purchasing - Under 65s PWLD - North,Permanent Residential,East Court,2213.44, 30-Sep-2014
753,Revenue,CCHD,Home Care - Elderly - South,Day Care / Social Activities,Easton Community Centre,520.56, 02-Sep-2014
754,Revenue,CCHD,Home Care - Elderly - South,Day Care / Social Activities,Easton Community Centre,520.56, 30-Sep-2014
755,Revenue,CCHD,Home Care - Elderly - South,Day Care / Social Activities,Easton Community Centre,520.56, 02-Sep-2014
756,Revenue,CCHD,Home Care - Elderly - South,Day Care / Social Activities,Easton Community Centre,520.56, 30-Sep-2014
757,Revenue,CCHD,Home Care - Elderly - North,Day Care / Social Activities,Easton Community Centre,520.56, 02-Sep-2014
758,Revenue,CCHD,Home Care - Elderly - North,Day Care / Social Activities,Easton Community Centre,520.56, 30-Sep-2014
759,Revenue,CCHD,Home Care - Elderly - North,Day Care / Social Activities,Easton Community Centre,520.56, 02-Sep-2014
760,Revenue,CCHD,Home Care - Elderly - North,Day Care / Social Activities,Easton Community Centre,520.56, 30-Sep-2014
761,Revenue,CCHD,Home Care - Elderly - North,Supported Living,Eclipse Office Park,4293.72, 30-Sep-2014
762,Revenue,CCHD,Home Care - Elderly - North,Supported Living,Eclipse Office Park,4032.8, 30-Sep-2014
763,Revenue,CCHD,Home Care - Elderly - South,Supported Living,Eclipse Office Park,3604.68, 30-Sep-2014
764,Revenue,CCHD,Home Care - Elderly - South,Supported Living,Eclipse Office Park,2292.92, 30-Sep-2014
765,Revenue,CCHD,Home Care - Elderly - South,Supported Living,Eclipse Office Park,4002.44, 30-Sep-2014
766,Revenue,CCHD,Home Care - Elderly - South,Supported Living,Eclipse Office Park,4002.44, 30-Sep-2014
767,Revenue,CCHD,Home Care - Elderly - North,Supported Living,Eclipse Office Park,4032.8, 30-Sep-2014
768,Revenue,CCHD,Home Care - Elderly - South,Supported Living,Eclipse Office Park,3839.88, 30-Sep-2014
769,Revenue,CCHD,Home Care - Elderly - North,Supported Living,Eclipse Office Park,3564.6, 30-Sep-2014
770,Revenue,CCHD,Home Care - Elderly - North,Supported Living,Eclipse Office Park,3564.6, 30-Sep-2014
771,Revenue,CCHD,Home Care - Elderly - South,Supported Living,Eclipse Office Park,2949.92, 30-Sep-2014
772,Revenue,CCHD,Home Care - Elderly - North,Supported Living,Eclipse Office Park,5447, 30-Sep-2014
773,Revenue,CCHD,Home Care - Elderly - South,Supported Living,Eclipse Office Park,2208.68, 30-Sep-2014
774,Revenue,CCHD,Home Care - Elderly - South,Supported Living,Eclipse Office Park,2208.68, 30-Sep-2014
775,Revenue,CCHD,Home Care - Elderly - North,Supported Living,Eclipse Office Park,4303.72, 30-Sep-2014
776,Revenue,CCHD,Home Care - Elderly - North,Supported Living,Eclipse Office Park,3576.6, 30-Sep-2014
777,Revenue,CCHD,Home Care - Elderly - South,Supported Living,Eclipse Office Park,2088.68, 30-Sep-2014
778,Revenue,CCHD,Home Care - Elderly - South,Supported Living,Eclipse Office Park,2208.68, 30-Sep-2014
779,Revenue,CCHD,Home Care - Elderly - South,Supported Living,Eclipse Office Park,2949.92, 30-Sep-2014
780,Revenue,CCHD,Home Care - Elderly - South,Day Care / Social Activities,Eclipse Office Park,735.12, 02-Sep-2014
781,Revenue,CCHD,Home Care - Elderly - South,Day Care / Social Activities,Eclipse Office Park,735.12, 30-Sep-2014
782,Revenue,CCHD,Home Care - Elderly - North,Day Care / Social Activities,Eclipse Office Park,980.16, 02-Sep-2014
783,Revenue,CCHD,Home Care - Elderly - North,Day Care / Social Activities,Eclipse Office Park,980.16, 30-Sep-2014
784,Revenue,CCHD,Home Care - Elderly - South,Day Care / Social Activities,Eclipse Office Park,612.6, 02-Sep-2014
785,Revenue,CCHD,Home Care - Elderly - South,Day Care / Social Activities,Eclipse Office Park,612.6, 30-Sep-2014
786,Revenue,CCHD,Home Care - Elderly - South,Day Care / Social Activities,Eclipse Office Park,857.64, 02-Sep-2014
787,Revenue,CCHD,Home Care - Elderly - South,Day Care / Social Activities,Eclipse Office Park,857.64, 30-Sep-2014
788,Revenue,CCHD,Home Care - Elderly - South,Day Care / Social Activities,Eclipse Office Park,735.12, 02-Sep-2014
789,Revenue,CCHD,Home Care - Elderly - South,Day Care / Social Activities,Eclipse Office Park,735.12, 30-Sep-2014
790,Revenue,CCHD,Home Care - Elderly - South,Day Care / Social Activities,Eclipse Office Park,857.64, 02-Sep-2014
791,Revenue,CCHD,Home Care - Elderly - South,Day Care / Social Activities,Eclipse Office Park,857.64, 30-Sep-2014
792,Revenue,CCHD,Home Care - Elderly - South,Day Care / Social Activities,Eclipse Office Park,1225.2, 02-Sep-2014
793,Revenue,CCHD,Home Care - Elderly - South,Day Care / Social Activities,Eclipse Office Park,1225.2, 30-Sep-2014
794,Revenue,CCHD,Home Care - Elderly - South,Day Care / Social Activities,Eclipse Office Park,735.12, 02-Sep-2014
795,Revenue,CCHD,Home Care - Elderly - South,Day Care / Social Activities,Eclipse Office Park,735.12, 30-Sep-2014
796,Revenue,CCHD,Home Care - Elderly - South,Day Care / Social Activities,Eclipse Office Park,857.64, 02-Sep-2014
797,Revenue,CCHD,Home Care - Elderly - South,Day Care / Social Activities,Eclipse Office Park,857.64, 30-Sep-2014
798,Revenue,CCHD,Home Care - Elderly - South,Day Care / Social Activities,Eclipse Office Park,980.16, 02-Sep-2014
799,Revenue,CCHD,Home Care - Elderly - South,Day Care / Social Activities,Eclipse Office Park,980.16, 30-Sep-2014
800,Revenue,CCHD,Bed purchasing - Under 65s PWLD - North,Permanent Residential,Eclipse Office Park,2653.24, 02-Sep-2014
801,Revenue,CCHD,Bed purchasing - Under 65s PWLD - North,Permanent Residential,Eclipse Office Park,2653.24, 30-Sep-2014
802,Revenue,CCHD,Bed Purchasing - South,Permanent Residential,Eclipse Office Park,1429.36, 02-Sep-2014
803,Revenue,CCHD,Bed Purchasing - South,Permanent Residential,Eclipse Office Park,1429.36, 30-Sep-2014
804,Revenue,CCHD,Bed purchasing - Elderly PWLD - North,Permanent Residential,Eclipse Office Park,3435.28, 02-Sep-2014
805,Revenue,CCHD,Bed purchasing - Elderly PWLD - North,Permanent Residential,Eclipse Office Park,3435.28, 30-Sep-2014
806,Revenue,CCHD,Bed Purchasing - Under 65s PWLD - South,Permanent Residential,Eclipse Office Park,4867.92, 02-Sep-2014
807,Revenue,CCHD,Bed Purchasing - Under 65s PWLD - South,Permanent Residential,Eclipse Office Park,4867.92, 30-Sep-2014
808,Revenue,CCHD,Bed Purchasing - Under 65s PWLD - South,Permanent Residential,Eclipse Office Park,5442.48, 02-Sep-2014
809,Revenue,CCHD,Bed Purchasing - Under 65s PWLD - South,Permanent Residential,Eclipse Office Park,5442.48, 30-Sep-2014
810,Revenue,CCHD,Bed Purchasing - Under 65s PWLD - South,Permanent Nursing,Eclipse Office Park,2740.16, 02-Sep-2014
811,Revenue,CCHD,Bed Purchasing - Under 65s PWLD - South,Permanent Nursing,Eclipse Office Park,2740.16, 30-Sep-2014
812,Revenue,CCHD,Bed purchasing - Elderly MH - North,Permanent Nursing,Eclipse Office Park,1281.68, 02-Sep-2014
813,Revenue,CCHD,Bed purchasing - Elderly MH - North,Permanent Nursing,Eclipse Office Park,1281.68, 30-Sep-2014
814,Revenue,CCHD,Bed Purchasing - Elderly MH - South,Permanent Residential,Eclipse Office Park,3605.96, 02-Sep-2014
815,Revenue,CCHD,Bed Purchasing - Elderly MH - South,Permanent Residential,Eclipse Office Park,3605.96, 30-Sep-2014
816,Revenue,CCHD,Bed purchasing - Elderly S117 - South,Permanent Nursing,Eclipse Office Park,1992, 02-Sep-2014
817,Revenue,CCHD,Bed purchasing - Elderly S117 - South,Permanent Nursing,Eclipse Office Park,1992, 30-Sep-2014
818,Revenue,CCHD,Section 117 Placements MH Younger,Permanent Residential,Eclipse Office Park,1356, 02-Sep-2014
819,Revenue,CCHD,Section 117 Placements MH Younger,Permanent Residential,Eclipse Office Park,1356, 30-Sep-2014
820,Revenue,CCHD,Bed purchasing - Elderly S117 - South,Permanent Nursing,Eclipse Office Park,1992, 02-Sep-2014
821,Revenue,CCHD,Bed purchasing - Elderly S117 - South,Permanent Nursing,Eclipse Office Park,1992, 30-Sep-2014
822,Revenue,CCHD,Bed purchasing - Elderly S117 - South,Permanent Nursing,Eclipse Office Park,10315.71, 30-Sep-2014
823,Revenue,CCHD,Bed purchasing - Elderly S117 - South,Permanent Nursing,Eclipse Office Park,1332.71, 30-Sep-2014
824,Revenue,CCHD,Bed Purchasing - South,Permanent Nursing,Eclipse Office Park,926.6, 02-Sep-2014
825,Revenue,CCHD,Bed Purchasing - South,Permanent Nursing,Eclipse Office Park,926.6, 30-Sep-2014
826,Revenue,CCHD,Bed Purchasing - North,Permanent Nursing,Eclipse Office Park,1421.72, 02-Sep-2014
827,Revenue,CCHD,Bed Purchasing - North,Permanent Nursing,Eclipse Office Park,1421.72, 30-Sep-2014
828,Revenue,CCHD,Bed Purchasing - Southmead Hospital,Permanent Residential,Eclipse Office Park,50116.7, 30-Sep-2014
829,Revenue,CCHD,Bed purchasing - Elderly PWLD - South,Permanent Residential,Eclipse Office Park,4125.12, 02-Sep-2014
830,Revenue,CCHD,Bed purchasing - Elderly PWLD - South,Permanent Residential,Eclipse Office Park,4125.12, 30-Sep-2014
831,Revenue,CCHD,Bed purchasing -S28A  Under 65 - North,Permanent Nursing,Eclipse Office Park,5411.96, 02-Sep-2014
832,Revenue,CCHD,Bed purchasing -S28A  Under 65 - North,Permanent Nursing,Eclipse Office Park,5411.96, 30-Sep-2014
833,Revenue,CCHD,Bed purchasing -S28A  Under 65 - North,Permanent Residential,Eclipse Office Park,5334.12, 02-Sep-2014
834,Revenue,CCHD,Bed purchasing -S28A  Under 65 - North,Permanent Residential,Eclipse Office Park,5334.12, 30-Sep-2014
835,Revenue,CCHD,Bed purchasing - S28A Under 65 - South,Permanent Residential,Eclipse Office Park,5527.88, 02-Sep-2014
836,Revenue,CCHD,Bed purchasing - S28A Under 65 - South,Permanent Residential,Eclipse Office Park,5527.88, 30-Sep-2014
837,Revenue,CCHD,Bed Purchasing - Elderly MH - South,Permanent Residential,Eclipse Office Park,1302.92, 02-Sep-2014
838,Revenue,CCHD,Bed Purchasing - Elderly MH - South,Permanent Residential,Eclipse Office Park,1302.92, 30-Sep-2014
839,Revenue,CCHD,Bed Purchasing - Under 65s PWLD - South,Permanent Residential,Eclipse Office Park,5018.44, 02-Sep-2014
840,Revenue,CCHD,Bed Purchasing - Under 65s PWLD - South,Permanent Residential,Eclipse Office Park,5018.44, 30-Sep-2014
841,Revenue,CCHD,Bed Purchasing - Under 65s PWLD - South,Permanent Residential,Eclipse Office Park,5534.96, 02-Sep-2014
842,Revenue,CCHD,Bed Purchasing - Under 65s PWLD - South,Permanent Residential,Eclipse Office Park,5534.96, 30-Sep-2014
843,Revenue,CCHD,Bed purchasing - S28A Under 65 - South,Permanent Nursing,Eclipse Office Park,7294.32, 02-Sep-2014
844,Revenue,CCHD,Bed purchasing - S28A Under 65 - South,Permanent Nursing,Eclipse Office Park,7294.32, 30-Sep-2014
845,Revenue,CCHD,MH Purchasing - Younger,Permanent Residential,Eclipse Office Park,860.2, 02-Sep-2014
846,Revenue,CCHD,MH Purchasing - Younger,Permanent Residential,Eclipse Office Park,860.2, 30-Sep-2014
847,Revenue,CCHD,Bed purchasing - Elderly PWLD - South,Permanent Residential,Eclipse Office Park,5124.6, 02-Sep-2014
848,Revenue,CCHD,Bed purchasing - Elderly PWLD - South,Permanent Residential,Eclipse Office Park,5124.6, 30-Sep-2014
849,Revenue,CCHD,Bed purchasing - Elderly PWLD - South,Permanent Residential,Eclipse Office Park,3877.68, 02-Sep-2014
850,Revenue,CCHD,Bed purchasing - Elderly PWLD - South,Permanent Residential,Eclipse Office Park,3877.68, 30-Sep-2014
851,Revenue,CCHD,Bed purchasing - Elderly PWLD - North,Permanent Residential,Eclipse Office Park,4023.56, 02-Sep-2014
852,Revenue,CCHD,Bed purchasing - Elderly PWLD - North,Permanent Residential,Eclipse Office Park,4023.56, 30-Sep-2014
853,Revenue,CCHD,Bed purchasing -S28A  Under 65 - North,Permanent Residential,Eclipse Office Park,5258.04, 02-Sep-2014
854,Revenue,CCHD,Bed purchasing -S28A  Under 65 - North,Permanent Residential,Eclipse Office Park,5258.04, 30-Sep-2014
855,Revenue,CCHD,Bed purchasing -S28A  Under 65 - North,Permanent Residential,Eclipse Office Park,7058.72, 02-Sep-2014
856,Revenue,CCHD,Bed purchasing -S28A  Under 65 - North,Permanent Residential,Eclipse Office Park,7058.72, 30-Sep-2014
857,Revenue,CCHD,Bed purchasing -S28A  Under 65 - North,Permanent Nursing,Eclipse Office Park,6244.88, 02-Sep-2014
858,Revenue,CCHD,Bed purchasing -S28A  Under 65 - North,Permanent Nursing,Eclipse Office Park,6244.88, 30-Sep-2014
859,Revenue,CCHD,Bed Purchasing - Under 65s PWLD - South,Permanent Residential,Eclipse Office Park,4515.52, 02-Sep-2014
860,Revenue,CCHD,Bed Purchasing - Under 65s PWLD - South,Permanent Residential,Eclipse Office Park,4515.52, 30-Sep-2014
861,Revenue,CCHD,Bed Purchasing - South,Permanent Residential,Eclipse Office Park,3210.16, 02-Sep-2014
862,Revenue,CCHD,Bed Purchasing - South,Permanent Residential,Eclipse Office Park,3210.16, 30-Sep-2014
863,Revenue,CCHD,Bed purchasing -S28A  Under 65 - North,Permanent Residential,Eclipse Office Park,6755.12, 02-Sep-2014
864,Revenue,CCHD,Bed purchasing -S28A  Under 65 - North,Permanent Residential,Eclipse Office Park,6755.12, 30-Sep-2014
865,Revenue,CCHD,Bed purchasing - S28A Under 65 - South,Permanent Residential,Eclipse Office Park,4525.88, 02-Sep-2014
866,Revenue,CCHD,Bed purchasing - S28A Under 65 - South,Permanent Residential,Eclipse Office Park,4525.88, 30-Sep-2014
867,Revenue,CCHD,Bed Purchasing - S28A - Over 65- North,Permanent Residential,Eclipse Office Park,6604.52, 02-Sep-2014
868,Revenue,CCHD,Bed Purchasing - S28A - Over 65- North,Permanent Residential,Eclipse Office Park,6604.52, 30-Sep-2014
869,Revenue,CCHD,Bed Purchasing - LD S28A- Over 65- South,Permanent Residential,Eclipse Office Park,1246.44, 02-Sep-2014
870,Revenue,CCHD,Bed purchasing -S28A  Under 65 - North,Permanent Residential,Eclipse Office Park,7114.72, 02-Sep-2014
871,Revenue,CCHD,Bed purchasing -S28A  Under 65 - North,Permanent Residential,Eclipse Office Park,7114.72, 30-Sep-2014
872,Revenue,CCHD,Bed purchasing -S28A  Under 65 - North,Permanent Residential,Eclipse Office Park,7058.72, 02-Sep-2014
873,Revenue,CCHD,Bed purchasing -S28A  Under 65 - North,Permanent Residential,Eclipse Office Park,7058.72, 30-Sep-2014
874,Revenue,CCHD,Bed Purchasing - LD S28A- Over 65- South,Permanent Residential,Eclipse Office Park,4098.32, 02-Sep-2014
875,Revenue,CCHD,Bed Purchasing - LD S28A- Over 65- South,Permanent Residential,Eclipse Office Park,4098.32, 30-Sep-2014
876,Revenue,CCHD,Bed purchasing - S28A Under 65 - South,Permanent Residential,Eclipse Office Park,4867.92, 02-Sep-2014
877,Revenue,CCHD,Bed purchasing - S28A Under 65 - South,Permanent Residential,Eclipse Office Park,4867.92, 30-Sep-2014
878,Revenue,CCHD,Bed purchasing - S28A Under 65 - South,Permanent Residential,Eclipse Office Park,4761.36, 02-Sep-2014
879,Revenue,CCHD,Bed purchasing - S28A Under 65 - South,Permanent Residential,Eclipse Office Park,4761.36, 30-Sep-2014
880,Revenue,CCHD,Bed purchasing - S28A Under 65 - South,Permanent Residential,Eclipse Office Park,3663.96, 02-Sep-2014
881,Revenue,CCHD,Bed purchasing - S28A Under 65 - South,Permanent Residential,Eclipse Office Park,3663.96, 30-Sep-2014
882,Revenue,CCHD,Bed Purchasing - LD S28A- Over 65- South,Permanent Residential,Eclipse Office Park,5091.12, 02-Sep-2014
883,Revenue,CCHD,Bed Purchasing - LD S28A- Over 65- South,Permanent Residential,Eclipse Office Park,5091.12, 30-Sep-2014
884,Revenue,CCHD,Bed Purchasing - LD S28A- Over 65- South,Permanent Residential,Eclipse Office Park,5031.12, 02-Sep-2014
885,Revenue,CCHD,Bed Purchasing - LD S28A- Over 65- South,Permanent Residential,Eclipse Office Park,5031.12, 30-Sep-2014
886,Revenue,CCHD,Bed Purchasing - LD S28A- Over 65- South,Permanent Residential,Eclipse Office Park,5187.16, 02-Sep-2014
887,Revenue,CCHD,Bed Purchasing - LD S28A- Over 65- South,Permanent Residential,Eclipse Office Park,5187.16, 30-Sep-2014
888,Revenue,CCHD,Bed Purchasing - LD S28A- Over 65- South,Permanent Residential,Eclipse Office Park,4353.28, 02-Sep-2014
889,Revenue,CCHD,Bed Purchasing - LD S28A- Over 65- South,Permanent Residential,Eclipse Office Park,4353.28, 30-Sep-2014
890,Revenue,CCHD,Bed Purchasing - LD S28A- Over 65- South,Permanent Residential,Eclipse Office Park,5170.2, 02-Sep-2014
891,Revenue,CCHD,Bed Purchasing - LD S28A- Over 65- South,Permanent Residential,Eclipse Office Park,5170.2, 30-Sep-2014
892,Revenue,CCHD,Bed purchasing -S28A  Under 65 - North,Permanent Nursing,Eclipse Office Park,6328.12, 02-Sep-2014
893,Revenue,CCHD,Bed purchasing -S28A  Under 65 - North,Permanent Nursing,Eclipse Office Park,6358.12, 30-Sep-2014
894,Revenue,CCHD,Bed Purchasing - S28A - Over 65- North,Permanent Residential,Eclipse Office Park,2875.08, 02-Sep-2014
895,Revenue,CCHD,Bed Purchasing - S28A - Over 65- North,Permanent Residential,Eclipse Office Park,2875.08, 30-Sep-2014
896,Revenue,CCHD,Section 117 Placements MH Younger,Permanent Residential,Eclipse Office Park,1356, 02-Sep-2014
897,Revenue,CCHD,Section 117 Placements MH Younger,Permanent Residential,Eclipse Office Park,1356, 30-Sep-2014
898,Revenue,CCHD,Bed purchasing - Elderly MH - North,Permanent Residential,Eclipse Office Park,860.2, 02-Sep-2014
899,Revenue,CCHD,Bed purchasing - Elderly MH - North,Permanent Residential,Eclipse Office Park,860.2, 30-Sep-2014
900,Revenue,CCHD,Bed purchasing - S28A Under 65 - South,Permanent Residential,Eclipse Office Park,5415.92, 02-Sep-2014
901,Revenue,CCHD,Bed purchasing - S28A Under 65 - South,Permanent Residential,Eclipse Office Park,5415.92, 30-Sep-2014
902,Revenue,CCHD,Bed purchasing - Elderly PWLD - North,Permanent Residential,Eclipse Office Park,4307.44, 02-Sep-2014
903,Revenue,CCHD,Bed purchasing - Elderly PWLD - North,Permanent Residential,Eclipse Office Park,4307.44, 30-Sep-2014
904,Revenue,CCHD,Bed purchasing - Elderly MH - North,Permanent Nursing,Eclipse Office Park,1104.48, 02-Sep-2014
905,Revenue,CCHD,Bed purchasing - Elderly MH - North,Permanent Nursing,Eclipse Office Park,1104.48, 30-Sep-2014
906,Revenue,CCHD,Bed Purchasing - Under 65s PWLD - South,Permanent Residential,Eclipse Office Park,4271.52, 02-Sep-2014
907,Revenue,CCHD,Bed Purchasing - Under 65s PWLD - South,Permanent Residential,Eclipse Office Park,4271.52, 30-Sep-2014
908,Revenue,CCHD,Bed purchasing -S28A  Under 65 - North,Permanent Residential,Eclipse Office Park,5675.56, 02-Sep-2014
909,Revenue,CCHD,Bed purchasing -S28A  Under 65 - North,Permanent Residential,Eclipse Office Park,5675.56, 30-Sep-2014
910,Revenue,CCHD,Bed Purchasing - S28A - Over 65- North,Permanent Residential,Eclipse Office Park,3599.08, 02-Sep-2014
911,Revenue,CCHD,Bed Purchasing - S28A - Over 65- North,Permanent Residential,Eclipse Office Park,3599.08, 30-Sep-2014
912,Revenue,CCHD,Bed Purchasing - Elderly S117- North,Permanent Residential,Eclipse Office Park,1756, 02-Sep-2014
913,Revenue,CCHD,Bed Purchasing - Elderly S117- North,Permanent Residential,Eclipse Office Park,1756, 30-Sep-2014
914,Revenue,CCHD,MH Purchasing - Younger,Permanent Residential,Eclipse Office Park,1036.6, 02-Sep-2014
915,Revenue,CCHD,MH Purchasing - Younger,Permanent Residential,Eclipse Office Park,1036.6, 30-Sep-2014
916,Revenue,CCHD,Bed Purchasing - S28A - Over 65- North,Permanent Residential,Eclipse Office Park,3214.56, 02-Sep-2014
917,Revenue,CCHD,Bed Purchasing - S28A - Over 65- North,Permanent Residential,Eclipse Office Park,3214.56, 30-Sep-2014
918,Revenue,CCHD,Bed Purchasing - LD S28A- Over 65- South,Permanent Residential,Eclipse Office Park,3882.08, 02-Sep-2014
919,Revenue,CCHD,Bed Purchasing - LD S28A- Over 65- South,Permanent Residential,Eclipse Office Park,3882.08, 30-Sep-2014
920,Revenue,CCHD,Bed purchasing - S28A Under 65 - South,Permanent Residential,Eclipse Office Park,5471.56, 02-Sep-2014
921,Revenue,CCHD,Bed purchasing - S28A Under 65 - South,Permanent Residential,Eclipse Office Park,5471.56, 30-Sep-2014
922,Revenue,CCHD,Bed purchasing - S28A Under 65 - South,Permanent Nursing,Eclipse Office Park,5364.24, 02-Sep-2014
923,Revenue,CCHD,Bed purchasing - S28A Under 65 - South,Permanent Nursing,Eclipse Office Park,5364.24, 30-Sep-2014
924,Revenue,CCHD,Bed Purchasing - LD S28A- Over 65- South,Permanent Nursing,Eclipse Office Park,5225.52, 02-Sep-2014
925,Revenue,CCHD,Bed Purchasing - LD S28A- Over 65- South,Permanent Nursing,Eclipse Office Park,5225.52, 30-Sep-2014
926,Revenue,CCHD,Bed Purchasing - LD S28A- Over 65- South,Permanent Residential,Eclipse Office Park,4802.88, 02-Sep-2014
927,Revenue,CCHD,Bed Purchasing - LD S28A- Over 65- South,Permanent Residential,Eclipse Office Park,4802.88, 30-Sep-2014
928,Revenue,CCHD,Bed Purchasing - LD S28A- Over 65- South,Permanent Residential,Eclipse Office Park,4524.76, 02-Sep-2014
929,Revenue,CCHD,Bed Purchasing - LD S28A- Over 65- South,Permanent Residential,Eclipse Office Park,4524.76, 30-Sep-2014
930,Revenue,CCHD,Bed Purchasing - LD S28A- Over 65- South,Permanent Residential,Eclipse Office Park,4599.84, 02-Sep-2014
931,Revenue,CCHD,Bed Purchasing - LD S28A- Over 65- South,Permanent Residential,Eclipse Office Park,4599.84, 30-Sep-2014
932,Revenue,CCHD,Bed purchasing - S28A Under 65 - South,Permanent Residential,Eclipse Office Park,6053.44, 02-Sep-2014
933,Revenue,CCHD,Bed purchasing - S28A Under 65 - South,Permanent Residential,Eclipse Office Park,6053.44, 30-Sep-2014
934,Revenue,CCHD,Bed Purchasing - LD S28A- Over 65- South,Permanent Residential,Eclipse Office Park,4667.16, 02-Sep-2014
935,Revenue,CCHD,Bed Purchasing - LD S28A- Over 65- South,Permanent Residential,Eclipse Office Park,4667.16, 30-Sep-2014
936,Revenue,CCHD,Bed Purchasing - S28A - Over 65- North,Permanent Residential,Eclipse Office Park,4750.44, 02-Sep-2014
937,Revenue,CCHD,Bed Purchasing - S28A - Over 65- North,Permanent Residential,Eclipse Office Park,4750.44, 30-Sep-2014
938,Revenue,CCHD,Bed Purchasing - Elderly S117- North,Permanent Nursing,Eclipse Office Park,1816, 02-Sep-2014
939,Revenue,CCHD,Bed Purchasing - Elderly S117- North,Permanent Nursing,Eclipse Office Park,1816, 30-Sep-2014
940,Revenue,CCHD,Bed Purchasing - S28A - Over 65- North,Permanent Residential,Eclipse Office Park,4588.52, 02-Sep-2014
941,Revenue,CCHD,Bed Purchasing - S28A - Over 65- North,Permanent Residential,Eclipse Office Park,4588.52, 30-Sep-2014
942,Revenue,CCHD,Bed Purchasing - S28A - Over 65- North,Permanent Residential,Eclipse Office Park,4759.28, 02-Sep-2014
943,Revenue,CCHD,Bed Purchasing - S28A - Over 65- North,Permanent Residential,Eclipse Office Park,4759.28, 30-Sep-2014
944,Revenue,CCHD,Bed purchasing - S28A Under 65 - South,Permanent Residential,Eclipse Office Park,4756.28, 02-Sep-2014
945,Revenue,CCHD,Bed purchasing - S28A Under 65 - South,Permanent Residential,Eclipse Office Park,4756.28, 30-Sep-2014
946,Revenue,CCHD,Bed Purchasing - S28A - Over 65- North,Permanent Residential,Eclipse Office Park,4503.16, 02-Sep-2014
947,Revenue,CCHD,Bed Purchasing - S28A - Over 65- North,Permanent Residential,Eclipse Office Park,4503.16, 30-Sep-2014
948,Revenue,CCHD,Bed purchasing -S28A  Under 65 - North,Permanent Residential,Eclipse Office Park,7058.72, 02-Sep-2014
949,Revenue,CCHD,Bed purchasing -S28A  Under 65 - North,Permanent Residential,Eclipse Office Park,7058.72, 30-Sep-2014
950,Revenue,CCHD,Bed purchasing -S28A  Under 65 - North,Permanent Residential,Eclipse Office Park,3304.04, 02-Sep-2014
951,Revenue,CCHD,Bed purchasing -S28A  Under 65 - North,Permanent Residential,Eclipse Office Park,3304.04, 30-Sep-2014
952,Revenue,CCHD,Bed Purchasing - S28A - Over 65- North,Permanent Residential,Eclipse Office Park,3133.72, 02-Sep-2014
953,Revenue,CCHD,Bed Purchasing - S28A - Over 65- North,Permanent Residential,Eclipse Office Park,3133.72, 30-Sep-2014
954,Revenue,CCHD,Bed Purchasing - S28A - Over 65- North,Permanent Residential,Eclipse Office Park,3266.96, 02-Sep-2014
955,Revenue,CCHD,Bed Purchasing - S28A - Over 65- North,Permanent Residential,Eclipse Office Park,3888.32, 30-Sep-2014
956,Revenue,CCHD,Bed Purchasing - LD S28A- Over 65- South,Permanent Residential,Eclipse Office Park,17744.73, 02-Sep-2014
957,Revenue,CCHD,Bed Purchasing - LD S28A- Over 65- South,Permanent Residential,Eclipse Office Park,3086.04, 30-Sep-2014
958,Revenue,CCHD,Bed purchasing - Under 65s PWLD - North,Permanent Residential,Eclipse Office Park,6773.16, 02-Sep-2014
959,Revenue,CCHD,Bed purchasing - Under 65s PWLD - North,Permanent Residential,Eclipse Office Park,6773.16, 30-Sep-2014
960,Revenue,CCHD,Bed Purchasing - South,Permanent Residential,Eclipse Office Park,1318.68, 02-Sep-2014
961,Revenue,CCHD,Bed Purchasing - South,Permanent Residential,Eclipse Office Park,1318.68, 30-Sep-2014
962,Revenue,CCHD,MH Purchasing - Younger,Permanent Nursing,Eclipse Office Park,937.8, 02-Sep-2014
963,Revenue,CCHD,MH Purchasing - Younger,Permanent Nursing,Eclipse Office Park,937.8, 30-Sep-2014
964,Revenue,CCHD,MH Purchasing - Younger,Permanent Nursing,Eclipse Office Park,952.2, 02-Sep-2014
965,Revenue,CCHD,MH Purchasing - Younger,Permanent Nursing,Eclipse Office Park,952.2, 30-Sep-2014
966,Revenue,CCHD,Bed purchasing - Elderly PWLD - South,Permanent Residential,Eclipse Office Park,3254.24, 02-Sep-2014
967,Revenue,CCHD,Bed purchasing - Elderly PWLD - South,Permanent Residential,Eclipse Office Park,3254.24, 30-Sep-2014
968,Revenue,CCHD,Bed purchasing - S28A Under 65 - South,Permanent Residential,Eclipse Office Park,5919.12, 02-Sep-2014
969,Revenue,CCHD,Bed purchasing - S28A Under 65 - South,Permanent Residential,Eclipse Office Park,5919.12, 30-Sep-2014
970,Revenue,CCHD,Bed purchasing - S28A Under 65 - South,Permanent Residential,Eclipse Office Park,6010.16, 02-Sep-2014
971,Revenue,CCHD,Bed purchasing - S28A Under 65 - South,Permanent Residential,Eclipse Office Park,6010.16, 30-Sep-2014
972,Revenue,CCHD,Bed Purchasing - LD S28A- Over 65- South,Permanent Residential,Eclipse Office Park,4353.28, 02-Sep-2014
973,Revenue,CCHD,Bed Purchasing - LD S28A- Over 65- South,Permanent Residential,Eclipse Office Park,4353.28, 30-Sep-2014
974,Revenue,CCHD,Bed Purchasing - Under 65s PWLD - South,Permanent Residential,Eclipse Office Park,5919.52, 02-Sep-2014
975,Revenue,CCHD,Bed Purchasing - Under 65s PWLD - South,Permanent Residential,Eclipse Office Park,5919.52, 30-Sep-2014
976,Revenue,CCHD,Bed Purchasing - LD S28A- Over 65- South,Permanent Nursing,Eclipse Office Park,4528.36, 02-Sep-2014
977,Revenue,CCHD,Bed Purchasing - LD S28A- Over 65- South,Permanent Nursing,Eclipse Office Park,4528.36, 30-Sep-2014
978,Revenue,CCHD,Bed Purchasing - LD S28A- Over 65- South,Permanent Nursing,Eclipse Office Park,5225.52, 02-Sep-2014
979,Revenue,CCHD,Bed Purchasing - LD S28A- Over 65- South,Permanent Nursing,Eclipse Office Park,5225.52, 30-Sep-2014
980,Revenue,CCHD,Bed Purchasing - LD S28A- Over 65- South,Permanent Residential,Eclipse Office Park,3540.96, 02-Sep-2014
981,Revenue,CCHD,Bed Purchasing - LD S28A- Over 65- South,Permanent Residential,Eclipse Office Park,16723.72, 02-Sep-2014
982,Revenue,CCHD,Bed Purchasing - LD S28A- Over 65- South,Permanent Residential,Eclipse Office Park,3540.96, 30-Sep-2014
983,Revenue,CCHD,Bed Purchasing - LD S28A- Over 65- South,Permanent Residential,Eclipse Office Park,4343.36, 02-Sep-2014
984,Revenue,CCHD,Bed Purchasing - LD S28A- Over 65- South,Permanent Residential,Eclipse Office Park,4343.36, 30-Sep-2014
985,Revenue,CCHD,Bed Purchasing - LD S28A- Over 65- South,Permanent Residential,Eclipse Office Park,4832.92, 02-Sep-2014
986,Revenue,CCHD,Bed Purchasing - LD S28A- Over 65- South,Permanent Residential,Eclipse Office Park,22266.44, 02-Sep-2014
987,Revenue,CCHD,Bed Purchasing - LD S28A- Over 65- South,Permanent Residential,Eclipse Office Park,4832.92, 30-Sep-2014
988,Revenue,CCHD,Bed Purchasing - South,Permanent Nursing,Eclipse Office Park,7047.98, 02-Sep-2014
989,Revenue,CCHD,Bed Purchasing - Elderly MH - South,Permanent Residential,Eclipse Office Park,1224.16, 02-Sep-2014
990,Revenue,CCHD,Bed Purchasing - Elderly MH - South,Permanent Residential,Eclipse Office Park,1224.16, 30-Sep-2014
991,Revenue,CCHD,Bed purchasing -S28A  Under 65 - North,Permanent Nursing,Eclipse Office Park,7675.92, 02-Sep-2014
992,Revenue,CCHD,Bed purchasing -S28A  Under 65 - North,Permanent Nursing,Eclipse Office Park,7675.92, 30-Sep-2014
993,Revenue,CCHD,Bed Purchasing - Frenchay Hospital,Permanent Nursing,Eclipse Office Park,1348.48, 02-Sep-2014
994,Revenue,CCHD,Bed Purchasing - Frenchay Hospital,Permanent Nursing,Eclipse Office Park,1348.48, 30-Sep-2014
995,Revenue,CCHD,Bed Purchasing - Under 65s PWLD - South,Permanent Residential,Eclipse Office Park,5257, 02-Sep-2014
996,Revenue,CCHD,Bed Purchasing - Under 65s PWLD - South,Permanent Residential,Eclipse Office Park,5257, 30-Sep-2014
997,Revenue,CCHD,Bed Purchasing - Elderly S117- North,Permanent Nursing,Eclipse Office Park,1992, 02-Sep-2014
998,Revenue,CCHD,Bed Purchasing - Elderly S117- North,Permanent Nursing,Eclipse Office Park,1992, 30-Sep-2014
999,Revenue,CCHD,Bed Purchasing - North,Permanent Nursing,Eclipse Office Park,1496.2, 30-Sep-2014
1000,Revenue,CCHD,Section 117 Placements MH Younger,Permanent Residential,Eclipse Office Park,1356, 02-Sep-2014
1001,Revenue,CCHD,Section 117 Placements MH Younger,Permanent Residential,Eclipse Office Park,1356, 30-Sep-2014
1002,Revenue,CCHD,Bed purchasing - Elderly PWLD - South,Permanent Nursing,Eclipse Office Park,3389.36, 02-Sep-2014
1003,Revenue,CCHD,Bed purchasing - Elderly PWLD - South,Permanent Nursing,Eclipse Office Park,3389.36, 30-Sep-2014
1004,Revenue,CCHD,Bed Purchasing - South,Permanent Residential,Eclipse Office Park,3389.48, 02-Sep-2014
1005,Revenue,CCHD,Bed Purchasing - South,Permanent Residential,Eclipse Office Park,3389.48, 30-Sep-2014
1006,Revenue,CCHD,Bed Purchasing - LD S28A- Over 65- South,Permanent Nursing,Eclipse Office Park,2981.68, 02-Sep-2014
1007,Revenue,CCHD,Bed Purchasing - LD S28A- Over 65- South,Permanent Nursing,Eclipse Office Park,2981.68, 30-Sep-2014
1008,Revenue,CCHD,Bed Purchasing - LD S28A- Over 65- South,Permanent Nursing,Eclipse Office Park,2767.44, 02-Sep-2014
1009,Revenue,CCHD,Bed Purchasing - LD S28A- Over 65- South,Permanent Nursing,Eclipse Office Park,2767.44, 30-Sep-2014
1010,Revenue,CCHD,Bed Purchasing - S28A - Over 65- North,Permanent Nursing,Eclipse Office Park,3692.72, 02-Sep-2014
1011,Revenue,CCHD,Bed Purchasing - S28A - Over 65- North,Permanent Nursing,Eclipse Office Park,3692.72, 30-Sep-2014
1012,Revenue,CCHD,Bed Purchasing - S28A - Over 65- North,Permanent Nursing,Eclipse Office Park,3684.72, 02-Sep-2014
1013,Revenue,CCHD,Bed Purchasing - S28A - Over 65- North,Permanent Nursing,Eclipse Office Park,3684.72, 30-Sep-2014
1014,Revenue,CCHD,MH Purchasing - Younger,Respite Planned - Residential,Eclipse Office Park,3734.48, 02-Sep-2014
1015,Revenue,CCHD,MH Purchasing - Younger,Respite Planned - Residential,Eclipse Office Park,3734.48, 30-Sep-2014
1016,Revenue,CCHD,Bed Purchasing - South,Respite Planned - Residential,Edgecumbe Lodge,6075, 30-Sep-2014
1017,Revenue,CCHD,Bed Purchasing - South,Respite Planned - Residential,Edgecumbe Lodge,2100, 30-Sep-2014
1018,Revenue,CCHD,Bed Purchasing - Southmead Hospital,Permanent Residential,Edgecumbe Lodge,1260.2, 02-Sep-2014
1019,Revenue,CCHD,Bed Purchasing - Southmead Hospital,Permanent Residential,Edgecumbe Lodge,1260.2, 30-Sep-2014
1020,Revenue,CCHD,Bed Purchasing - South,Permanent Residential,Edgecumbe Lodge,1635.28, 02-Sep-2014
1021,Revenue,CCHD,Bed Purchasing - South,Permanent Residential,Edgecumbe Lodge,1635.28, 30-Sep-2014
1022,Revenue,CCHD,Bed Purchasing - South,Permanent Residential,Edgecumbe Lodge,1056.36, 02-Sep-2014
1023,Revenue,CCHD,Bed Purchasing - South,Permanent Residential,Edgecumbe Lodge,1056.36, 30-Sep-2014
1024,Revenue,CCHD,Bed Purchasing - Southmead Hospital,Permanent Residential,Edgecumbe Lodge,2131.08, 02-Sep-2014
1025,Revenue,CCHD,Bed Purchasing - Southmead Hospital,Permanent Residential,Edgecumbe Lodge,2131.08, 30-Sep-2014
1026,Revenue,CCHD,Bed Purchasing - South,Permanent Residential,Edgecumbe Lodge,1427, 02-Sep-2014
1027,Revenue,CCHD,Bed Purchasing - South,Permanent Residential,Edgecumbe Lodge,1427, 30-Sep-2014
1028,Revenue,CCHD,Bed Purchasing - Southmead Hospital,Permanent Residential,Edgecumbe Lodge,1440.72, 02-Sep-2014
1029,Revenue,CCHD,Bed Purchasing - Southmead Hospital,Permanent Residential,Edgecumbe Lodge,2051.56, 02-Sep-2014
1030,Revenue,CCHD,Bed Purchasing - Southmead Hospital,Permanent Residential,Edgecumbe Lodge,1594.6, 30-Sep-2014
1031,Revenue,CCHD,Bed Purchasing - Southmead Hospital,Permanent Residential,Edgecumbe Lodge,1533.8, 02-Sep-2014
1032,Revenue,CCHD,Bed Purchasing - Southmead Hospital,Permanent Residential,Edgecumbe Lodge,1533.8, 30-Sep-2014
1033,Revenue,CCHD,Bed Purchasing - South,Permanent Residential,Edgecumbe Lodge,1141.04, 02-Sep-2014
1034,Revenue,CCHD,Bed Purchasing - South,Permanent Residential,Edgecumbe Lodge,1141.04, 30-Sep-2014
1035,Revenue,CCHD,Bed Purchasing - South,Permanent Residential,Edgecumbe Lodge,1286.84, 02-Sep-2014
1036,Revenue,CCHD,Bed Purchasing - South,Permanent Residential,Edgecumbe Lodge,1286.84, 30-Sep-2014
1037,Revenue,CCHD,Bed Purchasing - South,Permanent Residential,Edgecumbe Lodge,1231.12, 02-Sep-2014
1038,Revenue,CCHD,Bed Purchasing - South,Permanent Residential,Edgecumbe Lodge,1231.12, 30-Sep-2014
1039,Revenue,CCHD,Bed purchasing - Elderly MH - North,Permanent Residential,Edgecumbe Lodge,1372.64, 02-Sep-2014
1040,Revenue,CCHD,Bed purchasing - Elderly MH - North,Permanent Residential,Edgecumbe Lodge,1372.64, 30-Sep-2014
1041,Revenue,CCHD,Bed Purchasing - Southmead Hospital,Permanent Residential,Edgemont House Ltd,1432.2, 02-Sep-2014
1042,Revenue,CCHD,Bed Purchasing - Southmead Hospital,Permanent Residential,Edgemont House Ltd,1432.2, 30-Sep-2014
1043,Revenue,CCHD,Bed Purchasing - South,Permanent Residential,Edgemont House Ltd,1472.92, 02-Sep-2014
1044,Revenue,CCHD,Bed Purchasing - South,Permanent Residential,Edgemont House Ltd,1472.92, 30-Sep-2014
1045,Revenue,CCHD,Bed Purchasing - South,Permanent Residential,Edgemont House Ltd,1260.2, 02-Sep-2014
1046,Revenue,CCHD,Bed Purchasing - South,Permanent Residential,Edgemont House Ltd,1260.2, 30-Sep-2014
1047,Revenue,CCHD,Bed Purchasing - South,Permanent Residential,Edgemont House Ltd,1260.2, 02-Sep-2014
1048,Revenue,CCHD,Bed Purchasing - South,Permanent Residential,Edgemont House Ltd,1260.2, 30-Sep-2014
1049,Revenue,CCHD,Bed Purchasing - South,Permanent Residential,Edgemont House Ltd,1430.32, 02-Sep-2014
1050,Revenue,CCHD,Bed Purchasing - South,Permanent Residential,Edgemont House Ltd,1430.32, 30-Sep-2014
1051,Revenue,CCHD,Bed Purchasing - South,Permanent Residential,Edgemont House Ltd,1293.48, 02-Sep-2014
1052,Revenue,CCHD,Bed Purchasing - South,Permanent Residential,Edgemont House Ltd,1293.48, 30-Sep-2014
1053,Revenue,CCHD,South Glos Users in South Glos Homes,Permanent Nursing,Edgemont View Nursing Home,1710.87, 02-Sep-2014
1054,Revenue,CCHD,Swift Dump Code,Permanent Residential,Edgemont View Nursing Home,883.23, 02-Sep-2014
1055,Revenue,CCHD,Bed Purchasing - South,Permanent Nursing,Edgemont View Nursing Home,1903.4, 30-Sep-2014
1056,Revenue,CCHD,Bed Purchasing - South,Permanent Nursing,Edgemont View Nursing Home,511.8, 30-Sep-2014
1057,Revenue,CCHD,Bed Purchasing - North,Permanent Nursing,Edgemont View Nursing Home,1217.24, 02-Sep-2014
1058,Revenue,CCHD,Bed Purchasing - North,Permanent Nursing,Edgemont View Nursing Home,1217.24, 30-Sep-2014
1059,Revenue,CCHD,Bed Purchasing - South,Permanent Nursing,Edgemont View Nursing Home,1445.88, 02-Sep-2014
1060,Revenue,CCHD,Bed Purchasing - South,Permanent Nursing,Edgemont View Nursing Home,1445.88, 30-Sep-2014
1061,Revenue,CCHD,Bed Purchasing - Frenchay Hospital,Permanent Nursing,Edgemont View Nursing Home,1275.8, 02-Sep-2014
1062,Revenue,CCHD,Bed Purchasing - Frenchay Hospital,Permanent Nursing,Edgemont View Nursing Home,1275.8, 30-Sep-2014
1063,Revenue,CCHD,Bed Purchasing - South,Permanent Nursing,Edgemont View Nursing Home,1320.36, 02-Sep-2014
1064,Revenue,CCHD,Bed Purchasing - South,Permanent Nursing,Edgemont View Nursing Home,1320.36, 30-Sep-2014
1065,Revenue,CCHD,Bed Purchasing - South,Permanent Nursing,Edgemont View Nursing Home,1634.8, 02-Sep-2014
1066,Revenue,CCHD,Bed Purchasing - South,Permanent Nursing,Edgemont View Nursing Home,1634.8, 30-Sep-2014
1067,Revenue,CCHD,Bed Purchasing - South,Permanent Nursing,Edgemont View Nursing Home,1196.68, 02-Sep-2014
1068,Revenue,CCHD,Bed Purchasing - South,Permanent Nursing,Edgemont View Nursing Home,1196.68, 30-Sep-2014
1069,Revenue,CCHD,Supporting People Programme,Grants to Voluntary Bodies,Elim Housing Association Limited,5018.5, 01-Sep-2014
1070,Revenue,CCHD,Home Care - Elderly - South,Other Small Contracts,Elite Home Care Ltd,4977.43, 08-Sep-2014
1071,Revenue,CCHD,Home Care - Elderly - North,Other Small Contracts,Elite Home Care Ltd,332.12, 08-Sep-2014
1072,Revenue,CCHD,Home Care - Elderly - South,Other Small Contracts,Elite Home Care Ltd,4872.55, 08-Sep-2014
1073,Revenue,CCHD,Home Care - Elderly - North,Other Small Contracts,Elite Home Care Ltd,332.12, 08-Sep-2014
1074,Revenue,CCHD,Home Care - Elderly - South,Other Small Contracts,Elite Home Care Ltd,4981.8, 08-Sep-2014
1075,Revenue,CCHD,Home Care - Elderly - North,Other Small Contracts,Elite Home Care Ltd,340.86, 08-Sep-2014
1076,Revenue,CCHD,Home Care - Elderly - South,Other Small Contracts,Elite Home Care Ltd,4807, 30-Sep-2014
1077,Revenue,CCHD,Home Care - Elderly - North,Other Small Contracts,Elite Home Care Ltd,332.12, 30-Sep-2014
1078,Revenue,CCHD,Home Care - Elderly - South,Other Small Contracts,Elite Home Care Ltd,4470.51, 29-Sep-2014
1079,Revenue,CCHD,Home Care - Elderly - North,Other Small Contracts,Elite Home Care Ltd,332.12, 29-Sep-2014
1080,Revenue,CCHD,Home Care - Elderly - South,Other Small Contracts,Elite Home Care Ltd,4016.03, 30-Sep-2014
1081,Revenue,CCHD,Home Care - Elderly - North,Other Small Contracts,Elite Home Care Ltd,332.12, 30-Sep-2014
1082,Revenue,CCHD,Bed Purchasing - South,Permanent Residential,Elmbridge Residential Home Ltd,1338.08, 02-Sep-2014
1083,Revenue,CCHD,Bed Purchasing - South,Permanent Residential,Elmbridge Residential Home Ltd,1338.08, 30-Sep-2014
1084,Revenue,CCHD,Day Care - South,Day Care / Social Activities,Enham,638.72, 08-Sep-2014
1085,Revenue,CCHD,Home Care - Elderly - South,Other Small Contracts,Everycare (Bristol) Ltd,4377.5, 02-Sep-2014
1086,Revenue,CCHD,Home Care - Elderly - North,Other Small Contracts,Everycare (Bristol) Ltd,2335.87, 02-Sep-2014
1087,Revenue,CCHD,Under 65s -MH  Home Care Purch,Other Small Contracts,Everycare (Bristol) Ltd,51, 02-Sep-2014
1088,Revenue,CCHD,Home Care - Elderly - South,Other Small Contracts,Everycare (Bristol) Ltd,3115.25, 11-Sep-2014
1089,Revenue,CCHD,Home Care - Elderly - North,Other Small Contracts,Everycare (Bristol) Ltd,2919.75, 11-Sep-2014
1090,Revenue,CCHD,Under 65s -MH  Home Care Purch,Other Small Contracts,Everycare (Bristol) Ltd,51, 11-Sep-2014
1091,Revenue,CCHD,Home Care - Elderly - South,Other Small Contracts,Everycare (Bristol) Ltd,3128, 15-Sep-2014
1092,Revenue,CCHD,Home Care - Elderly - North,Other Small Contracts,Everycare (Bristol) Ltd,3196, 15-Sep-2014
1093,Revenue,CCHD,Under 65s -MH  Home Care Purch,Other Small Contracts,Everycare (Bristol) Ltd,51, 15-Sep-2014
1094,Revenue,CCHD,Home Care - Elderly - South,Other Small Contracts,Everycare (Bristol) Ltd,2809.25, 30-Sep-2014
1095,Revenue,CCHD,Home Care - Elderly - North,Other Small Contracts,Everycare (Bristol) Ltd,2715.75, 30-Sep-2014
1096,Revenue,CCHD,Under 65s -MH  Home Care Purch,Other Small Contracts,Everycare (Bristol) Ltd,55.25, 30-Sep-2014
1097,Revenue,CCHD,Home Care - Elderly - South,Other Small Contracts,Everycare (Bristol) Ltd,3111, 29-Sep-2014
1098,Revenue,CCHD,Home Care - Elderly - North,Other Small Contracts,Everycare (Bristol) Ltd,2723.79, 29-Sep-2014
1099,Revenue,CCHD,Bed Purchasing - Elderly MH - South,Permanent Residential,Exmouth House,1420.84, 02-Sep-2014
1100,Revenue,CCHD,Bed Purchasing - Elderly MH - South,Permanent Residential,Exmouth House,1420.84, 30-Sep-2014
1101,Revenue,CCHD,Bed Purchasing - South,Permanent Nursing,Fairview Court,1148.04, 02-Sep-2014
1102,Revenue,CCHD,Bed Purchasing - South,Permanent Nursing,Fairview Court,1148.04, 30-Sep-2014
1103,Revenue,CCHD,Bed Purchasing - Elderly MH - South,Permanent Nursing,Fairview Court,1880.16, 02-Sep-2014
1104,Revenue,CCHD,Bed Purchasing - Elderly MH - South,Permanent Nursing,Fairview Court,1880.16, 30-Sep-2014
1105,Revenue,CCHD,Bed Purchasing - Frenchay Hospital,Permanent Nursing,Fairview Court,1879.96, 02-Sep-2014
1106,Revenue,CCHD,Bed Purchasing - Frenchay Hospital,Permanent Nursing,Fairview Court,1879.96, 30-Sep-2014
1107,Revenue,CCHD,Bed Purchasing - Elderly MH - South,Permanent Nursing,Fairview Court,1962.56, 02-Sep-2014
1108,Revenue,CCHD,South Glos Users in South Glos Homes,Permanent Nursing,Fairview Court,1077.22, 30-Sep-2014
1109,Revenue,CCHD,Bed Purchasing - Elderly MH - South,Permanent Residential,Fairview Court,1432.2, 02-Sep-2014
1110,Revenue,CCHD,Bed Purchasing - South,Permanent Nursing,Fairview Court,1646.6, 02-Sep-2014
1111,Revenue,CCHD,Bed Purchasing - South,Permanent Nursing,Fairview Court,1646.6, 30-Sep-2014
1112,Revenue,CCHD,Bed Purchasing - South,Permanent Nursing,Fairview Court,1774.64, 02-Sep-2014
1113,Revenue,CCHD,South Glos Users in South Glos Homes,Permanent Nursing,Fairview Court,5583.61, 30-Sep-2014
1114,Revenue,CCHD,South Glos Users in South Glos Homes,Permanent Nursing,Fairview Court,2645.52, 30-Sep-2014
1115,Revenue,CCHD,Bed Purchasing - South,Permanent Nursing,Fairview Court,1774.64, 30-Sep-2014
1116,Revenue,CCHD,Bed Purchasing - South,Permanent Residential,Fairview Court,2687.76, 02-Sep-2014
1117,Revenue,CCHD,Bed Purchasing - South,Permanent Residential,Fairview Court,2687.76, 30-Sep-2014
1118,Revenue,CCHD,Bed Purchasing - Elderly MH - South,Permanent Nursing,Fairview Court,2001.48, 02-Sep-2014
1119,Revenue,CCHD,Bed Purchasing - Elderly MH - South,Permanent Nursing,Fairview Court,2001.48, 30-Sep-2014
1120,Revenue,CCHD,Bed Purchasing - South,Permanent Nursing,Fairview Court,1858.8, 02-Sep-2014
1121,Revenue,CCHD,Bed Purchasing - South,Permanent Nursing,Fairview Court,1858.8, 30-Sep-2014
1122,Revenue,CCHD,Bed Purchasing - South,Permanent Nursing,Fairview Court,2284.64, 02-Sep-2014
1123,Revenue,CCHD,Bed Purchasing - South,Permanent Nursing,Fairview Court,981.67, 02-Sep-2014
1124,Revenue,CCHD,Bed Purchasing - South,Permanent Nursing,Fairview Court,2284.64, 30-Sep-2014
1125,Revenue,CCHD,Bed Purchasing - South,Respite Planned - Nursing,Fairview Court,3445.55, 02-Sep-2014
1126,Revenue,CCHD,Bed Purchasing - South,Permanent Nursing,Fairview Court,2060.64, 02-Sep-2014
1127,Revenue,CCHD,Bed Purchasing - South,Permanent Nursing,Fairview Court,2060.64, 30-Sep-2014
1128,Revenue,CCHD,Bed Purchasing - South,Permanent Nursing,Fairview Court,2739.96, 02-Sep-2014
1129,Revenue,CCHD,Bed Purchasing - South,Permanent Nursing,Fairview Court,2739.96, 30-Sep-2014
1130,Revenue,CCHD,Bed Purchasing - Elderly MH - South,Permanent Nursing,Fairview Court,1951.44, 02-Sep-2014
1131,Revenue,CCHD,Bed purchasing - Elderly MH - North,Permanent Nursing,Fairview Court,1713.92, 02-Sep-2014
1132,Revenue,CCHD,South Glos Users in South Glos Homes,Permanent Nursing,Fairview Court,5724.76, 30-Sep-2014
1133,Revenue,CCHD,South Glos Users in South Glos Homes,Permanent Nursing,Fairview Court,2645.52, 30-Sep-2014
1134,Revenue,CCHD,Bed purchasing - Elderly MH - North,Permanent Nursing,Fairview Court,1713.92, 30-Sep-2014
1135,Revenue,CCHD,South Glos Users in South Glos Homes,Permanent Nursing,Fairview Court,962.77, 30-Sep-2014
1136,Revenue,CCHD,Bed Purchasing - South,Permanent Nursing,Fairview Court Care Home,1163.96, 15-Sep-2014
1137,Revenue,CCHD,Bed purchasing - Phys Dis - North,Permanent Nursing,Fairview Court Care Home,1018, 15-Sep-2014
1138,Revenue,CCHD,Bed purchasing - Phys Dis - North,Permanent Nursing,Fairview Court Care Home,2057.43, 15-Sep-2014
1139,Revenue,CCHD,Bed Purchasing - Elderly MH - South,Permanent Nursing,Fairview Court Care Home,1997.1, 15-Sep-2014
1140,Revenue,CCHD,Bed Purchasing - Frenchay Hospital,Permanent Nursing,Fairview Court Care Home,1571.88, 15-Sep-2014
1141,Revenue,CCHD,Bed purchasing - Elderly S117 - South,Permanent Nursing,Fairview Court Care Home,2612.59, 15-Sep-2014
1142,Revenue,CCHD,Bed Purchasing - South,Permanent Residential,Fairview House,872.32, 02-Sep-2014
1143,Revenue,CCHD,Bed Purchasing - South,Permanent Residential,Fairview House,872.32, 30-Sep-2014
1144,Revenue,CCHD,Bed Purchasing - South,Permanent Residential,Fairview House,1287.28, 02-Sep-2014
1145,Revenue,CCHD,Bed Purchasing - South,Permanent Residential,Fairview House,1287.28, 30-Sep-2014
1146,Revenue,CCHD,Bed purchasing - Elderly S117 - South,Permanent Residential,Fairview House,1916.84, 02-Sep-2014
1147,Revenue,CCHD,Bed purchasing - Elderly S117 - South,Permanent Residential,Fairview House,1916.84, 30-Sep-2014
1148,Revenue,CCHD,Bed Purchasing - Southmead Hospital,Permanent Residential,Fairview House,1023.16, 02-Sep-2014
1149,Revenue,CCHD,Bed Purchasing - Southmead Hospital,Permanent Residential,Fairview House,1023.16, 30-Sep-2014
1150,Revenue,CCHD,Bed Purchasing - South,Permanent Residential,Fairview House,721.24, 02-Sep-2014
1151,Revenue,CCHD,Bed Purchasing - South,Permanent Residential,Fairview House,721.24, 30-Sep-2014
1152,Revenue,CCHD,Bed Purchasing - South,Permanent Residential,Fairview House,1260.2, 02-Sep-2014
1153,Revenue,CCHD,Bed Purchasing - South,Permanent Residential,Fairview House,1260.2, 30-Sep-2014
1154,Revenue,CCHD,Bed Purchasing - South,Permanent Residential,Fairview House,1192.92, 02-Sep-2014
1155,Revenue,CCHD,Bed Purchasing - South,Permanent Residential,Fairview House,1192.92, 30-Sep-2014
1156,Revenue,CCHD,Bed Purchasing - Southmead Hospital,Permanent Residential,Fairview House,1130.96, 02-Sep-2014
1157,Revenue,CCHD,Bed Purchasing - Elderly MH - South,Permanent Residential,Fairview House,1117.92, 02-Sep-2014
1158,Revenue,CCHD,Bed Purchasing - Elderly MH - South,Permanent Residential,Fairview House,1117.92, 30-Sep-2014
1159,Revenue,CCHD,Bed Purchasing - Frenchay Hospital,Permanent Residential,Fairview House,1260.2, 02-Sep-2014
1160,Revenue,CCHD,Bed Purchasing - Frenchay Hospital,Permanent Residential,Fairview House,1260.2, 30-Sep-2014
1161,Revenue,CCHD,Bed Purchasing - Southmead Hospital,Permanent Residential,Fairview House,1077.32, 02-Sep-2014
1162,Revenue,CCHD,Bed Purchasing - Southmead Hospital,Permanent Residential,Fairview House,1077.32, 30-Sep-2014
1163,Revenue,CCHD,Bed Purchasing - Elderly MH - South,Permanent Residential,Fairview House,1039.6, 02-Sep-2014
1164,Revenue,CCHD,Bed Purchasing - Elderly MH - South,Permanent Residential,Fairview House,1039.6, 30-Sep-2014
1165,Revenue,CCHD,Bed Purchasing - Frenchay Hospital,Permanent Residential,Faith House,1223.28, 02-Sep-2014
1166,Revenue,CCHD,Bed Purchasing - Frenchay Hospital,Permanent Residential,Faith House,1223.28, 30-Sep-2014
1167,Revenue,CCHD,Bed purchasing - Under 65s PWLD - North,Permanent Residential,Fernbank,7706, 02-Sep-2014
1168,Revenue,CCHD,Bed purchasing - Under 65s PWLD - North,Permanent Residential,Fernbank,7706, 30-Sep-2014
1169,Revenue,CCHD,Home Care - Elderly - South,Other Small Contracts,Firstpoint Homecare Ltd,1666.56, 01-Sep-2014
1170,Revenue,CCHD,Home Care - Elderly - North,Other Small Contracts,Firstpoint Homecare Ltd,1858.56, 01-Sep-2014
1171,Revenue,CCHD,Home Care - Elderly - South,Other Small Contracts,Firstpoint Homecare Ltd,1862.4, 01-Sep-2014
1172,Revenue,CCHD,Home Care - Elderly - North,Other Small Contracts,Firstpoint Homecare Ltd,1570.56, 01-Sep-2014
1173,Revenue,CCHD,Under 65s -MH  Home Care Purch,Other Small Contracts,Firstpoint Homecare Ltd,46.08, 01-Sep-2014
1174,Revenue,CCHD,Home care - Elderly MH - North,Other Small Contracts,Firstpoint Homecare Ltd,49.92, 01-Sep-2014
1175,Revenue,CCHD,Home Care - Elderly - South,Other Small Contracts,Firstpoint Homecare Ltd,2242.56, 15-Sep-2014
1176,Revenue,CCHD,Home Care - Elderly - North,Other Small Contracts,Firstpoint Homecare Ltd,1524.48, 15-Sep-2014
1177,Revenue,CCHD,Under 65s -MH  Home Care Purch,Other Small Contracts,Firstpoint Homecare Ltd,46.08, 15-Sep-2014
1178,Revenue,CCHD,Home care - Elderly MH - North,Other Small Contracts,Firstpoint Homecare Ltd,46.08, 15-Sep-2014
1179,Revenue,CCHD,Home Care - Elderly - South,Other Small Contracts,Firstpoint Homecare Ltd,2138.88, 16-Sep-2014
1180,Revenue,CCHD,Home Care - Elderly - North,Other Small Contracts,Firstpoint Homecare Ltd,1793.28, 16-Sep-2014
1181,Revenue,CCHD,Under 65s -MH  Home Care Purch,Other Small Contracts,Firstpoint Homecare Ltd,46.08, 16-Sep-2014
1182,Revenue,CCHD,Home care - Elderly MH - North,Other Small Contracts,Firstpoint Homecare Ltd,46.08, 16-Sep-2014
1183,Revenue,CCHD,Bed Purchasing - South,Permanent Nursing,Four Seasons Health Care,1196.88, 02-Sep-2014
1184,Revenue,CCHD,Bed Purchasing - South,Permanent Nursing,Four Seasons Health Care,1196.88, 30-Sep-2014
1185,Revenue,CCHD,Bed Purchasing - Elderly S117- North,Permanent Residential,Four Seasons Health Care,2060.4, 02-Sep-2014
1186,Revenue,CCHD,Bed Purchasing - Elderly S117- North,Permanent Residential,Four Seasons Health Care,2060.4, 30-Sep-2014
1187,Revenue,CCHD,Bed Purchasing - Frenchay Hospital,Permanent Residential,Four Seasons Health Care,1550.64, 02-Sep-2014
1188,Revenue,CCHD,Bed Purchasing - Frenchay Hospital,Permanent Residential,Four Seasons Health Care,1550.64, 30-Sep-2014
1189,Revenue,CCHD,Freeways,Permanent Residential,Freeways Trust Limited,3611.8, 18-Sep-2014
1190,Revenue,CCHD,Freeways,Permanent Residential,Freeways Trust Limited,2269.08, 18-Sep-2014
1191,Revenue,CCHD,Freeways,Permanent Residential,Freeways Trust Limited,2346.88, 18-Sep-2014
1192,Revenue,CCHD,Freeways,Permanent Residential,Freeways Trust Limited,2993.72, 18-Sep-2014
1193,Revenue,CCHD,Freeways,Permanent Residential,Freeways Trust Limited,2346.88, 18-Sep-2014
1194,Revenue,CCHD,Freeways,Permanent Residential,Freeways Trust Limited,3357.44, 18-Sep-2014
1195,Revenue,CCHD,Freeways,Permanent Residential,Freeways Trust Limited,3242.64, 18-Sep-2014
1196,Revenue,CCHD,Freeways,Permanent Residential,Freeways Trust Limited,3522.28, 18-Sep-2014
1197,Revenue,CCHD,Freeways,Permanent Residential,Freeways Trust Limited,3023.2, 18-Sep-2014
1198,Revenue,CCHD,Freeways,Permanent Residential,Freeways Trust Limited,2870.2, 18-Sep-2014
1199,Revenue,CCHD,Freeways,Permanent Residential,Freeways Trust Limited,3211.48, 18-Sep-2014
1200,Revenue,CCHD,Freeways,Permanent Residential,Freeways Trust Limited,3077.36, 18-Sep-2014
1201,Revenue,CCHD,Freeways,Permanent Residential,Freeways Trust Limited,3573.72, 18-Sep-2014
1202,Revenue,CCHD,Freeways,Permanent Residential,Freeways Trust Limited,2435.12, 18-Sep-2014
1203,Revenue,CCHD,Freeways,Permanent Residential,Freeways Trust Limited,2425.52, 18-Sep-2014
1204,Revenue,CCHD,Freeways,Permanent Residential,Freeways Trust Limited,2425.52, 18-Sep-2014
1205,Revenue,CCHD,Supported Living - South,Private & Voluntary Home Care,Freeways Trust Limited,1275.76, 29-Sep-2014
1206,Revenue,CCHD,Bed purchasing - Under 65s PWLD - North,Permanent Residential,Freeways Trust Ltd,2860.04, 02-Sep-2014
1207,Revenue,CCHD,Bed purchasing - Under 65s PWLD - North,Permanent Residential,Freeways Trust Ltd,2860.04, 30-Sep-2014
1208,Revenue,CCHD,Bed purchasing - S28A Under 65 - South,Permanent Residential,Freeways Trust Ltd,2924.48, 02-Sep-2014
1209,Revenue,CCHD,Bed purchasing - S28A Under 65 - South,Permanent Residential,Freeways Trust Ltd,2924.48, 30-Sep-2014
1210,Revenue,CCHD,Bed purchasing - Under 65s PWLD - North,Permanent Residential,Freeways Trust Ltd,3129.84, 02-Sep-2014
1211,Revenue,CCHD,Bed purchasing - Under 65s PWLD - North,Permanent Residential,Freeways Trust Ltd,3129.84, 30-Sep-2014
1212,Revenue,CCHD,Bed purchasing - Under 65s PWLD - North,Permanent Residential,Freeways Trust Ltd,2286.96, 02-Sep-2014
1213,Revenue,CCHD,Bed purchasing - Under 65s PWLD - North,Permanent Residential,Freeways Trust Ltd,2286.96, 30-Sep-2014
1214,Revenue,CCHD,Bed purchasing - Under 65s PWLD - North,Permanent Residential,Freeways Trust Ltd,2731.36, 02-Sep-2014
1215,Revenue,CCHD,Bed purchasing - Under 65s PWLD - North,Permanent Residential,Freeways Trust Ltd,2731.36, 30-Sep-2014
1216,Revenue,CCHD,Bed Purchasing - Under 65s PWLD - South,Permanent Residential,Freeways Trust Ltd,3338.76, 02-Sep-2014
1217,Revenue,CCHD,Bed Purchasing - Under 65s PWLD - South,Permanent Residential,Freeways Trust Ltd,3338.76, 30-Sep-2014
1218,Revenue,CCHD,Bed purchasing - Elderly PWLD - North,Permanent Residential,Freeways Trust Ltd,2266.4, 02-Sep-2014
1219,Revenue,CCHD,Bed purchasing - Elderly PWLD - North,Permanent Residential,Freeways Trust Ltd,2266.4, 30-Sep-2014
1220,Revenue,CCHD,Bed Purchasing - Under 65s PWLD - South,Permanent Residential,Freeways Trust Ltd,2397.48, 02-Sep-2014
1221,Revenue,CCHD,Bed Purchasing - Under 65s PWLD - South,Permanent Residential,Freeways Trust Ltd,2397.48, 30-Sep-2014
1222,Revenue,CCHD,Bed purchasing - Under 65s PWLD - North,Permanent Residential,Freeways Trust Ltd,2731.36, 02-Sep-2014
1223,Revenue,CCHD,Bed purchasing - Under 65s PWLD - North,Permanent Residential,Freeways Trust Ltd,2731.36, 30-Sep-2014
1224,Revenue,CCHD,Bed purchasing - Elderly PWLD - North,Permanent Residential,Freeways Trust Ltd,3155.72, 02-Sep-2014
1225,Revenue,CCHD,Bed purchasing - Elderly PWLD - North,Permanent Residential,Freeways Trust Ltd,3155.72, 30-Sep-2014
1226,Revenue,CCHD,Section 117 Placements MH Younger,Permanent Residential,Freeways Trust Ltd,3373.2, 02-Sep-2014
1227,Revenue,CCHD,Section 117 Placements MH Younger,Permanent Residential,Freeways Trust Ltd,3373.2, 30-Sep-2014
1228,Revenue,CCHD,Bed purchasing - Under 65s PWLD - North,Permanent Residential,Freeways Trust Ltd,3798.87, 02-Sep-2014
1229,Revenue,CCHD,Bed purchasing - Under 65s PWLD - North,Permanent Residential,Freeways Trust Ltd,3823.88, 30-Sep-2014
1230,Revenue,CCHD,Bed Purchasing - Under 65s PWLD - South,Permanent Residential,Freeways Trust Ltd,7906.56, 02-Sep-2014
1231,Revenue,CCHD,Bed Purchasing - Under 65s PWLD - South,Permanent Residential,Freeways Trust Ltd,7906.56, 30-Sep-2014
1232,Revenue,CCHD,Home Care - Elderly - South,Day Care / Social Activities,Frenchay Hospital,1000, 02-Sep-2014
1233,Revenue,CCHD,Bed Purchasing - Frenchay Hospital,Permanent Nursing,Frenchay Park Nursing Home,1010, 02-Sep-2014
1234,Revenue,CCHD,Bed Purchasing - Frenchay Hospital,Permanent Nursing,Frenchay Park Nursing Home,1010, 30-Sep-2014
1235,Revenue,CCHD,Bed Purchasing - South,Permanent Nursing,Frenchay Park Nursing Home,1328.2, 02-Sep-2014
1236,Revenue,CCHD,Bed Purchasing - South,Permanent Nursing,Frenchay Park Nursing Home,1328.2, 30-Sep-2014
1237,Revenue,CCHD,Bed Purchasing - South,Permanent Nursing,Fshc  1St Floor,896.16, 02-Sep-2014
1238,Revenue,CCHD,Bed Purchasing - South,Permanent Nursing,Fshc  1St Floor,896.16, 30-Sep-2014
1239,Revenue,CCHD,Bed Purchasing - Frenchay Hospital,Permanent Nursing,Fshc  1St Floor,3272.19, 30-Sep-2014
1240,Revenue,CCHD,Bed Purchasing - Frenchay Hospital,Permanent Nursing,Fshc  1St Floor,1388.2, 30-Sep-2014
1241,Revenue,CCHD,Bed Purchasing - Frenchay Hospital,Permanent Residential,Fshc  1St Floor,894.12, 02-Sep-2014
1242,Revenue,CCHD,Bed Purchasing - Frenchay Hospital,Permanent Residential,Fshc  1St Floor,894.12, 30-Sep-2014
1243,Revenue,CCHD,Bed Purchasing - South,Permanent Nursing,Fshc  1St Floor,1388.2, 02-Sep-2014
1244,Revenue,CCHD,Bed Purchasing - South,Permanent Nursing,Fshc  1St Floor,1388.2, 30-Sep-2014
1245,Revenue,CCHD,Bed Purchasing - Southmead Hospital,Permanent Nursing,Fshc  1St Floor,795.2, 02-Sep-2014
1246,Revenue,CCHD,Bed Purchasing - Frenchay Hospital,Permanent Nursing,Fshc  1St Floor,1388.2, 02-Sep-2014
1247,Revenue,CCHD,Bed Purchasing - Frenchay Hospital,Permanent Nursing,Fshc  1St Floor,1388.2, 30-Sep-2014
1248,Revenue,CCHD,Bed Purchasing - Southmead Hospital,Permanent Nursing,Fshc  1St Floor,1388.2, 02-Sep-2014
1249,Revenue,CCHD,Bed Purchasing - Southmead Hospital,Permanent Nursing,Fshc  1St Floor,1388.2, 30-Sep-2014
1250,Revenue,CCHD,Bed Purchasing - Southmead Hospital,Permanent Nursing,Fshc  1St Floor,1267.72, 02-Sep-2014
1251,Revenue,CCHD,Bed Purchasing - Southmead Hospital,Permanent Nursing,Fshc  1St Floor,1267.72, 30-Sep-2014
1252,Revenue,CCHD,South Glos Users in South Glos Homes,Permanent Nursing,Fshc  1St Floor,2201.96, 02-Sep-2014
1253,Revenue,CCHD,Bed Purchasing - Frenchay Hospital,Permanent Nursing,Fshc  1St Floor,1388.2, 02-Sep-2014
1254,Revenue,CCHD,South Glos Users in South Glos Homes,Permanent Nursing,Fshc  1St Floor,564.63, 02-Sep-2014
1255,Revenue,CCHD,Bed Purchasing - Frenchay Hospital,Permanent Nursing,Fshc  1St Floor,1388.2, 30-Sep-2014
1256,Revenue,CCHD,Bed Purchasing - South,Permanent Nursing,Fshc  1St Floor,773.49, 02-Sep-2014
1257,Revenue,CCHD,Bed Purchasing - South,Permanent Nursing,Fshc  1St Floor,658.62, 02-Sep-2014
1258,Revenue,CCHD,Bed Purchasing - South,Permanent Nursing,Fshc  1St Floor,1139.88, 30-Sep-2014
1259,Revenue,CCHD,South Glos Users in South Glos Homes,Permanent Nursing,Fshc  1St Floor,2154.43, 02-Sep-2014
1260,Revenue,CCHD,Bed Purchasing - Frenchay Hospital,Permanent Nursing,Fshc  1St Floor,1388.2, 02-Sep-2014
1261,Revenue,CCHD,Bed Purchasing - Frenchay Hospital,Permanent Nursing,Fshc  1St Floor,1388.2, 30-Sep-2014
1262,Revenue,CCHD,Bed Purchasing - Frenchay Hospital,Permanent Nursing,Fshc  1St Floor,1884, 02-Sep-2014
1263,Revenue,CCHD,Bed Purchasing - Frenchay Hospital,Permanent Nursing,Fshc  1St Floor,1143.86, 02-Sep-2014
1264,Revenue,CCHD,Bed Purchasing - Frenchay Hospital,Permanent Nursing,Fshc  1St Floor,1884, 30-Sep-2014
1265,Revenue,CCHD,Bed Purchasing - South,Permanent Residential,Fshc  1St Floor,1216.24, 02-Sep-2014
1266,Revenue,CCHD,Bed Purchasing - South,Permanent Residential,Fshc  1St Floor,1216.24, 30-Sep-2014
1267,Revenue,CCHD,Bed Purchasing - South,Permanent Nursing,Fshc  1St Floor,1012.92, 02-Sep-2014
1268,Revenue,CCHD,Bed Purchasing - South,Permanent Nursing,Fshc  1St Floor,1012.92, 30-Sep-2014
1269,Revenue,CCHD,Bed Purchasing - Southmead Hospital,Permanent Nursing,Fshc  1St Floor,1388.2, 02-Sep-2014
1270,Revenue,CCHD,Bed Purchasing - Southmead Hospital,Permanent Nursing,Fshc  1St Floor,1388.2, 30-Sep-2014
1271,Revenue,CCHD,Bed Purchasing - South,Permanent Nursing,Fshc  1St Floor,1115.96, 02-Sep-2014
1272,Revenue,CCHD,Bed Purchasing - South,Permanent Nursing,Fshc  1St Floor,1115.96, 30-Sep-2014
1273,Revenue,CCHD,Bed Purchasing - South,Permanent Nursing,Fshc  1St Floor,1226.68, 02-Sep-2014
1274,Revenue,CCHD,Bed Purchasing - South,Permanent Nursing,Fshc  1St Floor,1226.68, 30-Sep-2014
1275,Revenue,CCHD,Bed Purchasing - South,Permanent Nursing,Fshc  1St Floor,659.08, 02-Sep-2014
1276,Revenue,CCHD,Bed Purchasing - South,Permanent Nursing,Fshc  1St Floor,659.08, 30-Sep-2014
1277,Revenue,CCHD,South Glos Users in South Glos Homes,Permanent Nursing,Fshc  1St Floor,1647.51, 02-Sep-2014
1278,Revenue,CCHD,Bed Purchasing - Southmead Hospital,Permanent Nursing,Fshc  1St Floor,1365.64, 02-Sep-2014
1279,Revenue,CCHD,Bed Purchasing - Southmead Hospital,Permanent Nursing,Fshc  1St Floor,1365.64, 30-Sep-2014
1280,Revenue,CCHD,Bed Purchasing - South,Permanent Nursing,Fshc  1St Floor,1324.48, 02-Sep-2014
1281,Revenue,CCHD,Bed Purchasing - South,Permanent Nursing,Fshc  1St Floor,1324.48, 30-Sep-2014
1282,Revenue,CCHD,Bed Purchasing - South,Permanent Nursing,Fshc  1St Floor,1388.2, 02-Sep-2014
1283,Revenue,CCHD,Bed Purchasing - South,Permanent Nursing,Fshc  1St Floor,545.36, 02-Sep-2014
1284,Revenue,CCHD,Bed Purchasing - Southmead Hospital,Permanent Nursing,Fshc  1St Floor,1388.2, 02-Sep-2014
1285,Revenue,CCHD,Bed Purchasing - Southmead Hospital,Permanent Nursing,Fshc  1St Floor,1388.2, 30-Sep-2014
1286,Revenue,CCHD,Bed Purchasing - South,Permanent Nursing,Fshc  1St Floor,793.26, 02-Sep-2014
1287,Revenue,CCHD,Bed Purchasing - South,Permanent Nursing,Fshc  1St Floor,3024.29, 30-Sep-2014
1288,Revenue,CCHD,Bed Purchasing - South,Permanent Nursing,Fshc  1St Floor,1388.2, 30-Sep-2014
1289,Revenue,CCHD,Bed Purchasing - North,Permanent Nursing,Fshc  1St Floor,1388.2, 02-Sep-2014
1290,Revenue,CCHD,Bed Purchasing - North,Permanent Nursing,Fshc  1St Floor,1388.2, 30-Sep-2014
1291,Revenue,CCHD,Bed Purchasing - Frenchay Hospital,Permanent Nursing,Fshc  1St Floor,1884, 02-Sep-2014
1292,Revenue,CCHD,Bed Purchasing - Frenchay Hospital,Permanent Nursing,Fshc  1St Floor,1884, 30-Sep-2014
1293,Revenue,CCHD,Bed Purchasing - North,Permanent Nursing,Fshc  1St Floor,1884, 02-Sep-2014
1294,Revenue,CCHD,Bed Purchasing - North,Permanent Nursing,Fshc  1St Floor,1884, 30-Sep-2014
1295,Revenue,CCHD,Bed Purchasing - Frenchay Hospital,Permanent Nursing,Fshc  1St Floor,1204.12, 02-Sep-2014
1296,Revenue,CCHD,Bed Purchasing - Frenchay Hospital,Permanent Nursing,Fshc  1St Floor,1204.12, 30-Sep-2014
1297,Revenue,CCHD,Bed Purchasing - South,Permanent Nursing,Fshc  1St Floor,1388.2, 02-Sep-2014
1298,Revenue,CCHD,Bed Purchasing - South,Permanent Nursing,Fshc  1St Floor,1388.2, 30-Sep-2014
1299,Revenue,CCHD,Bed Purchasing - South,Permanent Nursing,Fshc  1St Floor,1337.52, 02-Sep-2014
1300,Revenue,CCHD,Bed Purchasing - South,Permanent Nursing,Fshc  1St Floor,1337.52, 30-Sep-2014
1301,Revenue,CCHD,Bed Purchasing - South,Permanent Nursing,Fshc  1St Floor,1372.2, 02-Sep-2014
1302,Revenue,CCHD,Bed Purchasing - South,Permanent Nursing,Fshc  1St Floor,1372.2, 30-Sep-2014
1303,Revenue,CCHD,Bed Purchasing - Frenchay Hospital,Permanent Nursing,Fshc  1St Floor,1096.6, 02-Sep-2014
1304,Revenue,CCHD,Bed Purchasing - Frenchay Hospital,Permanent Nursing,Fshc  1St Floor,1096.6, 30-Sep-2014
1305,Revenue,CCHD,Bed Purchasing - Elderly MH - South,Permanent Residential,Fshc  1St Floor,1131.72, 02-Sep-2014
1306,Revenue,CCHD,Bed Purchasing - Elderly MH - South,Permanent Residential,Fshc  1St Floor,1131.72, 30-Sep-2014
1307,Revenue,CCHD,Bed Purchasing - South,Permanent Nursing,Fshc  1St Floor,1352.2, 02-Sep-2014
1308,Revenue,CCHD,Bed Purchasing - South,Permanent Nursing,Fshc  1St Floor,1352.2, 30-Sep-2014
1309,Revenue,CCHD,Bed Purchasing - Southmead Hospital,Permanent Nursing,Fshc  1St Floor,1388.2, 02-Sep-2014
1310,Revenue,CCHD,Bed Purchasing - Southmead Hospital,Permanent Nursing,Fshc  1St Floor,1388.2, 30-Sep-2014
1311,Revenue,CCHD,Bed Purchasing - Elderly MH - South,Permanent Nursing,Fshc  1St Floor,1229.44, 02-Sep-2014
1312,Revenue,CCHD,Bed Purchasing - Elderly MH - South,Permanent Nursing,Fshc  1St Floor,1229.44, 30-Sep-2014
1313,Revenue,CCHD,South Glos Users in South Glos Homes,Permanent Nursing,Fshc  1St Floor,1663.35, 02-Sep-2014
1314,Revenue,CCHD,Bed purchasing - Elderly MH - North,Permanent Nursing,Fshc  1St Floor,781.44, 02-Sep-2014
1315,Revenue,CCHD,Bed purchasing - Elderly MH - North,Permanent Nursing,Fshc  1St Floor,781.44, 30-Sep-2014
1316,Revenue,CCHD,Bed Purchasing - South,Permanent Nursing,Fshc  1St Floor,993.48, 02-Sep-2014
1317,Revenue,CCHD,Bed Purchasing - South,Permanent Nursing,Fshc  1St Floor,993.48, 30-Sep-2014
1318,Revenue,CCHD,Bed Purchasing - North,Permanent Nursing,Fshc  1St Floor,1137.44, 02-Sep-2014
1319,Revenue,CCHD,Bed Purchasing - North,Permanent Nursing,Fshc  1St Floor,1137.44, 30-Sep-2014
1320,Revenue,CCHD,Bed Purchasing - North,Permanent Nursing,Fshc  1St Floor,985.88, 02-Sep-2014
1321,Revenue,CCHD,Bed Purchasing - North,Permanent Nursing,Fshc  1St Floor,985.88, 30-Sep-2014
1322,Revenue,CCHD,Bed Purchasing - Frenchay Hospital,Permanent Nursing,Fshc  1St Floor,944.48, 02-Sep-2014
1323,Revenue,CCHD,Bed Purchasing - Frenchay Hospital,Permanent Nursing,Fshc  1St Floor,944.48, 30-Sep-2014
1324,Revenue,CCHD,Bed Purchasing - North,Permanent Nursing,Fshc  1St Floor,1290.68, 02-Sep-2014
1325,Revenue,CCHD,Bed Purchasing - North,Permanent Nursing,Fshc  1St Floor,1290.68, 30-Sep-2014
1326,Revenue,CCHD,Bed Purchasing - Frenchay Hospital,Permanent Nursing,Fshc  1St Floor,1564.2, 02-Sep-2014
1327,Revenue,CCHD,South Glos Users in South Glos Homes,Permanent Nursing,Fshc  1St Floor,2645.52, 30-Sep-2014
1328,Revenue,CCHD,Bed Purchasing - Frenchay Hospital,Permanent Nursing,Fshc  1St Floor,1564.2, 30-Sep-2014
1329,Revenue,CCHD,South Glos Users in South Glos Homes,Permanent Nursing,Fshc  1St Floor,2854.54, 02-Sep-2014
1330,Revenue,CCHD,South Glos Users in South Glos Homes,Permanent Nursing,Fshc  1St Floor,2201.96, 02-Sep-2014
1331,Revenue,CCHD,South Glos Users in South Glos Homes,Permanent Nursing,Fshc  1St Floor,564.63, 02-Sep-2014
1332,Revenue,CCHD,Bed Purchasing - Frenchay Hospital,Permanent Residential,Fshc  1St Floor,1142.92, 02-Sep-2014
1333,Revenue,CCHD,Bed Purchasing - Frenchay Hospital,Permanent Residential,Fshc  1St Floor,1142.92, 30-Sep-2014
1334,Revenue,CCHD,Bed Purchasing - North,Permanent Nursing,Fshc  1St Floor,1347.08, 02-Sep-2014
1335,Revenue,CCHD,Bed Purchasing - North,Permanent Nursing,Fshc  1St Floor,1347.08, 30-Sep-2014
1336,Revenue,CCHD,South Glos Users in South Glos Homes,Permanent Nursing,Fshc  1St Floor,2138.59, 02-Sep-2014
1337,Revenue,CCHD,Bed Purchasing - North,Permanent Nursing,Fshc  1St Floor,1039.6, 02-Sep-2014
1338,Revenue,CCHD,Bed Purchasing - North,Permanent Nursing,Fshc  1St Floor,1039.6, 30-Sep-2014
1339,Revenue,CCHD,Bed Purchasing - Southmead Hospital,Permanent Nursing,Fshc  1St Floor,5804.69, 02-Sep-2014
1340,Revenue,CCHD,Bed Purchasing - Southmead Hospital,Permanent Nursing,Fshc  1St Floor,1222.04, 02-Sep-2014
1341,Revenue,CCHD,Bed Purchasing - Southmead Hospital,Permanent Nursing,Fshc  1St Floor,1222.04, 30-Sep-2014
1342,Revenue,CCHD,South Glos Users in South Glos Homes,Permanent Nursing,Fshc  1St Floor,4674.1, 30-Sep-2014
1343,Revenue,CCHD,Bed Purchasing - North,Permanent Residential,Fshc  1St Floor,1077, 02-Sep-2014
1344,Revenue,CCHD,Bed Purchasing - North,Permanent Residential,Fshc  1St Floor,1077, 30-Sep-2014
1345,Revenue,CCHD,South Glos Users in South Glos Homes,Permanent Nursing,Fshc  1St Floor,745.37, 02-Sep-2014
1346,Revenue,CCHD,Bed Purchasing - North,Permanent Residential,Fshc  1St Floor,1367.48, 02-Sep-2014
1347,Revenue,CCHD,Bed Purchasing - North,Permanent Residential,Fshc  1St Floor,1367.48, 30-Sep-2014
1348,Revenue,CCHD,Bed Purchasing - Frenchay Hospital,Permanent Nursing,Fshc  1St Floor,931.84, 02-Sep-2014
1349,Revenue,CCHD,Bed Purchasing - Frenchay Hospital,Permanent Nursing,Fshc  1St Floor,931.84, 30-Sep-2014
1350,Revenue,CCHD,Bed Purchasing - Frenchay Hospital,Permanent Nursing,Fshc  1St Floor,1104.08, 02-Sep-2014
1351,Revenue,CCHD,Bed Purchasing - Frenchay Hospital,Permanent Nursing,Fshc  1St Floor,1104.08, 30-Sep-2014
1352,Revenue,CCHD,Bed Purchasing - Frenchay Hospital,Permanent Nursing,Fshc  1St Floor,1129, 02-Sep-2014
1353,Revenue,CCHD,Bed Purchasing - Frenchay Hospital,Permanent Nursing,Fshc  1St Floor,1129, 30-Sep-2014
1354,Revenue,CCHD,Bed Purchasing - Southmead Hospital,Permanent Nursing,Fshc  1St Floor,1289.2, 02-Sep-2014
1355,Revenue,CCHD,Bed Purchasing - Southmead Hospital,Permanent Nursing,Fshc  1St Floor,1289.2, 30-Sep-2014
1356,Revenue,CCHD,Bed Purchasing - North,Permanent Nursing,Fshc  1St Floor,1220.16, 02-Sep-2014
1357,Revenue,CCHD,South Glos Users in South Glos Homes,Permanent Nursing,Fshc  1St Floor,2201.96, 02-Sep-2014
1358,Revenue,CCHD,Bed Purchasing - Frenchay Hospital,Permanent Nursing,Fshc  1St Floor,1128.8, 02-Sep-2014
1359,Revenue,CCHD,South Glos Users in South Glos Homes,Permanent Nursing,Fshc  1St Floor,768.53, 02-Sep-2014
1360,Revenue,CCHD,Bed Purchasing - Frenchay Hospital,Permanent Nursing,Fshc  1St Floor,1128.8, 30-Sep-2014
1361,Revenue,CCHD,Bed Purchasing - Frenchay Hospital,Permanent Nursing,Fshc  1St Floor,1588.2, 02-Sep-2014
1362,Revenue,CCHD,Bed Purchasing - Frenchay Hospital,Permanent Nursing,Fshc  1St Floor,1588.2, 30-Sep-2014
1363,Revenue,CCHD,South Glos Users in South Glos Homes,Permanent Nursing,Fshc  1St Floor,1996.02, 02-Sep-2014
1364,Revenue,CCHD,South Glos Users in South Glos Homes,Permanent Nursing,Fshc  1St Floor,2201.96, 02-Sep-2014
1365,Revenue,CCHD,Bed Purchasing - South,Permanent Residential,Fshc  1St Floor,1132.6, 02-Sep-2014
1366,Revenue,CCHD,Bed Purchasing - South,Permanent Residential,Fshc  1St Floor,1132.6, 30-Sep-2014
1367,Revenue,CCHD,South Glos Users in South Glos Homes,Permanent Nursing,Fshc  1St Floor,885.13, 02-Sep-2014
1368,Revenue,CCHD,Bed Purchasing - Frenchay Hospital,Permanent Nursing,Fshc  1St Floor,2060, 02-Sep-2014
1369,Revenue,CCHD,Bed Purchasing - Frenchay Hospital,Permanent Nursing,Fshc  1St Floor,2060, 30-Sep-2014
1370,Revenue,CCHD,Bed Purchasing - Frenchay Hospital,Permanent Nursing,Fshc  1St Floor,1375.6, 02-Sep-2014
1371,Revenue,CCHD,South Glos Users in South Glos Homes,Permanent Nursing,Fshc  1St Floor,2645.52, 30-Sep-2014
1372,Revenue,CCHD,Bed Purchasing - Frenchay Hospital,Permanent Nursing,Fshc  1St Floor,1375.6, 30-Sep-2014
1373,Revenue,CCHD,South Glos Users in South Glos Homes,Permanent Nursing,Fshc  1St Floor,705.79, 30-Sep-2014
1374,Revenue,CCHD,Bed Purchasing - Southmead Hospital,Permanent Nursing,Fshc  1St Floor,1388.2, 02-Sep-2014
1375,Revenue,CCHD,Bed Purchasing - Southmead Hospital,Permanent Nursing,Fshc  1St Floor,1388.2, 30-Sep-2014
1376,Revenue,CCHD,Bed Purchasing - North,Permanent Nursing,Fshc  1St Floor,574.28, 02-Sep-2014
1377,Revenue,CCHD,Bed Purchasing - North,Permanent Nursing,Fshc  1St Floor,574.28, 30-Sep-2014
1378,Revenue,CCHD,Bed purchasing - Elderly MH - North,Permanent Nursing,Fshc  1St Floor,1489.72, 02-Sep-2014
1379,Revenue,CCHD,Bed purchasing - Elderly MH - North,Permanent Nursing,Fshc  1St Floor,1489.72, 30-Sep-2014
1380,Revenue,CCHD,Bed Purchasing - North,Permanent Nursing,Fshc  1St Floor,1289.2, 02-Sep-2014
1381,Revenue,CCHD,Bed Purchasing - North,Permanent Nursing,Fshc  1St Floor,1289.2, 30-Sep-2014
1382,Revenue,CCHD,South Glos Users in South Glos Homes,Permanent Nursing,Fshc  1St Floor,2201.96, 02-Sep-2014
1383,Revenue,CCHD,South Glos Users in South Glos Homes,Permanent Nursing,Fshc  1St Floor,1380.22, 02-Sep-2014
1384,Revenue,CCHD,Bed Purchasing - Southmead Hospital,Permanent Nursing,Fshc  1St Floor,1211.36, 02-Sep-2014
1385,Revenue,CCHD,Bed Purchasing - Southmead Hospital,Permanent Nursing,Fshc  1St Floor,1211.36, 30-Sep-2014
1386,Revenue,CCHD,Bed Purchasing - Frenchay Hospital,Permanent Residential,Fshc  1St Floor,621.36, 02-Sep-2014
1387,Revenue,CCHD,Bed Purchasing - Frenchay Hospital,Permanent Residential,Fshc  1St Floor,621.36, 30-Sep-2014
1388,Revenue,CCHD,Bed Purchasing - Frenchay Hospital,Permanent Nursing,Fshc  1St Floor,1294.72, 02-Sep-2014
1389,Revenue,CCHD,Bed Purchasing - Frenchay Hospital,Permanent Nursing,Fshc  1St Floor,1294.72, 30-Sep-2014
1390,Revenue,CCHD,Bed Purchasing - Frenchay Hospital,Permanent Nursing,Fshc  1St Floor,1372.56, 02-Sep-2014
1391,Revenue,CCHD,Bed Purchasing - Frenchay Hospital,Permanent Nursing,Fshc  1St Floor,1372.56, 30-Sep-2014
1392,Revenue,CCHD,Bed Purchasing - North,Permanent Nursing,Fshc  1St Floor,1312.76, 02-Sep-2014
1393,Revenue,CCHD,Bed Purchasing - North,Permanent Nursing,Fshc  1St Floor,1312.76, 30-Sep-2014
1394,Revenue,CCHD,Bed Purchasing - North,Permanent Residential,Fshc  1St Floor,779.72, 02-Sep-2014
1395,Revenue,CCHD,Bed Purchasing - North,Permanent Residential,Fshc  1St Floor,779.72, 30-Sep-2014
1396,Revenue,CCHD,Bed Purchasing - Southmead Hospital,Permanent Nursing,Fshc  1St Floor,1475.48, 02-Sep-2014
1397,Revenue,CCHD,Bed Purchasing - Southmead Hospital,Permanent Nursing,Fshc  1St Floor,1475.48, 30-Sep-2014
1398,Revenue,CCHD,Bed Purchasing - Southmead Hospital,Permanent Nursing,Fshc  1St Floor,1564.2, 02-Sep-2014
1399,Revenue,CCHD,Bed Purchasing - Southmead Hospital,Permanent Nursing,Fshc  1St Floor,1564.2, 30-Sep-2014
1400,Revenue,CCHD,Bed Purchasing - Elderly MH - South,Permanent Nursing,Fshc  1St Floor,1338.84, 02-Sep-2014
1401,Revenue,CCHD,Bed Purchasing - Elderly MH - South,Permanent Nursing,Fshc  1St Floor,1338.84, 30-Sep-2014
1402,Revenue,CCHD,Bed Purchasing - North,Permanent Nursing,Fshc  1St Floor,1471.32, 02-Sep-2014
1403,Revenue,CCHD,Bed Purchasing - North,Permanent Nursing,Fshc  1St Floor,1471.32, 30-Sep-2014
1404,Revenue,CCHD,South Glos Users in South Glos Homes,Permanent Nursing,Fshc  1St Floor,2201.96, 02-Sep-2014
1405,Revenue,CCHD,South Glos Users in South Glos Homes,Permanent Nursing,Fshc  1St Floor,1380.22, 02-Sep-2014
1406,Revenue,CCHD,Bed Purchasing - Elderly MH - South,Permanent Nursing,Fshc  1St Floor,1309.96, 02-Sep-2014
1407,Revenue,CCHD,Bed Purchasing - Elderly MH - South,Permanent Nursing,Fshc  1St Floor,1309.96, 30-Sep-2014
1408,Revenue,CCHD,Bed purchasing - Elderly MH - North,Permanent Residential,Fshc  1St Floor,1456.2, 02-Sep-2014
1409,Revenue,CCHD,Bed purchasing - Elderly MH - North,Permanent Residential,Fshc  1St Floor,1456.2, 30-Sep-2014
1410,Revenue,CCHD,Bed Purchasing - North,Permanent Nursing,Fshc  1St Floor,1552.64, 02-Sep-2014
1411,Revenue,CCHD,Bed Purchasing - North,Permanent Nursing,Fshc  1St Floor,1552.64, 30-Sep-2014
1412,Revenue,CCHD,Bed purchasing - Elderly S117 - South,Permanent Nursing,Fshc  1St Floor,1884, 02-Sep-2014
1413,Revenue,CCHD,Bed purchasing - Elderly S117 - South,Permanent Nursing,Fshc  1St Floor,1884, 30-Sep-2014
1414,Revenue,CCHD,Bed purchasing - Elderly MH - North,Permanent Residential,Fshc  1St Floor,1263.96, 02-Sep-2014
1415,Revenue,CCHD,Bed purchasing - Elderly MH - North,Permanent Residential,Fshc  1St Floor,1263.96, 30-Sep-2014
1416,Revenue,CCHD,Bed Purchasing - Southmead Hospital,Permanent Residential,Fshc  1St Floor,1260.2, 02-Sep-2014
1417,Revenue,CCHD,Bed Purchasing - Southmead Hospital,Permanent Residential,Fshc  1St Floor,1260.2, 30-Sep-2014
1418,Revenue,CCHD,Bed Purchasing - North,Permanent Residential,Fshc  1St Floor,1260.2, 02-Sep-2014
1419,Revenue,CCHD,Bed Purchasing - North,Permanent Residential,Fshc  1St Floor,1260.2, 30-Sep-2014
1420,Revenue,CCHD,Bed Purchasing - South,Permanent Nursing,Fshc  1St Floor,1564.2, 02-Sep-2014
1421,Revenue,CCHD,Bed Purchasing - South,Permanent Nursing,Fshc  1St Floor,1564.2, 30-Sep-2014
1422,Revenue,CCHD,Bed purchasing - Elderly MH - North,Permanent Residential,Fshc  1St Floor,1401.92, 02-Sep-2014
1423,Revenue,CCHD,Bed purchasing - Elderly MH - North,Permanent Residential,Fshc  1St Floor,1401.92, 30-Sep-2014
1424,Revenue,CCHD,Bed Purchasing - Southmead Hospital,Permanent Residential,Fshc  1St Floor,1484.2, 02-Sep-2014
1425,Revenue,CCHD,Bed Purchasing - Southmead Hospital,Permanent Residential,Fshc  1St Floor,1484.2, 30-Sep-2014
1426,Revenue,CCHD,Bed Purchasing - Frenchay Hospital,Respite Planned - Nursing,Fshc  1St Floor,1345.74, 30-Sep-2014
1427,Revenue,CCHD,Bed Purchasing - North,Permanent Nursing,Fshc  1St Floor,1388.2, 02-Sep-2014
1428,Revenue,CCHD,Bed Purchasing - North,Permanent Nursing,Fshc  1St Floor,1388.2, 30-Sep-2014
1429,Revenue,CCHD,South Glos Users in South Glos Homes,Permanent Nursing,Fshc  1St Floor,2201.96, 02-Sep-2014
1430,Revenue,CCHD,South Glos Users in South Glos Homes,Permanent Nursing,Fshc  1St Floor,1866.43, 02-Sep-2014
1431,Revenue,CCHD,Bed Purchasing - North,Permanent Residential,Fshc  1St Floor,1260.2, 02-Sep-2014
1432,Revenue,CCHD,Bed Purchasing - North,Permanent Residential,Fshc  1St Floor,1260.2, 30-Sep-2014
1433,Revenue,CCHD,Bed Purchasing - North,Permanent Nursing,Fshc  1St Floor,1153.32, 02-Sep-2014
1434,Revenue,CCHD,Bed Purchasing - North,Permanent Nursing,Fshc  1St Floor,1153.32, 30-Sep-2014
1435,Revenue,CCHD,Bed Purchasing - Frenchay Hospital,Permanent Residential,Fshc  1St Floor,1260.2, 02-Sep-2014
1436,Revenue,CCHD,Bed Purchasing - Frenchay Hospital,Permanent Residential,Fshc  1St Floor,1260.2, 30-Sep-2014
1437,Revenue,CCHD,Bed Purchasing - North,Permanent Nursing,Fshc  1St Floor,587.4, 02-Sep-2014
1438,Revenue,CCHD,Bed Purchasing - North,Permanent Nursing,Fshc  1St Floor,587.4, 30-Sep-2014
1439,Revenue,CCHD,South Glos Users in South Glos Homes,Permanent Nursing,Fshc  1St Floor,1537.06, 02-Sep-2014
1440,Revenue,CCHD,South Glos Users in South Glos Homes,Permanent Nursing,Fshc  1St Floor,1932.65, 30-Sep-2014
1441,Revenue,CCHD,Bed Purchasing - North,Permanent Nursing,Fshc  1St Floor,738.4, 02-Sep-2014
1442,Revenue,CCHD,Bed Purchasing - North,Permanent Nursing,Fshc  1St Floor,738.4, 30-Sep-2014
1443,Revenue,CCHD,South Glos Users in South Glos Homes,Permanent Nursing,Fshc  1St Floor,2823.17, 02-Sep-2014
1444,Revenue,CCHD,Bed Purchasing - Frenchay Hospital,Permanent Nursing,Fshc  1St Floor,1328.04, 02-Sep-2014
1445,Revenue,CCHD,Bed Purchasing - Frenchay Hospital,Permanent Nursing,Fshc  1St Floor,1328.04, 30-Sep-2014
1446,Revenue,CCHD,Bed Purchasing - North,Permanent Nursing,Fshc  1St Floor,903.52, 02-Sep-2014
1447,Revenue,CCHD,Bed Purchasing - North,Permanent Nursing,Fshc  1St Floor,903.52, 30-Sep-2014
1448,Revenue,CCHD,Bed Purchasing - North,Permanent Nursing,Fshc  1St Floor,1017.2, 02-Sep-2014
1449,Revenue,CCHD,Bed Purchasing - North,Permanent Nursing,Fshc  1St Floor,1017.2, 30-Sep-2014
1450,Revenue,CCHD,Bed Purchasing - Southmead Hospital,Permanent Nursing,Fshc  1St Floor,1024.92, 02-Sep-2014
1451,Revenue,CCHD,Bed Purchasing - Frenchay Hospital,Permanent Nursing,Fshc  1St Floor,1388.2, 02-Sep-2014
1452,Revenue,CCHD,South Glos Users in South Glos Homes,Permanent Nursing,Fshc  1St Floor,1124.74, 02-Sep-2014
1453,Revenue,CCHD,Bed Purchasing - Frenchay Hospital,Permanent Nursing,Fshc  1St Floor,1388.2, 30-Sep-2014
1454,Revenue,CCHD,Bed Purchasing - South,Permanent Nursing,Fshc  1St Floor,1365, 02-Sep-2014
1455,Revenue,CCHD,Bed Purchasing - South,Permanent Nursing,Fshc  1St Floor,1365, 30-Sep-2014
1456,Revenue,CCHD,Bed Purchasing - Frenchay Hospital,Permanent Nursing,Fshc  1St Floor,1388.2, 02-Sep-2014
1457,Revenue,CCHD,Bed Purchasing - Frenchay Hospital,Permanent Nursing,Fshc  1St Floor,1388.2, 30-Sep-2014
1458,Revenue,CCHD,Bed Purchasing - Southmead Hospital,Permanent Nursing,Fshc  1St Floor,586.56, 02-Sep-2014
1459,Revenue,CCHD,Bed Purchasing - Southmead Hospital,Permanent Nursing,Fshc  1St Floor,586.56, 30-Sep-2014
1460,Revenue,CCHD,South Glos Users in South Glos Homes,Permanent Nursing,Fshc  1St Floor,5724.76, 02-Sep-2014
1461,Revenue,CCHD,South Glos Users in South Glos Homes,Permanent Nursing,Fshc  1St Floor,1346.52, 02-Sep-2014
1462,Revenue,CCHD,South Glos Users in South Glos Homes,Permanent Nursing,Fshc  1St Floor,527.97, 02-Sep-2014
1463,Revenue,CCHD,Bed Purchasing - North,Permanent Nursing,Fshc  1St Floor,1083.08, 02-Sep-2014
1464,Revenue,CCHD,Bed Purchasing - North,Permanent Nursing,Fshc  1St Floor,1083.08, 30-Sep-2014
1465,Revenue,CCHD,Bed Purchasing - Frenchay Hospital,Respite Planned - Nursing,Fshc  1St Floor,2488.83, 02-Sep-2014
1466,Revenue,CCHD,South Glos Users in South Glos Homes,Permanent Nursing,Fshc  1St Floor,2201.96, 02-Sep-2014
1467,Revenue,CCHD,Bed Purchasing - Frenchay Hospital,Respite Planned - Nursing,Fshc  1St Floor,1884, 02-Sep-2014
1468,Revenue,CCHD,Bed Purchasing - Frenchay Hospital,Respite Planned - Nursing,Fshc  1St Floor,1259.43, 02-Sep-2014
1469,Revenue,CCHD,Bed Purchasing - Frenchay Hospital,Respite Planned - Nursing,Fshc  1St Floor,740.14, 02-Sep-2014
1470,Revenue,CCHD,Bed Purchasing - Frenchay Hospital,Respite Planned - Nursing,Fshc  1St Floor,1884, 30-Sep-2014
1471,Revenue,CCHD,Bed Purchasing - Southmead Hospital,Permanent Nursing,Fshc  1St Floor,762.08, 02-Sep-2014
1472,Revenue,CCHD,Bed Purchasing - Southmead Hospital,Permanent Nursing,Fshc  1St Floor,762.08, 30-Sep-2014
1473,Revenue,CCHD,Bed Purchasing - Frenchay Hospital,Permanent Nursing,Fshc  1St Floor,873.88, 02-Sep-2014
1474,Revenue,CCHD,Bed Purchasing - Frenchay Hospital,Permanent Nursing,Fshc  1St Floor,873.88, 30-Sep-2014
1475,Revenue,CCHD,South Glos Users in South Glos Homes,Permanent Nursing,Fshc  1St Floor,681.18, 02-Sep-2014
1476,Revenue,CCHD,Bed Purchasing - Southmead Hospital,Permanent Nursing,Fshc  1St Floor,1312.68, 02-Sep-2014
1477,Revenue,CCHD,Bed Purchasing - Southmead Hospital,Permanent Nursing,Fshc  1St Floor,1312.68, 30-Sep-2014
1478,Revenue,CCHD,Bed Purchasing - North,Permanent Nursing,Fshc  1St Floor,1270.2, 02-Sep-2014
1479,Revenue,CCHD,Bed Purchasing - North,Permanent Nursing,Fshc  1St Floor,1270.2, 30-Sep-2014
1480,Revenue,CCHD,Bed Purchasing - South,Permanent Nursing,Fshc  1St Floor,794.4, 02-Sep-2014
1481,Revenue,CCHD,Bed Purchasing - South,Permanent Nursing,Fshc  1St Floor,794.4, 30-Sep-2014
1482,Revenue,CCHD,Bed Purchasing - Southmead Hospital,Permanent Nursing,Fshc  1St Floor,1360.32, 02-Sep-2014
1483,Revenue,CCHD,Bed Purchasing - Southmead Hospital,Permanent Nursing,Fshc  1St Floor,1360.32, 30-Sep-2014
1484,Revenue,CCHD,Bed Purchasing - Southmead Hospital,Permanent Nursing,Fshc  1St Floor,1822.56, 02-Sep-2014
1485,Revenue,CCHD,Bed Purchasing - Southmead Hospital,Permanent Nursing,Fshc  1St Floor,1822.56, 30-Sep-2014
1486,Revenue,CCHD,Bed Purchasing - North,Permanent Residential,Fshc  1St Floor,3000.64, 02-Sep-2014
1487,Revenue,CCHD,Bed Purchasing - North,Permanent Residential,Fshc  1St Floor,3000.64, 30-Sep-2014
1488,Revenue,CCHD,Bed purchasing - Phys Dis - North,Permanent Nursing,Fshc  1St Floor,1394.04, 02-Sep-2014
1489,Revenue,CCHD,Bed purchasing - Phys Dis - North,Permanent Nursing,Fshc  1St Floor,1394.04, 30-Sep-2014
1490,Revenue,CCHD,Bed Purchasing - South,Permanent Nursing,Fshc  1St Floor,1242.76, 02-Sep-2014
1491,Revenue,CCHD,Bed Purchasing - South,Permanent Nursing,Fshc  1St Floor,1242.76, 30-Sep-2014
1492,Revenue,CCHD,Bed Purchasing - Southmead Hospital,Permanent Nursing,Fshc  1St Floor,1319.28, 02-Sep-2014
1493,Revenue,CCHD,Bed Purchasing - Southmead Hospital,Permanent Nursing,Fshc  1St Floor,1319.28, 30-Sep-2014
1494,Revenue,CCHD,Bed Purchasing - Elderly MH - South,Permanent Residential,Fshc  1St Floor,1952, 02-Sep-2014
1495,Revenue,CCHD,Bed Purchasing - Elderly MH - South,Permanent Residential,Fshc  1St Floor,1952, 30-Sep-2014
1496,Revenue,CCHD,Bed Purchasing - Frenchay Hospital,Permanent Nursing,Fshc  1St Floor,1381, 02-Sep-2014
1497,Revenue,CCHD,Bed Purchasing - Frenchay Hospital,Permanent Nursing,Fshc  1St Floor,1381, 30-Sep-2014
1498,Revenue,CCHD,Bed Purchasing - Southmead Hospital,Permanent Residential,Fshc  1St Floor,1484.2, 02-Sep-2014
1499,Revenue,CCHD,Bed Purchasing - Southmead Hospital,Permanent Residential,Fshc  1St Floor,1484.2, 30-Sep-2014
1500,Revenue,CCHD,Bed Purchasing - South,Permanent Residential,Fshc  1St Floor,1424.4, 02-Sep-2014
1501,Revenue,CCHD,Bed Purchasing - South,Permanent Nursing,Fshc  1St Floor,1356.4, 30-Sep-2014
1502,Revenue,CCHD,Bed Purchasing - South,Permanent Nursing,Fshc  1St Floor,532.87, 30-Sep-2014
1503,Revenue,CCHD,Bed Purchasing - North,Permanent Residential,Fshc  1St Floor,1167.12, 02-Sep-2014
1504,Revenue,CCHD,Bed Purchasing - North,Permanent Residential,Fshc  1St Floor,1167.12, 30-Sep-2014
1505,Revenue,CCHD,Bed Purchasing - North,Permanent Nursing,Fshc  1St Floor,1143.32, 02-Sep-2014
1506,Revenue,CCHD,Bed Purchasing - North,Permanent Nursing,Fshc  1St Floor,1143.32, 30-Sep-2014
1507,Revenue,CCHD,Bed Purchasing - Frenchay Hospital,Permanent Nursing,Fshc  1St Floor,1248.96, 02-Sep-2014
1508,Revenue,CCHD,Bed Purchasing - Frenchay Hospital,Permanent Nursing,Fshc  1St Floor,1248.96, 30-Sep-2014
1509,Revenue,CCHD,South Glos Users in South Glos Homes,Permanent Nursing,Fshc  1St Floor,2201.96, 02-Sep-2014
1510,Revenue,CCHD,Bed Purchasing - North,Permanent Residential,Fshc  1St Floor,2005.66, 02-Sep-2014
1511,Revenue,CCHD,Bed Purchasing - North,Permanent Nursing,Fshc  1St Floor,1884, 02-Sep-2014
1512,Revenue,CCHD,South Glos Users in South Glos Homes,Permanent Nursing,Fshc  1St Floor,1646.85, 02-Sep-2014
1513,Revenue,CCHD,Bed Purchasing - North,Permanent Nursing,Fshc  1St Floor,1884, 30-Sep-2014
1514,Revenue,CCHD,Bed purchasing - Elderly MH - North,Permanent Residential,Fshc  1St Floor,1456.2, 02-Sep-2014
1515,Revenue,CCHD,Bed purchasing - Elderly MH - North,Permanent Residential,Fshc  1St Floor,1456.2, 30-Sep-2014
1516,Revenue,CCHD,South Glos Users in South Glos Homes,Permanent Nursing,Fshc  1St Floor,2201.96, 02-Sep-2014
1517,Revenue,CCHD,South Glos Users in South Glos Homes,Permanent Nursing,Fshc  1St Floor,721.48, 02-Sep-2014
1518,Revenue,CCHD,Bed Purchasing - Southmead Hospital,Permanent Nursing,Fshc  1St Floor,1203.24, 02-Sep-2014
1519,Revenue,CCHD,Bed Purchasing - Southmead Hospital,Permanent Nursing,Fshc  1St Floor,1203.24, 30-Sep-2014
1520,Revenue,CCHD,Bed Purchasing - Southmead Hospital,Permanent Nursing,Fshc  1St Floor,1384.2, 02-Sep-2014
1521,Revenue,CCHD,Bed Purchasing - Southmead Hospital,Permanent Nursing,Fshc  1St Floor,1384.2, 30-Sep-2014
1522,Revenue,CCHD,Bed Purchasing - South,Permanent Residential,Fshc  1St Floor,901.6, 02-Sep-2014
1523,Revenue,CCHD,Bed Purchasing - South,Permanent Residential,Fshc  1St Floor,901.6, 30-Sep-2014
1524,Revenue,CCHD,South Glos Users in South Glos Homes,Permanent Nursing,Fshc  1St Floor,972.43, 02-Sep-2014
1525,Revenue,CCHD,South Glos Users in South Glos Homes,Permanent Nursing,Fshc  1St Floor,2059.39, 02-Sep-2014
1526,Revenue,CCHD,Bed Purchasing - South,Permanent Nursing,Fshc  1St Floor,1721.9, 30-Sep-2014
1527,Revenue,CCHD,Bed Purchasing - South,Permanent Nursing,Fshc  1St Floor,1236.24, 30-Sep-2014
1528,Revenue,CCHD,Bed purchasing - Elderly PWLD - South,Permanent Residential,Fshc  1St Floor,1260.2, 02-Sep-2014
1529,Revenue,CCHD,Bed purchasing - Elderly PWLD - South,Permanent Residential,Fshc  1St Floor,1260.2, 30-Sep-2014
1530,Revenue,CCHD,Bed Purchasing - Frenchay Hospital,Permanent Nursing,Fshc  1St Floor,1388.2, 02-Sep-2014
1531,Revenue,CCHD,Bed Purchasing - Frenchay Hospital,Permanent Nursing,Fshc  1St Floor,1388.2, 30-Sep-2014
1532,Revenue,CCHD,Bed Purchasing - North,Permanent Residential,Fshc  1St Floor,1201.28, 02-Sep-2014
1533,Revenue,CCHD,Bed Purchasing - North,Permanent Residential,Fshc  1St Floor,1201.28, 30-Sep-2014
1534,Revenue,CCHD,Bed Purchasing - Frenchay Hospital,Permanent Nursing,Fshc  1St Floor,728.56, 02-Sep-2014
1535,Revenue,CCHD,Bed Purchasing - Frenchay Hospital,Permanent Nursing,Fshc  1St Floor,728.56, 30-Sep-2014
1536,Revenue,CCHD,Bed Purchasing - Frenchay Hospital,Permanent Nursing,Fshc  1St Floor,1388.2, 02-Sep-2014
1537,Revenue,CCHD,Bed Purchasing - Frenchay Hospital,Permanent Nursing,Fshc  1St Floor,1388.2, 30-Sep-2014
1538,Revenue,CCHD,Bed Purchasing - Southmead Hospital,Permanent Nursing,Fshc  1St Floor,6526.71, 02-Sep-2014
1539,Revenue,CCHD,Bed Purchasing - Southmead Hospital,Permanent Nursing,Fshc  1St Floor,1884, 02-Sep-2014
1540,Revenue,CCHD,South Glos Users in South Glos Homes,Permanent Nursing,Fshc  1St Floor,1996.02, 30-Sep-2014
1541,Revenue,CCHD,Bed Purchasing - Southmead Hospital,Permanent Nursing,Fshc  1St Floor,1308.28, 30-Sep-2014
1542,Revenue,CCHD,Bed Purchasing - Southmead Hospital,Permanent Nursing,Fshc  1St Floor,997.48, 02-Sep-2014
1543,Revenue,CCHD,Bed Purchasing - Southmead Hospital,Permanent Nursing,Fshc  1St Floor,997.48, 30-Sep-2014
1544,Revenue,CCHD,Bed Purchasing - Southmead Hospital,Permanent Residential,Fshc  1St Floor,1475.64, 02-Sep-2014
1545,Revenue,CCHD,Bed Purchasing - Southmead Hospital,Permanent Residential,Fshc  1St Floor,1475.64, 30-Sep-2014
1546,Revenue,CCHD,Bed Purchasing - South,Permanent Nursing,Fshc  1St Floor,1227.24, 02-Sep-2014
1547,Revenue,CCHD,Bed Purchasing - South,Permanent Nursing,Fshc  1St Floor,1227.24, 30-Sep-2014
1548,Revenue,CCHD,Bed Purchasing - South,Permanent Nursing,Fshc  1St Floor,816.76, 02-Sep-2014
1549,Revenue,CCHD,Bed Purchasing - South,Permanent Nursing,Fshc  1St Floor,816.76, 30-Sep-2014
1550,Revenue,CCHD,Bed purchasing - Elderly S117 - South,Permanent Nursing,Fshc  1St Floor,1884, 02-Sep-2014
1551,Revenue,CCHD,Bed purchasing - Elderly S117 - South,Permanent Nursing,Fshc  1St Floor,1884, 30-Sep-2014
1552,Revenue,CCHD,Bed Purchasing - Frenchay Hospital,Permanent Residential,Fshc  1St Floor,1122.08, 02-Sep-2014
1553,Revenue,CCHD,Bed Purchasing - Frenchay Hospital,Permanent Residential,Fshc  1St Floor,1122.08, 30-Sep-2014
1554,Revenue,CCHD,Bed Purchasing - South,Permanent Nursing,Fshc  1St Floor,4453.07, 02-Sep-2014
1555,Revenue,CCHD,Bed Purchasing - South,Permanent Nursing,Fshc  1St Floor,1385.4, 02-Sep-2014
1556,Revenue,CCHD,Bed Purchasing - South,Permanent Nursing,Fshc  1St Floor,815.8, 02-Sep-2014
1557,Revenue,CCHD,Bed Purchasing - South,Permanent Nursing,Fshc  1St Floor,1385.4, 30-Sep-2014
1558,Revenue,CCHD,Bed Purchasing - North,Permanent Nursing,Fshc  1St Floor,1327.84, 02-Sep-2014
1559,Revenue,CCHD,Bed Purchasing - North,Permanent Nursing,Fshc  1St Floor,1327.84, 30-Sep-2014
1560,Revenue,CCHD,Bed Purchasing - South,Permanent Residential,Fshc  1St Floor,1371.16, 02-Sep-2014
1561,Revenue,CCHD,Bed Purchasing - South,Permanent Residential,Fshc  1St Floor,1371.16, 30-Sep-2014
1562,Revenue,CCHD,Bed Purchasing - Frenchay Hospital,Permanent Nursing,Fshc  1St Floor,777.8, 02-Sep-2014
1563,Revenue,CCHD,Bed Purchasing - Frenchay Hospital,Permanent Nursing,Fshc  1St Floor,777.8, 30-Sep-2014
1564,Revenue,CCHD,Bed Purchasing - North,Permanent Residential,Fshc  1St Floor,1216.92, 02-Sep-2014
1565,Revenue,CCHD,Bed Purchasing - North,Permanent Residential,Fshc  1St Floor,1216.92, 30-Sep-2014
1566,Revenue,CCHD,Bed Purchasing - South,Permanent Nursing,Fshc  1St Floor,1193.88, 02-Sep-2014
1567,Revenue,CCHD,Bed Purchasing - South,Permanent Nursing,Fshc  1St Floor,1193.88, 30-Sep-2014
1568,Revenue,CCHD,Bed Purchasing - South,Permanent Nursing,Fshc  1St Floor,1304.72, 02-Sep-2014
1569,Revenue,CCHD,Bed Purchasing - South,Permanent Nursing,Fshc  1St Floor,1304.72, 30-Sep-2014
1570,Revenue,CCHD,Bed Purchasing - South,Permanent Nursing,Fshc  1St Floor,1668.4, 02-Sep-2014
1571,Revenue,CCHD,Bed Purchasing - South,Permanent Nursing,Fshc  1St Floor,1668.4, 30-Sep-2014
1572,Revenue,CCHD,South Glos Users in South Glos Homes,Permanent Nursing,Fshc  1St Floor,1647.51, 02-Sep-2014
1573,Revenue,CCHD,Bed Purchasing - South,Permanent Nursing,Fshc  1St Floor,1388.2, 02-Sep-2014
1574,Revenue,CCHD,Bed Purchasing - South,Permanent Nursing,Fshc  1St Floor,1388.2, 30-Sep-2014
1575,Revenue,CCHD,Bed Purchasing - Southmead Hospital,Permanent Nursing,Fshc  1St Floor,1884, 02-Sep-2014
1576,Revenue,CCHD,Bed Purchasing - Southmead Hospital,Permanent Nursing,Fshc  1St Floor,1884, 30-Sep-2014
1577,Revenue,CCHD,Bed Purchasing - Frenchay Hospital,Permanent Nursing,Fshc  1St Floor,1116.56, 02-Sep-2014
1578,Revenue,CCHD,Bed Purchasing - Frenchay Hospital,Permanent Nursing,Fshc  1St Floor,958.64, 02-Sep-2014
1579,Revenue,CCHD,Bed Purchasing - Frenchay Hospital,Permanent Nursing,Fshc  1St Floor,958.64, 30-Sep-2014
1580,Revenue,CCHD,Bed Purchasing - Frenchay Hospital,Permanent Nursing,Fshc  1St Floor,1549, 02-Sep-2014
1581,Revenue,CCHD,Bed Purchasing - Frenchay Hospital,Permanent Nursing,Fshc  1St Floor,1549, 30-Sep-2014
1582,Revenue,CCHD,Bed Purchasing - Frenchay Hospital,Permanent Nursing,Fshc  1St Floor,1126.86, 02-Sep-2014
1583,Revenue,CCHD,Bed Purchasing - Southmead Hospital,Permanent Nursing,Fshc  1St Floor,1365.08, 02-Sep-2014
1584,Revenue,CCHD,Bed Purchasing - Southmead Hospital,Permanent Nursing,Fshc  1St Floor,1365.08, 30-Sep-2014
1585,Revenue,CCHD,Bed Purchasing - Frenchay Hospital,Permanent Nursing,Fshc  1St Floor,1388.2, 02-Sep-2014
1586,Revenue,CCHD,Bed Purchasing - Frenchay Hospital,Permanent Nursing,Fshc  1St Floor,1388.2, 30-Sep-2014
1587,Revenue,CCHD,Bed Purchasing - Southmead Hospital,Permanent Nursing,Fshc  1St Floor,6320.74, 02-Sep-2014
1588,Revenue,CCHD,Bed Purchasing - Southmead Hospital,Permanent Nursing,Fshc  1St Floor,881.8, 02-Sep-2014
1589,Revenue,CCHD,Bed Purchasing - Southmead Hospital,Permanent Nursing,Fshc  1St Floor,881.8, 30-Sep-2014
1590,Revenue,CCHD,Bed Purchasing - Southmead Hospital,Permanent Nursing,Fshc  1St Floor,1199.48, 02-Sep-2014
1591,Revenue,CCHD,Bed Purchasing - Southmead Hospital,Permanent Nursing,Fshc  1St Floor,1199.48, 30-Sep-2014
1592,Revenue,CCHD,Bed Purchasing - South,Permanent Residential,Fshc  1St Floor,3380.25, 30-Sep-2014
1593,Revenue,CCHD,Bed Purchasing - Frenchay Hospital,Permanent Nursing,Fshc  1St Floor,3698.67, 30-Sep-2014
1594,Revenue,CCHD,Bed Purchasing - North,Permanent Nursing,Fshc  1St Floor,1346.88, 02-Sep-2014
1595,Revenue,CCHD,Bed Purchasing - North,Permanent Nursing,Fshc  1St Floor,1346.88, 30-Sep-2014
1596,Revenue,CCHD,Bed purchasing - Phys Dis - North,Permanent Nursing,Fshc  1St Floor,775.72, 02-Sep-2014
1597,Revenue,CCHD,Bed purchasing - Phys Dis - North,Permanent Nursing,Fshc  1St Floor,775.72, 30-Sep-2014
1598,Revenue,CCHD,Bed Purchasing - North,Permanent Nursing,Fshc  1St Floor,1496.2, 02-Sep-2014
1599,Revenue,CCHD,Bed Purchasing - North,Permanent Nursing,Fshc  1St Floor,1496.2, 30-Sep-2014
1600,Revenue,CCHD,Bed Purchasing - North,Respite Emergency - Nursing,Fshc  1St Floor,1297.14, 02-Sep-2014
1601,Revenue,CCHD,Bed Purchasing - North,Permanent Nursing,Fshc  1St Floor,1229.36, 02-Sep-2014
1602,Revenue,CCHD,Bed Purchasing - North,Permanent Nursing,Fshc  1St Floor,1229.36, 30-Sep-2014
1603,Revenue,CCHD,Bed Purchasing - Frenchay Hospital,Permanent Nursing,Fshc  1St Floor,1344.2, 02-Sep-2014
1604,Revenue,CCHD,Bed Purchasing - Frenchay Hospital,Permanent Nursing,Fshc  1St Floor,1344.2, 30-Sep-2014
1605,Revenue,CCHD,Bed Purchasing - South,Respite Emergency - Nursing,Fshc  1St Floor,2205.43, 02-Sep-2014
1606,Revenue,CCHD,Bed Purchasing - South,Respite Emergency - Nursing,Fshc  1St Floor,1992, 02-Sep-2014
1607,Revenue,CCHD,Bed purchasing - Elderly MH - North,Permanent Nursing,Fshc  1St Floor,857.04, 02-Sep-2014
1608,Revenue,CCHD,Bed purchasing - Elderly MH - North,Permanent Nursing,Fshc  1St Floor,857.04, 30-Sep-2014
1609,Revenue,CCHD,Bed Purchasing - Southmead Hospital,Permanent Nursing,Fshc  1St Floor,1496.2, 02-Sep-2014
1610,Revenue,CCHD,Bed Purchasing - Southmead Hospital,Permanent Nursing,Fshc  1St Floor,1496.2, 30-Sep-2014
1611,Revenue,CCHD,Bed Purchasing - North,Permanent Nursing,Fshc  1St Floor,1368.56, 02-Sep-2014
1612,Revenue,CCHD,Bed Purchasing - North,Permanent Nursing,Fshc  1St Floor,1368.56, 30-Sep-2014
1613,Revenue,CCHD,Bed Purchasing - Frenchay Hospital,Permanent Nursing,Fshc  1St Floor,1376.68, 02-Sep-2014
1614,Revenue,CCHD,South Glos Users in South Glos Homes,Permanent Nursing,Fshc  1St Floor,1156.42, 30-Sep-2014
1615,Revenue,CCHD,Bed Purchasing - Frenchay Hospital,Permanent Residential,Fshc  1St Floor,1233.08, 02-Sep-2014
1616,Revenue,CCHD,Bed Purchasing - Frenchay Hospital,Permanent Residential,Fshc  1St Floor,1233.08, 30-Sep-2014
1617,Revenue,CCHD,Bed Purchasing - Southmead Hospital,Permanent Nursing,Fshc  1St Floor,1307.2, 02-Sep-2014
1618,Revenue,CCHD,Bed Purchasing - Southmead Hospital,Permanent Nursing,Fshc  1St Floor,1307.2, 30-Sep-2014
1619,Revenue,CCHD,South Glos Users in South Glos Homes,Permanent Nursing,Fshc  1St Floor,1050.85, 02-Sep-2014
1620,Revenue,CCHD,Bed Purchasing - Southmead Hospital,Permanent Nursing,Fshc  1St Floor,1263.24, 02-Sep-2014
1621,Revenue,CCHD,Bed Purchasing - Southmead Hospital,Permanent Nursing,Fshc  1St Floor,1263.24, 30-Sep-2014
1622,Revenue,CCHD,Bed Purchasing - Southmead Hospital,Permanent Nursing,Fshc  1St Floor,1467.24, 02-Sep-2014
1623,Revenue,CCHD,Bed Purchasing - Southmead Hospital,Permanent Nursing,Fshc  1St Floor,1467.24, 30-Sep-2014
1624,Revenue,CCHD,Bed purchasing - Elderly S117 - South,Permanent Nursing,Fshc  1St Floor,1992, 02-Sep-2014
1625,Revenue,CCHD,Bed purchasing - Elderly S117 - South,Permanent Nursing,Fshc  1St Floor,1992, 30-Sep-2014
1626,Revenue,CCHD,Bed Purchasing - North,Permanent Residential,Fshc  1St Floor,1125.72, 02-Sep-2014
1627,Revenue,CCHD,Bed Purchasing - North,Permanent Residential,Fshc  1St Floor,1125.72, 30-Sep-2014
1628,Revenue,CCHD,Bed Purchasing - Frenchay Hospital,Permanent Nursing,Fshc  1St Floor,950.68, 02-Sep-2014
1629,Revenue,CCHD,Bed Purchasing - Frenchay Hospital,Permanent Nursing,Fshc  1St Floor,950.68, 30-Sep-2014
1630,Revenue,CCHD,Bed Purchasing - Elderly S117- North,Permanent Nursing,Fshc  1St Floor,1992, 02-Sep-2014
1631,Revenue,CCHD,Bed Purchasing - Elderly S117- North,Permanent Nursing,Fshc  1St Floor,1992, 30-Sep-2014
1632,Revenue,CCHD,Bed Purchasing - North,Permanent Residential,Fshc  1St Floor,1432.2, 02-Sep-2014
1633,Revenue,CCHD,Bed Purchasing - North,Permanent Residential,Fshc  1St Floor,1432.2, 30-Sep-2014
1634,Revenue,CCHD,Bed Purchasing - Southmead Hospital,Respite Planned - Nursing,Fshc  1St Floor,1992, 30-Sep-2014
1635,Revenue,CCHD,Bed Purchasing - Southmead Hospital,Respite Planned - Nursing,Fshc  1St Floor,1351.71, 30-Sep-2014
1636,Revenue,CCHD,Bed Purchasing - Frenchay Hospital,Permanent Nursing,Fshc  1St Floor,1100.44, 02-Sep-2014
1637,Revenue,CCHD,Bed Purchasing - Frenchay Hospital,Permanent Nursing,Fshc  1St Floor,1100.44, 30-Sep-2014
1638,Revenue,CCHD,Bed Purchasing - North,Respite Planned - Residential,Fshc  1St Floor,1756, 02-Sep-2014
1639,Revenue,CCHD,Bed Purchasing - North,Permanent Residential,Fshc  1St Floor,3166.97, 30-Sep-2014
1640,Revenue,CCHD,Bed Purchasing - South,Permanent Residential,Fshc  1St Floor,1351.48, 02-Sep-2014
1641,Revenue,CCHD,Bed Purchasing - South,Permanent Residential,Fshc  1St Floor,1351.48, 30-Sep-2014
1642,Revenue,CCHD,Bed Purchasing - Southmead Hospital,Permanent Residential,FSHC 1st Floor,806.6, 02-Sep-2014
1643,Revenue,CCHD,Bed Purchasing - Southmead Hospital,Permanent Residential,FSHC 1st Floor,806.6, 30-Sep-2014
1644,Revenue,CCHD,Section 117 Placements MH Younger,Permanent Residential,Gladstone House,2762.16, 02-Sep-2014
1645,Revenue,CCHD,Section 117 Placements MH Younger,Permanent Residential,Gladstone House,2762.16, 30-Sep-2014
1646,Revenue,CCHD,Bed Purchasing - Under 65s PWLD - South,Permanent Residential,Glasallt Fawr,4615.6, 02-Sep-2014
1647,Revenue,CCHD,Bed Purchasing - Under 65s PWLD - South,Permanent Residential,Glasallt Fawr,4615.6, 30-Sep-2014
1648,Revenue,CCHD,Bed Purchasing - Southmead Hospital,Permanent Nursing,Glebe House Nursing Home,1516.32, 02-Sep-2014
1649,Revenue,CCHD,Bed Purchasing - Southmead Hospital,Permanent Nursing,Glebe House Nursing Home,1353.85, 02-Sep-2014
1650,Revenue,CCHD,Bed Purchasing - Southmead Hospital,Permanent Nursing,Glebe House Nursing Home,1516.32, 30-Sep-2014
1651,Revenue,CCHD,Bed purchasing - Elderly MH - North,Permanent Residential,Glebe House Nursing Home,1807.4, 02-Sep-2014
1652,Revenue,CCHD,Bed purchasing - Elderly MH - North,Permanent Residential,Glebe House Nursing Home,1807.4, 30-Sep-2014
1653,Revenue,CCHD,South Glos Users in South Glos Homes,Permanent Nursing,Glebe House Nursing Home,11134.37, 30-Sep-2014
1654,Revenue,CCHD,Bed Purchasing - North,Permanent Nursing,Glebe House Nursing Home,11795.83, 02-Sep-2014
1655,Revenue,CCHD,Bed Purchasing - North,Permanent Nursing,Glebe House Nursing Home,2540.64, 02-Sep-2014
1656,Revenue,CCHD,Bed Purchasing - North,Permanent Nursing,Glebe House Nursing Home,2540.64, 30-Sep-2014
1657,Revenue,CCHD,Bed Purchasing - Frenchay Hospital,Permanent Residential,Glebe House Nursing Home,1346.16, 02-Sep-2014
1658,Revenue,CCHD,Bed Purchasing - Frenchay Hospital,Permanent Residential,Glebe House Nursing Home,1346.16, 30-Sep-2014
1659,Revenue,CCHD,Bed purchasing - Elderly MH - North,Permanent Residential,Glebe House Nursing Home,2044.08, 02-Sep-2014
1660,Revenue,CCHD,Bed purchasing - Elderly MH - North,Permanent Residential,Glebe House Nursing Home,2044.08, 30-Sep-2014
1661,Revenue,CCHD,Bed Purchasing - North,Permanent Nursing,Glebe House Nursing Home,1395.84, 02-Sep-2014
1662,Revenue,CCHD,Bed Purchasing - North,Permanent Nursing,Glebe House Nursing Home,1395.84, 30-Sep-2014
1663,Revenue,CCHD,Bed Purchasing - North,Permanent Residential,Glebe House Nursing Home,921.24, 02-Sep-2014
1664,Revenue,CCHD,Bed Purchasing - North,Permanent Residential,Glebe House Nursing Home,921.24, 30-Sep-2014
1665,Revenue,CCHD,Bed Purchasing - North,Permanent Nursing,Glebe House Nursing Home,1832.52, 02-Sep-2014
1666,Revenue,CCHD,Bed Purchasing - North,Permanent Nursing,Glebe House Nursing Home,1832.52, 30-Sep-2014
1667,Revenue,CCHD,Bed Purchasing - North,Permanent Nursing,Glebe House Nursing Home,2165.56, 02-Sep-2014
1668,Revenue,CCHD,Bed Purchasing - North,Permanent Nursing,Glebe House Nursing Home,12458.64, 30-Sep-2014
1669,Revenue,CCHD,Bed Purchasing - North,Permanent Nursing,Glebe House Nursing Home,2166.72, 30-Sep-2014
1670,Revenue,CCHD,Bed Purchasing - North,Permanent Residential,Glebe House Nursing Home,2593, 02-Sep-2014
1671,Revenue,CCHD,Bed Purchasing - North,Permanent Residential,Glebe House Nursing Home,2593, 30-Sep-2014
1672,Revenue,CCHD,South Glos Users in South Glos Homes,Permanent Nursing,Glebe House Nursing Home,2011.86, 30-Sep-2014
1673,Revenue,CCHD,Bed Purchasing - Under 65s PWLD - South,Permanent Residential,Gordena Care Home,2113.64, 02-Sep-2014
1674,Revenue,CCHD,Bed Purchasing - Under 65s PWLD - South,Permanent Residential,Gordena Care Home,2113.64, 30-Sep-2014
1675,Revenue,CCHD,Bed purchasing - Elderly PWLD - South,Permanent Residential,Gordena Care Home,4799.84, 02-Sep-2014
1676,Revenue,CCHD,Bed purchasing - Elderly PWLD - South,Permanent Residential,Gordena Care Home,4799.84, 30-Sep-2014
1677,Revenue,CCHD,Bed purchasing - Elderly PWLD - South,Permanent Residential,Gordena Care Home,3159.76, 02-Sep-2014
1678,Revenue,CCHD,Bed purchasing - Elderly PWLD - South,Permanent Residential,Gordena Care Home,3159.76, 30-Sep-2014
1679,Revenue,CCHD,Bed purchasing - Elderly PWLD - South,Permanent Residential,Gordena Care Home,2968.16, 02-Sep-2014
1680,Revenue,CCHD,Bed purchasing - Elderly PWLD - South,Permanent Residential,Gordena Care Home,2968.16, 30-Sep-2014
1681,Revenue,CCHD,Bed Purchasing - Under 65s PWLD - South,Permanent Residential,Gordena Care Home,1933.24, 02-Sep-2014
1682,Revenue,CCHD,Bed Purchasing - Under 65s PWLD - South,Permanent Residential,Gordena Care Home,1933.24, 30-Sep-2014
1683,Revenue,CCHD,Bed Purchasing - Under 65s PWLD - South,Permanent Residential,Gordena Care Limited,4217.76, 02-Sep-2014
1684,Revenue,CCHD,Bed Purchasing - Under 65s PWLD - South,Permanent Residential,Gordena Care Limited,4217.76, 30-Sep-2014
1685,Revenue,CCHD,Bed purchasing - S28A Under 65 - South,Permanent Residential,Gordena Care Limited,4116, 02-Sep-2014
1686,Revenue,CCHD,Bed purchasing - S28A Under 65 - South,Permanent Residential,Gordena Care Limited,4116, 30-Sep-2014
1687,Revenue,CCHD,Bed purchasing - Under 65s PWLD - North,Permanent Residential,Gordena Care Limited,4218.96, 02-Sep-2014
1688,Revenue,CCHD,Bed purchasing - Under 65s PWLD - North,Permanent Residential,Gordena Care Limited,4218.96, 30-Sep-2014
1689,Revenue,CCHD,S75 CCG Interim Beds,Permanent Nursing,Gracefields Nursing Home,41800, 04-Sep-2014
1690,Revenue,CCHD,S75 CCG Interim Beds,Permanent Nursing,Gracefields Nursing Home,41800, 04-Sep-2014
1691,Revenue,CCHD,S75 CCG Interim Beds,Permanent Nursing,Gracefields Nursing Home,41800, 24-Sep-2014
1692,Revenue,CCHD,Sexual Health,Other Supplies & Services,Great Western Hospitals NHS FT,578.13, 26-Sep-2014
1693,Revenue,CCHD,Bed Purchasing - North,Permanent Residential,Greensleeves,1331.92, 02-Sep-2014
1694,Revenue,CCHD,Bed Purchasing - North,Permanent Residential,Greensleeves,1331.92, 30-Sep-2014
1695,Revenue,CCHD,Bed Purchasing - North,Permanent Residential,Gwendoline House,1138.52, 02-Sep-2014
1696,Revenue,CCHD,Bed Purchasing - North,Permanent Residential,Gwendoline House,1138.52, 30-Sep-2014
1697,Revenue,CCHD,Bed Purchasing - South,Permanent Residential,Gwendoline House,6772.69, 02-Sep-2014
1698,Revenue,CCHD,Bed Purchasing - South,Permanent Residential,Gwendoline House,1384.2, 30-Sep-2014
1699,Revenue,CCHD,Bed Purchasing - Elderly MH - South,Permanent Residential,Gwendoline House,1292.56, 02-Sep-2014
1700,Revenue,CCHD,Bed Purchasing - Elderly MH - South,Permanent Residential,Gwendoline House,1292.56, 30-Sep-2014
1701,Revenue,CCHD,Bed Purchasing - South,Permanent Residential,Gwendoline House,1143.56, 02-Sep-2014
1702,Revenue,CCHD,Bed Purchasing - South,Permanent Residential,Gwendoline House,1143.56, 30-Sep-2014
1703,Revenue,CCHD,Bed Purchasing - Southmead Hospital,Permanent Residential,Gwendoline House,1192.55, 30-Sep-2014
1704,Revenue,CCHD,Supporting People Programme,Grants to Voluntary Bodies,Habinteg Housing Association,1358.58, 01-Sep-2014
1705,Revenue,CCHD,"Strategy, Advice and Public Protection",Other Supplies & Services,Halcrow Group Limited,9118.54, 23-Sep-2014
1706,Revenue,CCHD,Social Lettings Agency,Fees - General,Individual,15.78, 26-Sep-2014
1707,Revenue,CCHD,Social Lettings Agency,Other Supplies & Services,Individual,536.55, 26-Sep-2014
1708,Revenue,CCHD,Bed Purchasing - South,Permanent Residential,Harefield Hall,1347.12, 02-Sep-2014
1709,Revenue,CCHD,Bed Purchasing - South,Permanent Residential,Harefield Hall,1461.02, 30-Sep-2014
1710,Revenue,CCHD,Bed Purchasing - South,Permanent Residential,Harefield Hall,1203.2, 30-Sep-2014
1711,Revenue,CCHD,Bed Purchasing - South,Permanent Residential,Harefield Hall,1831.12, 02-Sep-2014
1712,Revenue,CCHD,Bed Purchasing - South,Permanent Residential,Harefield Hall,1831.12, 30-Sep-2014
1713,Revenue,CCHD,Bed Purchasing - South,Permanent Residential,Harefield Hall,1140.08, 02-Sep-2014
1714,Revenue,CCHD,Bed Purchasing - South,Permanent Residential,Harefield Hall,1140.08, 30-Sep-2014
1715,Revenue,CCHD,Bed Purchasing - South,Respite Planned - Residential,Harefield Hall,835.71, 30-Sep-2014
1716,Revenue,CCHD,Bed Purchasing - Elderly MH - South,Permanent Residential,Harefield Hall,1036.4, 02-Sep-2014
1717,Revenue,CCHD,Bed Purchasing - Elderly MH - South,Permanent Residential,Harefield Hall,1036.4, 30-Sep-2014
1718,Revenue,CCHD,Bed Purchasing - South,Permanent Residential,Harefield Hall,1304.48, 02-Sep-2014
1719,Revenue,CCHD,Bed Purchasing - South,Permanent Residential,Harefield Hall,1304.48, 30-Sep-2014
1720,Revenue,CCHD,Bed Purchasing - South,Permanent Residential,Harefield Hall,666.4, 02-Sep-2014
1721,Revenue,CCHD,Bed Purchasing - South,Permanent Residential,Harefield Hall,666.4, 30-Sep-2014
1722,Revenue,CCHD,Bed Purchasing - Southmead Hospital,Permanent Nursing,Hc-One Ltd,1634.8, 02-Sep-2014
1723,Revenue,CCHD,Bed Purchasing - Southmead Hospital,Permanent Nursing,Hc-One Ltd,1634.8, 30-Sep-2014
1724,Revenue,CCHD,Bed Purchasing - North,Permanent Nursing,Hc-One Ltd,1492.36, 02-Sep-2014
1725,Revenue,CCHD,Bed Purchasing - North,Permanent Nursing,Hc-One Ltd,1492.36, 30-Sep-2014
1726,Revenue,CCHD,Bed Purchasing - North,Permanent Nursing,Hc-One Ltd,1533.56, 02-Sep-2014
1727,Revenue,CCHD,Bed Purchasing - North,Permanent Nursing,Hc-One Ltd,1533.56, 30-Sep-2014
1728,Revenue,CCHD,Bed Purchasing - North,Permanent Residential,Hc-One Ltd,1006.84, 02-Sep-2014
1729,Revenue,CCHD,Bed Purchasing - North,Permanent Residential,Hc-One Ltd,1006.84, 30-Sep-2014
1730,Revenue,CCHD,Bed Purchasing - North,Permanent Nursing,Hc-One Ltd,1518.6, 02-Sep-2014
1731,Revenue,CCHD,Bed Purchasing - North,Permanent Nursing,Hc-One Ltd,1518.6, 30-Sep-2014
1732,Revenue,CCHD,Bed purchasing - Elderly PWLD - South,Permanent Nursing,Hc-One Ltd,1955.92, 02-Sep-2014
1733,Revenue,CCHD,Bed purchasing - Elderly PWLD - South,Permanent Nursing,Hc-One Ltd,1955.92, 30-Sep-2014
1734,Revenue,CCHD,Bed Purchasing - North,Permanent Nursing,Hc-One Ltd,1496.2, 02-Sep-2014
1735,Revenue,CCHD,Bed Purchasing - North,Permanent Nursing,Hc-One Ltd,1496.2, 30-Sep-2014
1736,Revenue,CCHD,Bed purchasing - Elderly MH - North,Permanent Nursing,Hc-One Ltd,1496.2, 02-Sep-2014
1737,Revenue,CCHD,Bed purchasing - Elderly MH - North,Permanent Nursing,Hc-One Ltd,1496.2, 30-Sep-2014
1738,Revenue,CCHD,Bed purchasing - Elderly MH - North,Permanent Nursing,Hc-One Ltd,1239.28, 02-Sep-2014
1739,Revenue,CCHD,Bed purchasing - Elderly MH - North,Permanent Nursing,Hc-One Ltd,1239.28, 30-Sep-2014
1740,Revenue,CCHD,Bed Purchasing - South,Permanent Nursing,Hc-One Ltd,1152.48, 02-Sep-2014
1741,Revenue,CCHD,Bed Purchasing - South,Permanent Nursing,Hc-One Ltd,1152.48, 30-Sep-2014
1742,Revenue,CCHD,Bed purchasing - Elderly MH - North,Permanent Nursing,Hc-One Ltd,1197.44, 02-Sep-2014
1743,Revenue,CCHD,Bed purchasing - Elderly MH - North,Permanent Nursing,Hc-One Ltd,1197.44, 30-Sep-2014
1744,Revenue,CCHD,Bed Purchasing - Elderly S117- North,Permanent Nursing,Hc-One Ltd,1976.56, 02-Sep-2014
1745,Revenue,CCHD,Bed Purchasing - Elderly S117- North,Permanent Nursing,Hc-One Ltd,1976.56, 30-Sep-2014
1746,Revenue,CCHD,Day Care - South,Day Care / Social Activities,Headway Bristol,736.1, 08-Sep-2014
1747,Revenue,CCHD,Bed Purchasing - South,Permanent Residential,Heathwood Rest Home,1009.8, 30-Sep-2014
1748,Revenue,CCHD,Bed Purchasing - Frenchay Hospital,Permanent Residential,Heathwood Rest Home,1009.8, 30-Sep-2014
1749,Revenue,CCHD,Home Care - Elderly - South,Other Small Contracts,Helping Hands Homecare,688.16, 01-Sep-2014
1750,Revenue,CCHD,Home Care - Elderly - North,Day Care / Social Activities,Helping Hands Homecare,31.28, 01-Sep-2014
1751,Revenue,CCHD,Home Care - Elderly - North,Other Small Contracts,Helping Hands Homecare,1618.74, 01-Sep-2014
1752,Revenue,CCHD,Day Care - North,Day Care / Social Activities,Helping Hands Homecare,93.84, 01-Sep-2014
1753,Revenue,CCHD,Under 65s -MH  Home Care Purch,Other Small Contracts,Helping Hands Homecare,27.37, 01-Sep-2014
1754,Revenue,CCHD,Home care - Elderly MH - North,Other Small Contracts,Helping Hands Homecare,62.56, 01-Sep-2014
1755,Revenue,CCHD,Home Care - Elderly - South,Other Small Contracts,Helping Hands Homecare,735.08, 11-Sep-2014
1756,Revenue,CCHD,Home Care - Elderly - North,Day Care / Social Activities,Helping Hands Homecare,31.28, 11-Sep-2014
1757,Revenue,CCHD,Home Care - Elderly - North,Other Small Contracts,Helping Hands Homecare,2060.57, 11-Sep-2014
1758,Revenue,CCHD,Day Care - North,Day Care / Social Activities,Helping Hands Homecare,93.84, 11-Sep-2014
1759,Revenue,CCHD,Under 65s -MH  Home Care Purch,Other Small Contracts,Helping Hands Homecare,31.28, 11-Sep-2014
1760,Revenue,CCHD,Home care - Elderly MH - North,Other Small Contracts,Helping Hands Homecare,62.56, 11-Sep-2014
1761,Revenue,CCHD,Home Care - Elderly - South,Other Small Contracts,Helping Hands Homecare,723.35, 17-Sep-2014
1762,Revenue,CCHD,Home Care - Elderly - North,Other Small Contracts,Helping Hands Homecare,1994.1, 17-Sep-2014
1763,Revenue,CCHD,Day Care - North,Day Care / Social Activities,Helping Hands Homecare,93.84, 17-Sep-2014
1764,Revenue,CCHD,Under 65s -MH  Home Care Purch,Other Small Contracts,Helping Hands Homecare,31.28, 17-Sep-2014
1765,Revenue,CCHD,Home care - Elderly MH - North,Other Small Contracts,Helping Hands Homecare,62.56, 17-Sep-2014
1766,Revenue,CCHD,S117 Placements PCT,Permanent Residential,Hesley Hall,18209.52, 02-Sep-2014
1767,Revenue,CCHD,S117 Placements PCT,Permanent Residential,Hesley Hall,18209.52, 30-Sep-2014
1768,Revenue,CCHD,Bed Purchasing - Southmead Hospital,Permanent Residential,High Border Lodge,1442.96, 02-Sep-2014
1769,Revenue,CCHD,Bed Purchasing - Southmead Hospital,Permanent Residential,High Border Lodge,1442.96, 30-Sep-2014
1770,Revenue,CCHD,Bed Purchasing - Frenchay Hospital,Permanent Residential,Highfield House,1227.52, 02-Sep-2014
1771,Revenue,CCHD,Bed Purchasing - Frenchay Hospital,Permanent Residential,Highfield House,1227.52, 30-Sep-2014
1772,Revenue,CCHD,Bed Purchasing - Southmead Hospital,Permanent Residential,Highgate Studios,1174.24, 02-Sep-2014
1773,Revenue,CCHD,Bed Purchasing - Southmead Hospital,Permanent Residential,Highgate Studios,1174.24, 30-Sep-2014
1774,Revenue,CCHD,Bed purchasing - Under 65s PWLD - North,Permanent Residential,Holmleigh Care Homes Ltd,4059.84, 02-Sep-2014
1775,Revenue,CCHD,Bed purchasing - Under 65s PWLD - North,Permanent Residential,Holmleigh Care Homes Ltd,4059.84, 30-Sep-2014
1776,Revenue,CCHD,Bed Purchasing - Under 65s PWLD - South,Permanent Residential,Holmleigh Care Homes Ltd,5102.6, 02-Sep-2014
1777,Revenue,CCHD,Bed Purchasing - Under 65s PWLD - South,Permanent Residential,Holmleigh Care Homes Ltd,5102.6, 30-Sep-2014
1778,Revenue,CCHD,South Glos Users in South Glos Homes,Permanent Nursing,Holmwood House,7789.55, 02-Sep-2014
1779,Revenue,CCHD,South Glos Users in South Glos Homes,Permanent Nursing,Holmwood House,3018.93, 30-Sep-2014
1780,Revenue,CCHD,Bed purchasing - Under 65s PWLD - North,Permanent Residential,Home Farm Trust Ltd  5-6 Brook Office Pa,2852.08, 02-Sep-2014
1781,Revenue,CCHD,Bed purchasing - Under 65s PWLD - North,Permanent Residential,Home Farm Trust Ltd  5-6 Brook Office Pa,2852.08, 30-Sep-2014
1782,Revenue,CCHD,Bed purchasing - Elderly PWLD - South,Permanent Residential,Home Farm Trust Ltd  5-6 Brook Office Pa,5126.28, 02-Sep-2014
1783,Revenue,CCHD,Bed purchasing - Elderly PWLD - South,Permanent Residential,Home Farm Trust Ltd  5-6 Brook Office Pa,5126.28, 30-Sep-2014
1784,Revenue,CCHD,Bed purchasing - Under 65s PWLD - North,Permanent Residential,Home Farm Trust Ltd  5-6 Brook Office Pa,3442.72, 02-Sep-2014
1785,Revenue,CCHD,Bed purchasing - Under 65s PWLD - North,Permanent Residential,Home Farm Trust Ltd  5-6 Brook Office Pa,3442.72, 30-Sep-2014
1786,Revenue,CCHD,Bed Purchasing - Under 65s PWLD - South,Permanent Residential,Home Farm Trust Ltd  5-6 Brook Office Pa,21831.76, 02-Sep-2014
1787,Revenue,CCHD,Bed Purchasing - Under 65s PWLD - South,Permanent Residential,Home Farm Trust Ltd  5-6 Brook Office Pa,21831.76, 30-Sep-2014
1788,Revenue,CCHD,Bed purchasing - Under 65s PWLD - North,Permanent Residential,Home From Home Care Ltd,8988.2, 02-Sep-2014
1789,Revenue,CCHD,Bed purchasing - Under 65s PWLD - North,Permanent Residential,Home From Home Care Ltd,8988.2, 30-Sep-2014
1790,Revenue,CCHD,Bed purchasing - Under 65s PWLD - North,Permanent Residential,Homes Caring For Autism Ltd  Churchill H,9907.24, 02-Sep-2014
1791,Revenue,CCHD,Bed purchasing - Under 65s PWLD - North,Permanent Residential,Homes Caring For Autism Ltd  Churchill H,9907.24, 30-Sep-2014
1792,Revenue,CCHD,Bed Purchasing - Under 65s PWLD - South,Permanent Residential,Homes Caring For Autism Ltd  Churchill H,12903.72, 02-Sep-2014
1793,Revenue,CCHD,Bed Purchasing - Under 65s PWLD - South,Permanent Residential,Homes Caring For Autism Ltd  Churchill H,12903.72, 30-Sep-2014
1794,Revenue,CCHD,Bed Purchasing - Southmead Hospital,Permanent Nursing,Horfield Care Limited,1717.67, 15-Sep-2014
1795,Revenue,CCHD,Bed Purchasing - Frenchay Hospital,Permanent Nursing,Horfield Care Limited,1717.67, 15-Sep-2014
1796,Revenue,CCHD,Bed Purchasing - Frenchay Hospital,Permanent Nursing,Horfield Care Limited,1716.91, 15-Sep-2014
1797,Revenue,CCHD,Bed Purchasing - Frenchay Hospital,Permanent Nursing,Horfield Care Limited,1470.15, 15-Sep-2014
1798,Revenue,CCHD,Bed Purchasing - Southmead Hospital,Permanent Nursing,Horfield Care Limited,2266.59, 15-Sep-2014
1799,Revenue,CCHD,Bed Purchasing - North,Permanent Nursing,Horfield Care Limited,1730.95, 15-Sep-2014
1800,Revenue,CCHD,Bed Purchasing - Southmead Hospital,Permanent Nursing,Horfield Care Limited,1912.97, 15-Sep-2014
1801,Revenue,CCHD,Bed Purchasing - North,Permanent Nursing,Horfield Care Limited,1189.6, 15-Sep-2014
1802,Revenue,CCHD,Bed Purchasing - South,Permanent Nursing,Horfield Care Limited,1357.09, 15-Sep-2014
1803,Revenue,CCHD,Bed Purchasing - Southmead Hospital,Permanent Nursing,Horfield Care Limited,724.21, 15-Sep-2014
1804,Revenue,CCHD,Bed Purchasing - North,Respite Emergency - Nursing,Horfield Care Limited,1023.62, 15-Sep-2014
1805,Revenue,CCHD,Bed Purchasing - Southmead Hospital,Respite Emergency - Nursing,Horfield Care Limited,1242.97, 15-Sep-2014
1806,Revenue,CCHD,Bed Purchasing - Southmead Hospital,Permanent Nursing,Horfield Care Limited,1717.67, 15-Sep-2014
1807,Revenue,CCHD,Bed Purchasing - Frenchay Hospital,Permanent Nursing,Horfield Care Limited,3659.21, 15-Sep-2014
1808,Revenue,CCHD,Bed Purchasing - Frenchay Hospital,Permanent Nursing,Horfield Care Limited,1716.91, 15-Sep-2014
1809,Revenue,CCHD,Bed Purchasing - Southmead Hospital,Permanent Nursing,Horfield Care Limited,2266.59, 15-Sep-2014
1810,Revenue,CCHD,Bed Purchasing - North,Permanent Nursing,Horfield Care Limited,1730.95, 15-Sep-2014
1811,Revenue,CCHD,Bed Purchasing - Southmead Hospital,Permanent Nursing,Horfield Care Limited,1912.97, 15-Sep-2014
1812,Revenue,CCHD,Bed Purchasing - North,Permanent Nursing,Horfield Care Limited,1189.6, 15-Sep-2014
1813,Revenue,CCHD,Bed Purchasing - South,Permanent Nursing,Horfield Care Limited,1357.09, 15-Sep-2014
1814,Revenue,CCHD,Bed Purchasing - Southmead Hospital,Permanent Nursing,Horfield Care Limited,898.03, 15-Sep-2014
1815,Revenue,CCHD,Bed Purchasing - North,Respite Emergency - Nursing,Horfield Care Limited,1316.08, 15-Sep-2014
1816,Revenue,CCHD,Bed Purchasing - Frenchay Hospital,Permanent Nursing,Horfield Care Limited,1470.15, 15-Sep-2014
1817,Revenue,CCHD,Supporting People Programme,Grants to Voluntary Bodies,Housing 21,616.42, 01-Sep-2014
1818,Revenue,CCHD,Supporting People Programme,Grants to Voluntary Bodies,Housing 21,935, 01-Sep-2014
1819,Revenue,CCHD,Home Care - Elderly - North,Private & Voluntary Home Care,Housing 21,37580.45, 10-Sep-2014
1820,Revenue,CCHD,Home Care - Elderly - South,Private & Voluntary Home Care,Housing 21,24011, 01-Sep-2014
1821,Revenue,CCHD,Home Care - Elderly - North,Private & Voluntary Home Care,Housing 21,615.82, 11-Sep-2014
1822,Revenue,CCHD,Home Care - Elderly - North,Private & Voluntary Home Care,Housing 21,533.25, 11-Sep-2014
1823,Revenue,CCHD,Alexandra Way,Printing & Stationery,ITEC,446.2, 26-Sep-2014
1824,Revenue,CCHD,Social Lettings Agency,Fees - General,Individual,11.6, 11-Sep-2014
1825,Revenue,CCHD,Social Lettings Agency,Other Supplies & Services,Individual,655.41, 11-Sep-2014
1826,Revenue,CCHD,Homeless - Private Sector Leasing,Other Supplies & Services,Jill Collins,594, 15-Sep-2014
1827,Revenue,CCHD,Training - Adult Services,Training Expenses,JK Training,600, 12-Sep-2014
1828,Revenue,CCHD,Research & Conferences,Other Supplies & Services,Jo Cleary,4941.6, 24-Sep-2014
1829,Revenue,CCHD,Tenancy Start Up Scheme,Other Supplies & Services,Individual,625, 15-Sep-2014
1830,Revenue,CCHD,Home Care - Elderly - South,Supported Living,Julia Simone- Supp. Ind.,1165.8, 02-Sep-2014
1831,Revenue,CCHD,Home Care - Elderly - South,Supported Living,Julia Simone- Supp. Ind.,1165.8, 30-Sep-2014
1832,Revenue,CCHD,Younger MH non-res purchasing,Supported Living,Julia Simone- Supp. Ind.,1165.8, 02-Sep-2014
1833,Revenue,CCHD,Younger MH non-res purchasing,Supported Living,Julia Simone- Supp. Ind.,1165.8, 02-Sep-2014
1834,Revenue,CCHD,Younger MH non-res purchasing,Supported Living,Julia Simone- Supp. Ind.,1165.8, 30-Sep-2014
1835,Revenue,CCHD,Younger MH non-res purchasing,Supported Living,Julia Simone- Supp. Ind.,1165.8, 02-Sep-2014
